date,department/service,beneficiary,amount,summary of purpose,category,transaction number,SAP vendor number
01.05.2023,ADULT SOCIAL CARE,BRITISH GAS,"1,427.73",CASTLEMEAD,ELECTRICITY,5902577242,1000054825
01.05.2023,CHILDREN AND FAMILIES,SOUTH LONDON & MAUDSLEY HOSPITAL,"6,840.32",ADOPTION SUPP FUND 2,EXTERNAL AGENCIES AND BODIES,5902576901,1000013096
01.05.2023,CHILDREN AND FAMILIES,SOUTH LONDON & MAUDSLEY HOSPITAL,"7,508.32",ADOPTION SUPP FUND 2,EXTERNAL AGENCIES AND BODIES,5902576908,1000013096
01.05.2023,CHILDREN AND FAMILIES,FAMILY FUTURES CIC,"6,400.00",ADOPTION SUPP FUND 2,EXTERNAL AGENCIES AND BODIES,5902577636,1000027893
01.05.2023,COMMISSIONING & CENTRAL,NCER CIC,"10,586.43",C&AS SOFTWARE APPS,SOFTWARE,5902577602,1000069283
01.05.2023,CORPORATE FACILITIES MANAGEMENT,GREENHAM TRADING LTD,513.3,FM SERVICES BY INTERSERVE,INTEGRATED FACILITIES MANAGEMENT CONTRACT,5902577102,1000006610
01.05.2023,ENVIRONMENT AND LEISURE,JUDITH KERR PRIMARY SCHOOL,"2,530.00",CAPITAL PS (LEISURE),CAPITAL GRANTS,5902577047,1000073200
01.05.2023,ENVIRONMENT AND LEISURE,STATON COHEN LTD,350,CAPITAL PS (LEISURE),CONST'N MAIN CONTRACT - NON CERTIFICATED,5902577004,1000083156
01.05.2023,ENVIRONMENT AND LEISURE,RH WROUGHT IRON,540,CAPITAL PS (LEISURE),CONSTRUCTION FEES  - EXTERNAL,2103655351,3000000680
01.05.2023,ENVIRONMENT AND LEISURE,RSA GEOTECHNICS LTD,"1,025.00",CAPITAL PS (LEISURE),CONSTRUCTION SITE COSTS,5902577687,1000049259
01.05.2023,ENVIRONMENT DIRECTORATE,PROJECT CENTRE LTD,"9,135.00",TRANSPORT PROJECTS,OTHER CONTRACTORS,5902576889,1000072621
01.05.2023,HOUSING GENERAL FUND,PRICE ARTHUR LTD,"2,182.00",CAPITAL PS (REGEN),CONSTRUCTION MAIN CONTRACT,5902577116,1000074125
01.05.2023,HOUSING HRA,KIND & COMPANY (BUILDERS) LTD,"56,100.00",CAPITAL PS (HRA),CONSTRUCTION SITE COSTS,2103656744,3000001608
01.05.2023,LEISURE DIRECTORATE,KENT COUNTY COUNCIL - LASER,257.66,BURGESS AREA TEAM,ELECTRICITY,5902576965,1000012926
01.05.2023,LEISURE DIRECTORATE,QUADRON SERVICES LIMITED,"2,336.00",DULWICH AREA TEAM,OTHER R&M,5902577045,1000066528
01.05.2023,LEISURE DIRECTORATE,FOUNTAINEERS LTD,723.25,SOUTHWARK AREA TEAM,OTHER R&M,5902577395,1000082831
01.05.2023,LEISURE DIRECTORATE,SMART PLATFORM RENTAL LTD,625,TREES � IN-HOUSE TEAM,HIRED VEHICLES,5902577172,1000082961
01.05.2023,PROFESSIONAL FINANCE SERVICES,PRICEWATERHOUSECOOPERS LLP,500,CORPORATE SERVICES AND F&G,TRAINING,5902577592,1000022906
01.05.2023,SBS OPERATIONS,AKW MEDI-CARE LTD,355.81,SBS AIDS AND ADAPTATIONS,MATERIALS,5902577641,1000047103
02.05.2023,ENVIRONMENT AND LEISURE,ERNEST DOE & SONS LTD,329.17,MANAGEMENT TEAM,MATERIALS,5902577063,1000052691
02.05.2023,LEISURE DIRECTORATE,JOHN GUEST SAFEGUARDING LIMITED,600,PLAY MANAGEMENT & ADMINISTRATION,TRAINING,5902577581,1000065465
03.05.2023,ADULT SOCIAL CARE,REDACTED PERSONAL DATA,488,APPOINTEESHIPS,OTHER PAYMENTS FOR CLIENTS,REDACTED,REDACTED
03.05.2023,ADULT SOCIAL CARE,SWK DISABLEMENT ASSN,"2,194.80",LD LTS 18-64,HOMECARE - C&V,2103658459,1000011698
03.05.2023,ADULT SOCIAL CARE,SAGECARE LTD,346.62,LD LTS 18-64,HOMECARE - C&V,2103658435,1000080924
03.05.2023,ADULT SOCIAL CARE,SAGECARE LTD,"1,061.13",LD LTS 18-64,HOMECARE - C&V,2103658416,1000080924
03.05.2023,ADULT SOCIAL CARE,SWK DISABLEMENT ASSN,311.68,LD LTS 18-64,SUPPORTED LIVING,2103658453,1000011698
03.05.2023,ADULT SOCIAL CARE,SWK DISABLEMENT ASSN,317.44,LD LTS 18-64,SUPPORTED LIVING,2103658452,1000011698
03.05.2023,ADULT SOCIAL CARE,SWK DISABLEMENT ASSN,317.44,LD LTS 18-64,SUPPORTED LIVING,2103658508,1000011698
03.05.2023,ADULT SOCIAL CARE,SWK DISABLEMENT ASSN,347.2,LD LTS 18-64,SUPPORTED LIVING,2103658500,1000011698
03.05.2023,ADULT SOCIAL CARE,SWK DISABLEMENT ASSN,370.12,LD LTS 18-64,SUPPORTED LIVING,2103658498,1000011698
03.05.2023,ADULT SOCIAL CARE,SWK DISABLEMENT ASSN,584.4,LD LTS 18-64,SUPPORTED LIVING,2103658495,1000011698
03.05.2023,ADULT SOCIAL CARE,SWK DISABLEMENT ASSN,701.28,LD LTS 18-64,SUPPORTED LIVING,2103658454,1000011698
03.05.2023,ADULT SOCIAL CARE,SWK DISABLEMENT ASSN,714.24,LD LTS 18-64,SUPPORTED LIVING,2103658497,1000011698
03.05.2023,ADULT SOCIAL CARE,SWK DISABLEMENT ASSN,779.2,LD LTS 18-64,SUPPORTED LIVING,2103658448,1000011698
03.05.2023,ADULT SOCIAL CARE,SWK DISABLEMENT ASSN,"1,150.72",LD LTS 18-64,SUPPORTED LIVING,2103658492,1000011698
03.05.2023,ADULT SOCIAL CARE,SWK DISABLEMENT ASSN,"1,207.76",LD LTS 18-64,SUPPORTED LIVING,2103658493,1000011698
03.05.2023,ADULT SOCIAL CARE,SAGECARE LTD,867,LD LTS 65+,HOMECARE - C&V,2103658413,1000080924
03.05.2023,ADULT SOCIAL CARE,SWK DISABLEMENT ASSN,"1,285.68",LD LTS 65+,HOMECARE - SPOT,2103658490,1000011698
03.05.2023,ADULT SOCIAL CARE,SAGECARE LTD,484.47,MEM LTS 65+,HOMECARE - C&V,2103658248,1000080924
03.05.2023,ADULT SOCIAL CARE,SAGECARE LTD,688.63,MEM LTS 65+,HOMECARE - C&V,2103658270,1000080924
03.05.2023,ADULT SOCIAL CARE,SAGECARE LTD,731.37,MEM LTS 65+,HOMECARE - C&V,2103658410,1000080924
03.05.2023,ADULT SOCIAL CARE,SAGECARE LTD,857.85,MEM LTS 65+,HOMECARE - C&V,2103658349,1000080924
03.05.2023,ADULT SOCIAL CARE,SAGECARE LTD,968.87,MEM LTS 65+,HOMECARE - C&V,2103658294,1000080924
03.05.2023,ADULT SOCIAL CARE,SAGECARE LTD,970.38,MEM LTS 65+,HOMECARE - C&V,2103658409,1000080924
03.05.2023,ADULT SOCIAL CARE,SAGECARE LTD,"3,282.07",MEM LTS 65+,HOMECARE - C&V,2103658426,1000080924
03.05.2023,ADULT SOCIAL CARE,SAGECARE LTD,265.86,MH LTS 18-64,HOMECARE - C&V,2103658266,1000080924
03.05.2023,ADULT SOCIAL CARE,SAGECARE LTD,265.88,MH LTS 18-64,HOMECARE - C&V,2103658305,1000080924
03.05.2023,ADULT SOCIAL CARE,SAGECARE LTD,303.84,MH LTS 18-64,HOMECARE - C&V,2103658303,1000080924
03.05.2023,ADULT SOCIAL CARE,SAGECARE LTD,313.37,MH LTS 18-64,HOMECARE - C&V,2103658375,1000080924
03.05.2023,ADULT SOCIAL CARE,SAGECARE LTD,330.56,MH LTS 18-64,HOMECARE - C&V,2103658377,1000080924
03.05.2023,ADULT SOCIAL CARE,SAGECARE LTD,341.88,MH LTS 18-64,HOMECARE - C&V,2103658269,1000080924
03.05.2023,ADULT SOCIAL CARE,SAGECARE LTD,465.27,MH LTS 18-64,HOMECARE - C&V,2103658403,1000080924
03.05.2023,ADULT SOCIAL CARE,SAGECARE LTD,"1,286.68",MH LTS 18-64,HOMECARE - C&V,2103658418,1000080924
03.05.2023,ADULT SOCIAL CARE,SWK DISABLEMENT ASSN,"1,666.56",MH LTS 18-64,HOMECARE - SPOT,2103658537,1000011698
03.05.2023,ADULT SOCIAL CARE,SWK DISABLEMENT ASSN,311.68,MH LTS 18-64,SUPPORTED LIVING,2103658523,1000011698
03.05.2023,ADULT SOCIAL CARE,SWK DISABLEMENT ASSN,311.68,MH LTS 18-64,SUPPORTED LIVING,2103658540,1000011698
03.05.2023,ADULT SOCIAL CARE,SWK DISABLEMENT ASSN,311.68,MH LTS 18-64,SUPPORTED LIVING,2103658542,1000011698
03.05.2023,ADULT SOCIAL CARE,SWK DISABLEMENT ASSN,317.44,MH LTS 18-64,SUPPORTED LIVING,2103658516,1000011698
03.05.2023,ADULT SOCIAL CARE,SWK DISABLEMENT ASSN,317.44,MH LTS 18-64,SUPPORTED LIVING,2103658522,1000011698
03.05.2023,ADULT SOCIAL CARE,SWK DISABLEMENT ASSN,317.44,MH LTS 18-64,SUPPORTED LIVING,2103658538,1000011698
03.05.2023,ADULT SOCIAL CARE,SWK DISABLEMENT ASSN,357.12,MH LTS 18-64,SUPPORTED LIVING,2103658456,1000011698
03.05.2023,ADULT SOCIAL CARE,SWK DISABLEMENT ASSN,389.6,MH LTS 18-64,SUPPORTED LIVING,2103658533,1000011698
03.05.2023,ADULT SOCIAL CARE,SWK DISABLEMENT ASSN,389.6,MH LTS 18-64,SUPPORTED LIVING,2103658535,1000011698
03.05.2023,ADULT SOCIAL CARE,SWK DISABLEMENT ASSN,396.8,MH LTS 18-64,SUPPORTED LIVING,2103658513,1000011698
03.05.2023,ADULT SOCIAL CARE,SWK DISABLEMENT ASSN,436.48,MH LTS 18-64,SUPPORTED LIVING,2103658531,1000011698
03.05.2023,ADULT SOCIAL CARE,SWK DISABLEMENT ASSN,476.16,MH LTS 18-64,SUPPORTED LIVING,2103658528,1000011698
03.05.2023,ADULT SOCIAL CARE,SWK DISABLEMENT ASSN,506.48,MH LTS 18-64,SUPPORTED LIVING,2103658467,1000011698
03.05.2023,ADULT SOCIAL CARE,SWK DISABLEMENT ASSN,654.72,MH LTS 18-64,SUPPORTED LIVING,2103658511,1000011698
03.05.2023,ADULT SOCIAL CARE,SWK DISABLEMENT ASSN,857.12,MH LTS 18-64,SUPPORTED LIVING,2103658509,1000011698
03.05.2023,ADULT SOCIAL CARE,SAGECARE LTD,261.13,MH LTS 65+,HOMECARE - C&V,2103658353,1000080924
03.05.2023,ADULT SOCIAL CARE,SAGECARE LTD,595,MH LTS 65+,HOMECARE - C&V,2103658438,1000080924
03.05.2023,ADULT SOCIAL CARE,SAGECARE LTD,678.9,MH LTS 65+,HOMECARE - C&V,2103658441,1000080924
03.05.2023,ADULT SOCIAL CARE,SAGECARE LTD,792.97,MH LTS 65+,HOMECARE - C&V,2103658338,1000080924
03.05.2023,ADULT SOCIAL CARE,SWK DISABLEMENT ASSN,272.72,MH LTS 65+,SUPPORTED LIVING,2103658539,1000011698
03.05.2023,ADULT SOCIAL CARE,SWK DISABLEMENT ASSN,277.76,MH LTS 65+,SUPPORTED LIVING,2103658527,1000011698
03.05.2023,ADULT SOCIAL CARE,SWK DISABLEMENT ASSN,350.64,MH LTS 65+,SUPPORTED LIVING,2103658521,1000011698
03.05.2023,ADULT SOCIAL CARE,SWK DISABLEMENT ASSN,833.28,MH LTS 65+,SUPPORTED LIVING,2103658447,1000011698
03.05.2023,ADULT SOCIAL CARE,SWK DISABLEMENT ASSN,"1,051.92",MH LTS 65+,SUPPORTED LIVING,2103658541,1000011698
03.05.2023,ADULT SOCIAL CARE,SAGECARE LTD,280.1,PHY LTS 18-64,HOMECARE - C&V,2103658281,1000080924
03.05.2023,ADULT SOCIAL CARE,SAGECARE LTD,284.8,PHY LTS 18-64,HOMECARE - C&V,2103658268,1000080924
03.05.2023,ADULT SOCIAL CARE,SAGECARE LTD,341.96,PHY LTS 18-64,HOMECARE - C&V,2103658329,1000080924
03.05.2023,ADULT SOCIAL CARE,SAGECARE LTD,351.44,PHY LTS 18-64,HOMECARE - C&V,2103658278,1000080924
03.05.2023,ADULT SOCIAL CARE,SAGECARE LTD,383.61,PHY LTS 18-64,HOMECARE - C&V,2103658384,1000080924
03.05.2023,ADULT SOCIAL CARE,SAGECARE LTD,398.72,PHY LTS 18-64,HOMECARE - C&V,2103658298,1000080924
03.05.2023,ADULT SOCIAL CARE,SAGECARE LTD,431.98,PHY LTS 18-64,HOMECARE - C&V,2103658283,1000080924
03.05.2023,ADULT SOCIAL CARE,SAGECARE LTD,450.97,PHY LTS 18-64,HOMECARE - C&V,2103658395,1000080924
03.05.2023,ADULT SOCIAL CARE,SAGECARE LTD,465.41,PHY LTS 18-64,HOMECARE - C&V,2103658412,1000080924
03.05.2023,ADULT SOCIAL CARE,SAGECARE LTD,474.68,PHY LTS 18-64,HOMECARE - C&V,2103658405,1000080924
03.05.2023,ADULT SOCIAL CARE,SAGECARE LTD,503.3,PHY LTS 18-64,HOMECARE - C&V,2103658276,1000080924
03.05.2023,ADULT SOCIAL CARE,SAGECARE LTD,564.95,PHY LTS 18-64,HOMECARE - C&V,2103658255,1000080924
03.05.2023,ADULT SOCIAL CARE,SAGECARE LTD,622.03,PHY LTS 18-64,HOMECARE - C&V,2103658310,1000080924
03.05.2023,ADULT SOCIAL CARE,SAGECARE LTD,626.77,PHY LTS 18-64,HOMECARE - C&V,2103658319,1000080924
03.05.2023,ADULT SOCIAL CARE,SAGECARE LTD,641.75,PHY LTS 18-64,HOMECARE - C&V,2103658428,1000080924
03.05.2023,ADULT SOCIAL CARE,SAGECARE LTD,643.9,PHY LTS 18-64,HOMECARE - C&V,2103658312,1000080924
03.05.2023,ADULT SOCIAL CARE,SAGECARE LTD,650.48,PHY LTS 18-64,HOMECARE - C&V,2103658359,1000080924
03.05.2023,ADULT SOCIAL CARE,SAGECARE LTD,655.25,PHY LTS 18-64,HOMECARE - C&V,2103658385,1000080924
03.05.2023,ADULT SOCIAL CARE,SAGECARE LTD,662.03,PHY LTS 18-64,HOMECARE - C&V,2103658308,1000080924
03.05.2023,ADULT SOCIAL CARE,SAGECARE LTD,792.92,PHY LTS 18-64,HOMECARE - C&V,2103658315,1000080924
03.05.2023,ADULT SOCIAL CARE,SAGECARE LTD,811.9,PHY LTS 18-64,HOMECARE - C&V,2103658236,1000080924
03.05.2023,ADULT SOCIAL CARE,SAGECARE LTD,864.18,PHY LTS 18-64,HOMECARE - C&V,2103658431,1000080924
03.05.2023,ADULT SOCIAL CARE,SAGECARE LTD,935.29,PHY LTS 18-64,HOMECARE - C&V,2103658322,1000080924
03.05.2023,ADULT SOCIAL CARE,SAGECARE LTD,992.25,PHY LTS 18-64,HOMECARE - C&V,2103658350,1000080924
03.05.2023,ADULT SOCIAL CARE,SAGECARE LTD,"1,030.35",PHY LTS 18-64,HOMECARE - C&V,2103658291,1000080924
03.05.2023,ADULT SOCIAL CARE,SAGECARE LTD,"1,061.79",PHY LTS 18-64,HOMECARE - C&V,2103658436,1000080924
03.05.2023,ADULT SOCIAL CARE,SAGECARE LTD,"1,104.82",PHY LTS 18-64,HOMECARE - C&V,2103658254,1000080924
03.05.2023,ADULT SOCIAL CARE,SAGECARE LTD,"1,232.50",PHY LTS 18-64,HOMECARE - C&V,2103658422,1000080924
03.05.2023,ADULT SOCIAL CARE,SAGECARE LTD,"1,258.37",PHY LTS 18-64,HOMECARE - C&V,2103658398,1000080924
03.05.2023,ADULT SOCIAL CARE,SAGECARE LTD,"1,263.58",PHY LTS 18-64,HOMECARE - C&V,2103658295,1000080924
03.05.2023,ADULT SOCIAL CARE,SAGECARE LTD,"1,305.94",PHY LTS 18-64,HOMECARE - C&V,2103658286,1000080924
03.05.2023,ADULT SOCIAL CARE,SAGECARE LTD,"1,785.33",PHY LTS 18-64,HOMECARE - C&V,2103658265,1000080924
03.05.2023,ADULT SOCIAL CARE,SAGECARE LTD,"2,122.15",PHY LTS 18-64,HOMECARE - C&V,2103658361,1000080924
03.05.2023,ADULT SOCIAL CARE,SAGECARE LTD,"3,143.04",PHY LTS 18-64,HOMECARE - C&V,2103658334,1000080924
03.05.2023,ADULT SOCIAL CARE,SWK DISABLEMENT ASSN,512.12,PHY LTS 18-64,HOMECARE - SPOT,2103658468,1000011698
03.05.2023,ADULT SOCIAL CARE,SWK DISABLEMENT ASSN,841.34,PHY LTS 18-64,HOMECARE - SPOT,2103658473,1000011698
03.05.2023,ADULT SOCIAL CARE,SWK DISABLEMENT ASSN,"1,298.59",PHY LTS 18-64,HOMECARE - SPOT,2103658458,1000011698
03.05.2023,ADULT SOCIAL CARE,SWK DISABLEMENT ASSN,"1,499.78",PHY LTS 18-64,HOMECARE - SPOT,2103658461,1000011698
03.05.2023,ADULT SOCIAL CARE,SWK DISABLEMENT ASSN,"1,847.29",PHY LTS 18-64,HOMECARE - SPOT,2103658478,1000011698
03.05.2023,ADULT SOCIAL CARE,SWK DISABLEMENT ASSN,"2,121.64",PHY LTS 18-64,HOMECARE - SPOT,2103658460,1000011698
03.05.2023,ADULT SOCIAL CARE,SWK DISABLEMENT ASSN,"2,725.21",PHY LTS 18-64,HOMECARE - SPOT,2103658483,1000011698
03.05.2023,ADULT SOCIAL CARE,SWK DISABLEMENT ASSN,"3,401.94",PHY LTS 18-64,HOMECARE - SPOT,2103658445,1000011698
03.05.2023,ADULT SOCIAL CARE,SWK DISABLEMENT ASSN,"3,630.57",PHY LTS 18-64,HOMECARE - SPOT,2103658485,1000011698
03.05.2023,ADULT SOCIAL CARE,REALITY FAMILY SUPPORT SERVICES LTD,"1,383.37",PHY LTS 18-64,OTHER PAYMENTS FOR CLIENTS,5902577844,1000087878
03.05.2023,ADULT SOCIAL CARE,SWK DISABLEMENT ASSN,545.44,PHY LTS 18-64,SUPPORTED LIVING,2103658524,1000011698
03.05.2023,ADULT SOCIAL CARE,SWK DISABLEMENT ASSN,"1,262.01",PHY LTS 65+,HOMECARE - C&V,2103658470,1000011698
03.05.2023,ADULT SOCIAL CARE,SWK DISABLEMENT ASSN,"2,450.86",PHY LTS 65+,HOMECARE - C&V,2103658480,1000011698
03.05.2023,ADULT SOCIAL CARE,SAGECARE LTD,251.7,PHY LTS 65+,HOMECARE - C&V,2103658342,1000080924
03.05.2023,ADULT SOCIAL CARE,SAGECARE LTD,265.02,PHY LTS 65+,HOMECARE - C&V,2103658261,1000080924
03.05.2023,ADULT SOCIAL CARE,SAGECARE LTD,266,PHY LTS 65+,HOMECARE - C&V,2103658325,1000080924
03.05.2023,ADULT SOCIAL CARE,SAGECARE LTD,274.45,PHY LTS 65+,HOMECARE - C&V,2103658257,1000080924
03.05.2023,ADULT SOCIAL CARE,SAGECARE LTD,289.56,PHY LTS 65+,HOMECARE - C&V,2103658415,1000080924
03.05.2023,ADULT SOCIAL CARE,SAGECARE LTD,299.14,PHY LTS 65+,HOMECARE - C&V,2103658264,1000080924
03.05.2023,ADULT SOCIAL CARE,SAGECARE LTD,299.21,PHY LTS 65+,HOMECARE - C&V,2103658301,1000080924
03.05.2023,ADULT SOCIAL CARE,SAGECARE LTD,344.25,PHY LTS 65+,HOMECARE - C&V,2103658427,1000080924
03.05.2023,ADULT SOCIAL CARE,SAGECARE LTD,370.5,PHY LTS 65+,HOMECARE - C&V,2103658323,1000080924
03.05.2023,ADULT SOCIAL CARE,SAGECARE LTD,393.98,PHY LTS 65+,HOMECARE - C&V,2103658379,1000080924
03.05.2023,ADULT SOCIAL CARE,SAGECARE LTD,402.51,PHY LTS 65+,HOMECARE - C&V,2103658339,1000080924
03.05.2023,ADULT SOCIAL CARE,SAGECARE LTD,412.98,PHY LTS 65+,HOMECARE - C&V,2103658346,1000080924
03.05.2023,ADULT SOCIAL CARE,SAGECARE LTD,422.47,PHY LTS 65+,HOMECARE - C&V,2103658309,1000080924
03.05.2023,ADULT SOCIAL CARE,SAGECARE LTD,425.96,PHY LTS 65+,HOMECARE - C&V,2103658246,1000080924
03.05.2023,ADULT SOCIAL CARE,SAGECARE LTD,427.23,PHY LTS 65+,HOMECARE - C&V,2103658443,1000080924
03.05.2023,ADULT SOCIAL CARE,SAGECARE LTD,449.52,PHY LTS 65+,HOMECARE - C&V,2103658386,1000080924
03.05.2023,ADULT SOCIAL CARE,SAGECARE LTD,465.57,PHY LTS 65+,HOMECARE - C&V,2103658273,1000080924
03.05.2023,ADULT SOCIAL CARE,SAGECARE LTD,481.15,PHY LTS 65+,HOMECARE - C&V,2103658324,1000080924
03.05.2023,ADULT SOCIAL CARE,SAGECARE LTD,494,PHY LTS 65+,HOMECARE - C&V,2103658417,1000080924
03.05.2023,ADULT SOCIAL CARE,SAGECARE LTD,507.98,PHY LTS 65+,HOMECARE - C&V,2103658327,1000080924
03.05.2023,ADULT SOCIAL CARE,SAGECARE LTD,531.99,PHY LTS 65+,HOMECARE - C&V,2103658440,1000080924
03.05.2023,ADULT SOCIAL CARE,SAGECARE LTD,532,PHY LTS 65+,HOMECARE - C&V,2103658362,1000080924
03.05.2023,ADULT SOCIAL CARE,SAGECARE LTD,536.6,PHY LTS 65+,HOMECARE - C&V,2103658316,1000080924
03.05.2023,ADULT SOCIAL CARE,SAGECARE LTD,538.1,PHY LTS 65+,HOMECARE - C&V,2103658250,1000080924
03.05.2023,ADULT SOCIAL CARE,SAGECARE LTD,570.82,PHY LTS 65+,HOMECARE - C&V,2103658314,1000080924
03.05.2023,ADULT SOCIAL CARE,SAGECARE LTD,579.24,PHY LTS 65+,HOMECARE - C&V,2103658290,1000080924
03.05.2023,ADULT SOCIAL CARE,SAGECARE LTD,583.73,PHY LTS 65+,HOMECARE - C&V,2103658307,1000080924
03.05.2023,ADULT SOCIAL CARE,SAGECARE LTD,588.79,PHY LTS 65+,HOMECARE - C&V,2103658348,1000080924
03.05.2023,ADULT SOCIAL CARE,SAGECARE LTD,593.43,PHY LTS 65+,HOMECARE - C&V,2103658297,1000080924
03.05.2023,ADULT SOCIAL CARE,SAGECARE LTD,602.88,PHY LTS 65+,HOMECARE - C&V,2103658340,1000080924
03.05.2023,ADULT SOCIAL CARE,SAGECARE LTD,612.43,PHY LTS 65+,HOMECARE - C&V,2103658394,1000080924
03.05.2023,ADULT SOCIAL CARE,SAGECARE LTD,636.23,PHY LTS 65+,HOMECARE - C&V,2103658343,1000080924
03.05.2023,ADULT SOCIAL CARE,SAGECARE LTD,645.73,PHY LTS 65+,HOMECARE - C&V,2103658293,1000080924
03.05.2023,ADULT SOCIAL CARE,SAGECARE LTD,669.44,PHY LTS 65+,HOMECARE - C&V,2103658366,1000080924
03.05.2023,ADULT SOCIAL CARE,SAGECARE LTD,678.41,PHY LTS 65+,HOMECARE - C&V,2103658358,1000080924
03.05.2023,ADULT SOCIAL CARE,SAGECARE LTD,678.86,PHY LTS 65+,HOMECARE - C&V,2103658253,1000080924
03.05.2023,ADULT SOCIAL CARE,SAGECARE LTD,683.72,PHY LTS 65+,HOMECARE - C&V,2103658434,1000080924
03.05.2023,ADULT SOCIAL CARE,SAGECARE LTD,683.8,PHY LTS 65+,HOMECARE - C&V,2103658380,1000080924
03.05.2023,ADULT SOCIAL CARE,SAGECARE LTD,698.58,PHY LTS 65+,HOMECARE - C&V,2103658332,1000080924
03.05.2023,ADULT SOCIAL CARE,SAGECARE LTD,717.02,PHY LTS 65+,HOMECARE - C&V,2103658317,1000080924
03.05.2023,ADULT SOCIAL CARE,SAGECARE LTD,735.95,PHY LTS 65+,HOMECARE - C&V,2103658424,1000080924
03.05.2023,ADULT SOCIAL CARE,SAGECARE LTD,735.97,PHY LTS 65+,HOMECARE - C&V,2103658345,1000080924
03.05.2023,ADULT SOCIAL CARE,SAGECARE LTD,751.15,PHY LTS 65+,HOMECARE - C&V,2103658364,1000080924
03.05.2023,ADULT SOCIAL CARE,SAGECARE LTD,764.56,PHY LTS 65+,HOMECARE - C&V,2103658251,1000080924
03.05.2023,ADULT SOCIAL CARE,SAGECARE LTD,770.79,PHY LTS 65+,HOMECARE - C&V,2103658388,1000080924
03.05.2023,ADULT SOCIAL CARE,SAGECARE LTD,771.52,PHY LTS 65+,HOMECARE - C&V,2103658335,1000080924
03.05.2023,ADULT SOCIAL CARE,SAGECARE LTD,773.5,PHY LTS 65+,HOMECARE - C&V,2103658271,1000080924
03.05.2023,ADULT SOCIAL CARE,SAGECARE LTD,778.67,PHY LTS 65+,HOMECARE - C&V,2103658357,1000080924
03.05.2023,ADULT SOCIAL CARE,SAGECARE LTD,783.44,PHY LTS 65+,HOMECARE - C&V,2103658414,1000080924
03.05.2023,ADULT SOCIAL CARE,SAGECARE LTD,783.74,PHY LTS 65+,HOMECARE - C&V,2103658376,1000080924
03.05.2023,ADULT SOCIAL CARE,SAGECARE LTD,797.64,PHY LTS 65+,HOMECARE - C&V,2103658421,1000080924
03.05.2023,ADULT SOCIAL CARE,SAGECARE LTD,797.78,PHY LTS 65+,HOMECARE - C&V,2103658296,1000080924
03.05.2023,ADULT SOCIAL CARE,SAGECARE LTD,864.19,PHY LTS 65+,HOMECARE - C&V,2103658285,1000080924
03.05.2023,ADULT SOCIAL CARE,SAGECARE LTD,913.75,PHY LTS 65+,HOMECARE - C&V,2103658442,1000080924
03.05.2023,ADULT SOCIAL CARE,SAGECARE LTD,916.63,PHY LTS 65+,HOMECARE - C&V,2103658320,1000080924
03.05.2023,ADULT SOCIAL CARE,SAGECARE LTD,920.27,PHY LTS 65+,HOMECARE - C&V,2103658400,1000080924
03.05.2023,ADULT SOCIAL CARE,SAGECARE LTD,926.11,PHY LTS 65+,HOMECARE - C&V,2103658372,1000080924
03.05.2023,ADULT SOCIAL CARE,SAGECARE LTD,926.5,PHY LTS 65+,HOMECARE - C&V,2103658433,1000080924
03.05.2023,ADULT SOCIAL CARE,SAGECARE LTD,945.67,PHY LTS 65+,HOMECARE - C&V,2103658354,1000080924
03.05.2023,ADULT SOCIAL CARE,SAGECARE LTD,969.57,PHY LTS 65+,HOMECARE - C&V,2103658321,1000080924
03.05.2023,ADULT SOCIAL CARE,SAGECARE LTD,"1,020.87",PHY LTS 65+,HOMECARE - C&V,2103658351,1000080924
03.05.2023,ADULT SOCIAL CARE,SAGECARE LTD,"1,025.47",PHY LTS 65+,HOMECARE - C&V,2103658369,1000080924
03.05.2023,ADULT SOCIAL CARE,SAGECARE LTD,"1,054.16",PHY LTS 65+,HOMECARE - C&V,2103658401,1000080924
03.05.2023,ADULT SOCIAL CARE,SAGECARE LTD,"1,058.94",PHY LTS 65+,HOMECARE - C&V,2103658284,1000080924
03.05.2023,ADULT SOCIAL CARE,SAGECARE LTD,"1,063.65",PHY LTS 65+,HOMECARE - C&V,2103658304,1000080924
03.05.2023,ADULT SOCIAL CARE,SAGECARE LTD,"1,077.90",PHY LTS 65+,HOMECARE - C&V,2103658387,1000080924
03.05.2023,ADULT SOCIAL CARE,SAGECARE LTD,"1,099.44",PHY LTS 65+,HOMECARE - C&V,2103658407,1000080924
03.05.2023,ADULT SOCIAL CARE,SAGECARE LTD,"1,119.63",PHY LTS 65+,HOMECARE - C&V,2103658399,1000080924
03.05.2023,ADULT SOCIAL CARE,SAGECARE LTD,"1,130.17",PHY LTS 65+,HOMECARE - C&V,2103658272,1000080924
03.05.2023,ADULT SOCIAL CARE,SAGECARE LTD,"1,141.69",PHY LTS 65+,HOMECARE - C&V,2103658239,1000080924
03.05.2023,ADULT SOCIAL CARE,SAGECARE LTD,"1,149.12",PHY LTS 65+,HOMECARE - C&V,2103658419,1000080924
03.05.2023,ADULT SOCIAL CARE,SAGECARE LTD,"1,163.37",PHY LTS 65+,HOMECARE - C&V,2103658408,1000080924
03.05.2023,ADULT SOCIAL CARE,SAGECARE LTD,"1,205.93",PHY LTS 65+,HOMECARE - C&V,2103658328,1000080924
03.05.2023,ADULT SOCIAL CARE,SAGECARE LTD,"1,210.90",PHY LTS 65+,HOMECARE - C&V,2103658420,1000080924
03.05.2023,ADULT SOCIAL CARE,SAGECARE LTD,"1,234.70",PHY LTS 65+,HOMECARE - C&V,2103658289,1000080924
03.05.2023,ADULT SOCIAL CARE,SAGECARE LTD,"1,244.10",PHY LTS 65+,HOMECARE - C&V,2103658287,1000080924
03.05.2023,ADULT SOCIAL CARE,SAGECARE LTD,"1,251.74",PHY LTS 65+,HOMECARE - C&V,2103658318,1000080924
03.05.2023,ADULT SOCIAL CARE,SAGECARE LTD,"1,282.11",PHY LTS 65+,HOMECARE - C&V,2103658326,1000080924
03.05.2023,ADULT SOCIAL CARE,SAGECARE LTD,"1,291.66",PHY LTS 65+,HOMECARE - C&V,2103658330,1000080924
03.05.2023,ADULT SOCIAL CARE,SAGECARE LTD,"1,296.13",PHY LTS 65+,HOMECARE - C&V,2103658262,1000080924
03.05.2023,ADULT SOCIAL CARE,SAGECARE LTD,"1,329.71",PHY LTS 65+,HOMECARE - C&V,2103658378,1000080924
03.05.2023,ADULT SOCIAL CARE,SAGECARE LTD,"1,353.10",PHY LTS 65+,HOMECARE - C&V,2103658365,1000080924
03.05.2023,ADULT SOCIAL CARE,SAGECARE LTD,"1,381.88",PHY LTS 65+,HOMECARE - C&V,2103658344,1000080924
03.05.2023,ADULT SOCIAL CARE,SAGECARE LTD,"1,414.84",PHY LTS 65+,HOMECARE - C&V,2103658252,1000080924
03.05.2023,ADULT SOCIAL CARE,SAGECARE LTD,"1,443.66",PHY LTS 65+,HOMECARE - C&V,2103658360,1000080924
03.05.2023,ADULT SOCIAL CARE,SAGECARE LTD,"1,476.86",PHY LTS 65+,HOMECARE - C&V,2103658337,1000080924
03.05.2023,ADULT SOCIAL CARE,SAGECARE LTD,"1,509.70",PHY LTS 65+,HOMECARE - C&V,2103658406,1000080924
03.05.2023,ADULT SOCIAL CARE,SAGECARE LTD,"1,523.16",PHY LTS 65+,HOMECARE - C&V,2103658333,1000080924
03.05.2023,ADULT SOCIAL CARE,SAGECARE LTD,"1,529.04",PHY LTS 65+,HOMECARE - C&V,2103658374,1000080924
03.05.2023,ADULT SOCIAL CARE,SAGECARE LTD,"1,648.25",PHY LTS 65+,HOMECARE - C&V,2103658237,1000080924
03.05.2023,ADULT SOCIAL CARE,SAGECARE LTD,"1,652.16",PHY LTS 65+,HOMECARE - C&V,2103658300,1000080924
03.05.2023,ADULT SOCIAL CARE,SAGECARE LTD,"1,685.57",PHY LTS 65+,HOMECARE - C&V,2103658373,1000080924
03.05.2023,ADULT SOCIAL CARE,SAGECARE LTD,"1,879.95",PHY LTS 65+,HOMECARE - C&V,2103658274,1000080924
03.05.2023,ADULT SOCIAL CARE,SAGECARE LTD,"1,889.89",PHY LTS 65+,HOMECARE - C&V,2103658368,1000080924
03.05.2023,ADULT SOCIAL CARE,SAGECARE LTD,"1,927.59",PHY LTS 65+,HOMECARE - C&V,2103658311,1000080924
03.05.2023,ADULT SOCIAL CARE,SAGECARE LTD,"1,942.25",PHY LTS 65+,HOMECARE - C&V,2103658439,1000080924
03.05.2023,ADULT SOCIAL CARE,SAGECARE LTD,"2,071.00",PHY LTS 65+,HOMECARE - C&V,2103658243,1000080924
03.05.2023,ADULT SOCIAL CARE,SAGECARE LTD,"2,093.53",PHY LTS 65+,HOMECARE - C&V,2103658429,1000080924
03.05.2023,ADULT SOCIAL CARE,SAGECARE LTD,"2,098.86",PHY LTS 65+,HOMECARE - C&V,2103658292,1000080924
03.05.2023,ADULT SOCIAL CARE,SAGECARE LTD,"2,222.11",PHY LTS 65+,HOMECARE - C&V,2103658371,1000080924
03.05.2023,ADULT SOCIAL CARE,SAGECARE LTD,"2,322.18",PHY LTS 65+,HOMECARE - C&V,2103658267,1000080924
03.05.2023,ADULT SOCIAL CARE,SAGECARE LTD,"2,426.61",PHY LTS 65+,HOMECARE - C&V,2103658277,1000080924
03.05.2023,ADULT SOCIAL CARE,SAGECARE LTD,"2,540.57",PHY LTS 65+,HOMECARE - C&V,2103658432,1000080924
03.05.2023,ADULT SOCIAL CARE,SAGECARE LTD,"2,559.45",PHY LTS 65+,HOMECARE - C&V,2103658336,1000080924
03.05.2023,ADULT SOCIAL CARE,SAGECARE LTD,"2,559.66",PHY LTS 65+,HOMECARE - C&V,2103658331,1000080924
03.05.2023,ADULT SOCIAL CARE,SAGECARE LTD,"2,588.04",PHY LTS 65+,HOMECARE - C&V,2103658260,1000080924
03.05.2023,ADULT SOCIAL CARE,SAGECARE LTD,"2,643.29",PHY LTS 65+,HOMECARE - C&V,2103658256,1000080924
03.05.2023,ADULT SOCIAL CARE,SAGECARE LTD,"2,735.92",PHY LTS 65+,HOMECARE - C&V,2103658263,1000080924
03.05.2023,ADULT SOCIAL CARE,SAGECARE LTD,"2,753.83",PHY LTS 65+,HOMECARE - C&V,2103658313,1000080924
03.05.2023,ADULT SOCIAL CARE,SAGECARE LTD,"2,763.79",PHY LTS 65+,HOMECARE - C&V,2103658390,1000080924
03.05.2023,ADULT SOCIAL CARE,SAGECARE LTD,"2,886.47",PHY LTS 65+,HOMECARE - C&V,2103658404,1000080924
03.05.2023,ADULT SOCIAL CARE,SAGECARE LTD,"2,939.11",PHY LTS 65+,HOMECARE - C&V,2103658382,1000080924
03.05.2023,ADULT SOCIAL CARE,SAGECARE LTD,"2,957.92",PHY LTS 65+,HOMECARE - C&V,2103658279,1000080924
03.05.2023,ADULT SOCIAL CARE,SAGECARE LTD,"2,995.63",PHY LTS 65+,HOMECARE - C&V,2103658437,1000080924
03.05.2023,ADULT SOCIAL CARE,SAGECARE LTD,"3,057.72",PHY LTS 65+,HOMECARE - C&V,2103658352,1000080924
03.05.2023,ADULT SOCIAL CARE,SAGECARE LTD,"3,276.82",PHY LTS 65+,HOMECARE - C&V,2103658381,1000080924
03.05.2023,ADULT SOCIAL CARE,SAGECARE LTD,"3,441.55",PHY LTS 65+,HOMECARE - C&V,2103658302,1000080924
03.05.2023,ADULT SOCIAL CARE,SAGECARE LTD,"3,650.50",PHY LTS 65+,HOMECARE - C&V,2103658306,1000080924
03.05.2023,ADULT SOCIAL CARE,SAGECARE LTD,"3,849.93",PHY LTS 65+,HOMECARE - C&V,2103658367,1000080924
03.05.2023,ADULT SOCIAL CARE,SWK DISABLEMENT ASSN,512.12,PHY LTS 65+,HOMECARE - SPOT,2103658444,1000011698
03.05.2023,ADULT SOCIAL CARE,SWK DISABLEMENT ASSN,530.41,PHY LTS 65+,HOMECARE - SPOT,2103658486,1000011698
03.05.2023,ADULT SOCIAL CARE,SWK DISABLEMENT ASSN,621.86,PHY LTS 65+,HOMECARE - SPOT,2103658446,1000011698
03.05.2023,ADULT SOCIAL CARE,SWK DISABLEMENT ASSN,892,PHY LTS 65+,HOMECARE - SPOT,2103658477,1000011698
03.05.2023,ADULT SOCIAL CARE,SWK DISABLEMENT ASSN,914.5,PHY LTS 65+,HOMECARE - SPOT,2103658481,1000011698
03.05.2023,ADULT SOCIAL CARE,SWK DISABLEMENT ASSN,951.08,PHY LTS 65+,HOMECARE - SPOT,2103658469,1000011698
03.05.2023,ADULT SOCIAL CARE,SWK DISABLEMENT ASSN,"1,170.56",PHY LTS 65+,HOMECARE - SPOT,2103658471,1000011698
03.05.2023,ADULT SOCIAL CARE,SWK DISABLEMENT ASSN,"1,225.43",PHY LTS 65+,HOMECARE - SPOT,2103658484,1000011698
03.05.2023,ADULT SOCIAL CARE,SWK DISABLEMENT ASSN,"1,298.59",PHY LTS 65+,HOMECARE - SPOT,2103658450,1000011698
03.05.2023,ADULT SOCIAL CARE,SWK DISABLEMENT ASSN,"1,481.49",PHY LTS 65+,HOMECARE - SPOT,2103658482,1000011698
03.05.2023,ADULT SOCIAL CARE,SWK DISABLEMENT ASSN,"1,682.68",PHY LTS 65+,HOMECARE - SPOT,2103658479,1000011698
03.05.2023,ADULT SOCIAL CARE,SWK DISABLEMENT ASSN,"1,792.42",PHY LTS 65+,HOMECARE - SPOT,2103658451,1000011698
03.05.2023,ADULT SOCIAL CARE,SWK DISABLEMENT ASSN,"2,560.60",PHY LTS 65+,HOMECARE - SPOT,2103658474,1000011698
03.05.2023,ADULT SOCIAL CARE,SWK DISABLEMENT ASSN,"2,816.66",PHY LTS 65+,HOMECARE - SPOT,2103658472,1000011698
03.05.2023,ADULT SOCIAL CARE,SWK DISABLEMENT ASSN,"2,999.56",PHY LTS 65+,HOMECARE - SPOT,2103658475,1000011698
03.05.2023,ADULT SOCIAL CARE,SAGECARE LTD,"1,396.72",PHY STS 65+,HOMECARE - IC,2103658249,1000080924
03.05.2023,ADULT SOCIAL CARE,SAGECARE LTD,395.44,SEN LTS 65+,HOMECARE - C&V,2103658341,1000080924
03.05.2023,ADULT SOCIAL CARE,SAGECARE LTD,340,SOCIAL ISOLATION,HOMECARE - C&V,2103658402,1000080924
03.05.2023,ADULT SOCIAL CARE,SAGECARE LTD,376.71,SOCIAL ISOLATION,HOMECARE - C&V,2103658393,1000080924
03.05.2023,ADULT SOCIAL CARE,SAGECARE LTD,987.43,SOCIAL ISOLATION,HOMECARE - C&V,2103658389,1000080924
03.05.2023,ADULT SOCIAL CARE,SAGECARE LTD,"3,000.83",SOCIAL ISOLATION,HOMECARE - C&V,2103658430,1000080924
03.05.2023,ADULT SOCIAL CARE,SAGECARE LTD,"3,304.21",SOCIAL ISOLATION,HOMECARE - C&V,2103658280,1000080924
03.05.2023,ADULT SOCIAL CARE,SWK DISABLEMENT ASSN,329.22,SOCIAL ISOLATION,HOMECARE - SPOT,2103658463,1000011698
03.05.2023,ADULT SOCIAL CARE,SWK DISABLEMENT ASSN,"1,298.59",SOCIAL ISOLATION,HOMECARE - SPOT,2103658462,1000011698
03.05.2023,ADULT SOCIAL CARE,SAGECARE LTD,"1,215.50",SUB LTS 18-64,HOMECARE - C&V,2103658356,1000080924
03.05.2023,ADULT SOCIAL CARE,STREETSCENE ADDICTION RECOVERY LTD,"3,180.00",SUB LTS 18-64,PLACEMENTS - REHAB,2103658229,11221787
03.05.2023,ADULT SOCIAL CARE,NOTARO CARE HOMES (CAMPANIA),"1,930.71",SUB LTS 18-64,RESIDENTIAL CARE,2103658216,1000051801
03.05.2023,ASSET MANAGEMENT,ARMINA LTD,330.06,DISREPAIR,BUILDING R&M,2103658781,3000002121
03.05.2023,ASSET MANAGEMENT,ARMINA LTD,"1,566.55",DISREPAIR,BUILDING R&M,2103658222,3000002121
03.05.2023,ASSET MANAGEMENT,ARMINA LTD,"3,235.07",DISREPAIR,BUILDING R&M,2103658223,3000002121
03.05.2023,ASSET MANAGEMENT,HODGE JONES & ALLEN SOLICITORS,"9,583.33",DISREPAIR,PAYMENTS FOR LEGAL SERVICES,2103658183,11011881
03.05.2023,ASSET MANAGEMENT,HANSEN PALOMARES SOLICITORS,"6,254.32",DISREPAIR,PAYMENTS FOR LEGAL SERVICES,2103658184,11053592
03.05.2023,ASSET MANAGEMENT,ANTONY HODARI  SOLICITORS,333.33,DISREPAIR,PAYMENTS FOR LEGAL SERVICES,2103658181,1000031040
03.05.2023,ASSET MANAGEMENT,ANTONY HODARI  SOLICITORS,416.67,DISREPAIR,PAYMENTS FOR LEGAL SERVICES,2103658189,1000031040
03.05.2023,ASSET MANAGEMENT,ANTONY HODARI  SOLICITORS,"1,114.60",DISREPAIR,PAYMENTS FOR LEGAL SERVICES,2103658203,1000031040
03.05.2023,ASSET MANAGEMENT,ANTONY HODARI  SOLICITORS,"1,704.57",DISREPAIR,PAYMENTS FOR LEGAL SERVICES,2103658195,1000031040
03.05.2023,ASSET MANAGEMENT,ANTONY HODARI  SOLICITORS,"1,833.33",DISREPAIR,PAYMENTS FOR LEGAL SERVICES,2103658188,1000031040
03.05.2023,ASSET MANAGEMENT,ANTONY HODARI  SOLICITORS,"1,958.33",DISREPAIR,PAYMENTS FOR LEGAL SERVICES,2103658178,1000031040
03.05.2023,ASSET MANAGEMENT,ANTONY HODARI  SOLICITORS,"2,250.00",DISREPAIR,PAYMENTS FOR LEGAL SERVICES,2103658196,1000031040
03.05.2023,ASSET MANAGEMENT,ANTONY HODARI  SOLICITORS,"3,208.33",DISREPAIR,PAYMENTS FOR LEGAL SERVICES,2103658180,1000031040
03.05.2023,ASSET MANAGEMENT,ANTONY HODARI  SOLICITORS,"3,333.33",DISREPAIR,PAYMENTS FOR LEGAL SERVICES,2103658186,1000031040
03.05.2023,ASSET MANAGEMENT,DUNCAN LEWIS (SOLICITORS) LTD,"5,416.67",DISREPAIR,PAYMENTS FOR LEGAL SERVICES,2103658193,1000049481
03.05.2023,ASSET MANAGEMENT,ASHFORDS LLP,"3,566.28",DISREPAIR,PAYMENTS FOR LEGAL SERVICES,2103658199,1000055865
03.05.2023,ASSET MANAGEMENT,PROWSE PHILLIPS LAW LTD,"3,666.67",DISREPAIR,PAYMENTS FOR LEGAL SERVICES,2103658187,1000081919
03.05.2023,ASSET MANAGEMENT,DRISCOLL KINGSTON SOLICITORS,"1,250.00",DISREPAIR,PAYMENTS FOR LEGAL SERVICES,2103658202,1000082357
03.05.2023,ASSET MANAGEMENT,DRISCOLL KINGSTON SOLICITORS,"1,416.67",DISREPAIR,PAYMENTS FOR LEGAL SERVICES,2103658176,1000082357
03.05.2023,ASSET MANAGEMENT,DRISCOLL KINGSTON SOLICITORS,"4,583.33",DISREPAIR,PAYMENTS FOR LEGAL SERVICES,2103658179,1000082357
03.05.2023,ASSET MANAGEMENT,CLEARWATER  SOLICITORS,"7,708.33",DISREPAIR,PAYMENTS FOR LEGAL SERVICES,2103658204,1000084327
03.05.2023,ASSET MANAGEMENT,REYNARDS SOLICITORS,833.33,DISREPAIR,PAYMENTS FOR LEGAL SERVICES,2103658177,1000084453
03.05.2023,ASSET MANAGEMENT,BOND TURNER  SOLICITORS,"4,049.69",DISREPAIR,PAYMENTS FOR LEGAL SERVICES,2103658205,1000085362
03.05.2023,ASSET MANAGEMENT,BOND TURNER  SOLICITORS,"4,750.00",DISREPAIR,PAYMENTS FOR LEGAL SERVICES,2103658191,1000085362
03.05.2023,ASSET MANAGEMENT,ENVISION  SOLICITORS LIMITED,"4,062.50",DISREPAIR,PAYMENTS FOR LEGAL SERVICES,2103658200,1000086191
03.05.2023,ASSET MANAGEMENT,MJV & CO  SOLICITORS LTD,"4,583.33",DISREPAIR,PAYMENTS FOR LEGAL SERVICES,2103658182,1000086326
03.05.2023,ASSET MANAGEMENT,BYRNE LOOBY  PARTNERS (UK) LIMITED,950,DISREPAIR,PAYMENTS FOR LEGAL SERVICES,2103658190,1000087100
03.05.2023,ASSET MANAGEMENT,RESOLUTE  LEGAL,"3,958.33",DISREPAIR,PAYMENTS FOR LEGAL SERVICES,2103658197,1000087819
03.05.2023,ASSET MANAGEMENT,AJA LEGAL SERVICES LTD,650,DISREPAIR,PAYMENTS FOR LEGAL SERVICES,2103658194,1000087861
03.05.2023,ASSET MANAGEMENT,COYNE LEARMONTH (CROSBY) LIMITED,"1,666.67",DISREPAIR,PAYMENTS FOR LEGAL SERVICES,2103658185,1000088221
03.05.2023,ASSET MANAGEMENT,HIGH STREET  SOLICITORS,"4,319.17",DISREPAIR,PAYMENTS FOR LEGAL SERVICES,2103658198,1000088784
03.05.2023,ASSET MANAGEMENT,SLS SOLICITORS,"6,875.00",DISREPAIR,PAYMENTS FOR LEGAL SERVICES,2103658192,1000089011
03.05.2023,ASSET MANAGEMENT,HSB ENGINEERING INSURANCE SERVICES,"8,744.40",ENG CONTRACTS (SOUTH),LIFTS,5902577862,1000089047
03.05.2023,CENTRAL FUNCTIONS,ROYAL MAIL GROUP LTD,908.5,OPERATIONAL TEAM,POSTAGES,5902577856,1000061535
03.05.2023,CHILDREN AND ADULT,BEACON GROUP LTD,900,CAPITAL PS (EDUCATION),CONSTRUCTION,5902577829,1000089420
03.05.2023,CHILDREN AND ADULT,HAVERSTOCK,"21,614.18",CAPITAL PS (EDUCATION),CONSTRUCTION FEES - ARCHITECT,5902577919,1000074288
03.05.2023,CHILDREN AND FAMILIES,CHROMA THERAPIES LTD,292.5,ADOPTION SUPP FUND 2,EXTERNAL AGENCIES AND BODIES,5902577867,1000085537
03.05.2023,CHILDREN AND FAMILIES,FOCUS MENTAL HEALTH LTD,"2,500.00",ADOPTION SUPP FUND 2,EXTERNAL AGENCIES AND BODIES,5902577861,1000087145
03.05.2023,CHILDREN AND FAMILIES,FOCUS MENTAL HEALTH LTD,"2,500.00",ADOPTION SUPP FUND 2,EXTERNAL AGENCIES AND BODIES,5902577863,1000087145
03.05.2023,CHILDREN AND FAMILIES,FOCUS MENTAL HEALTH LTD,"2,500.00",ADOPTION SUPP FUND 2,EXTERNAL AGENCIES AND BODIES,5902577951,1000087145
03.05.2023,CHILDREN AND FAMILIES,SARAH ANNE PETER,"2,616.00",ADOPTION SUPP FUND 2,EXTERNAL AGENCIES AND BODIES,5902577909,1000089194
03.05.2023,CHILDREN AND FAMILIES,REDACTED PERSONAL DATA,255,ADOPTION SUPP FUND 2,EXTERNAL AGENCIES AND BODIES,REDACTED,REDACTED
03.05.2023,CHILDREN AND FAMILIES,REDACTED PERSONAL DATA,850,ADOPTION SUPP FUND 2,EXTERNAL AGENCIES AND BODIES,REDACTED,REDACTED
03.05.2023,CHILDREN AND FAMILIES,REDACTED PERSONAL DATA,420,ADOPTION SUPP FUND 3,EXTERNAL AGENCIES AND BODIES,REDACTED,REDACTED
03.05.2023,CHILDREN AND FAMILIES,REDACTED PERSONAL DATA,765,ADOPTION SUPP FUND 3,EXTERNAL AGENCIES AND BODIES,REDACTED,REDACTED
03.05.2023,CHILDREN AND FAMILIES,POSTURITE LTD,280.46,CENTRAL SUPPORT,EQUIPMENT PURCHASE & REPAIR,5902577864,11015468
03.05.2023,CHILDREN AND FAMILIES,REALITY FAMILY SUPPORT SERVICES LTD,592.88,EDGE OF CARE DECIS�S,OTHER PAYMENTS FOR CLIENTS,5902577844,1000087878
03.05.2023,CHILDREN AND FAMILIES,ALPHA BIOLABORATORIES LEGAL LTD,280,TEAM B,OTHER PAYMENTS FOR CLIENTS,5902577858,1000086208
03.05.2023,CHILDREN AND FAMILIES,UPSKILLU LTD,950,TEAM D,OTHER PAYMENTS FOR CLIENTS,5902577859,1000089645
03.05.2023,COMMISSIONING & CENTRAL,CAPITA BUSINESS SERVICES LTD,"242,587.08",C&AS SOFTWARE APPS,SOFTWARE,5902577910,1000006291
03.05.2023,COMMUNITIES,SAGECARE LTD,"1,239.96",NO RECOURSE TO PUBLIC FUNDS,HOMECARE - C&V,2103658238,1000080924
03.05.2023,COMMUNITIES,SAGECARE LTD,"1,820.73",NO RECOURSE TO PUBLIC FUNDS,HOMECARE - C&V,2103658247,1000080924
03.05.2023,COMMUNITIES,PENROSE OPTIONS,"1,084.58",NO RECOURSE TO PUBLIC FUNDS,HOMECARE - C&V,2103658231,1000089083
03.05.2023,COMMUNITIES,PENROSE OPTIONS,"1,973.58",NO RECOURSE TO PUBLIC FUNDS,HOMECARE - SPOT,2103658233,1000089083
03.05.2023,COMMUNITIES,PENROSE OPTIONS,"2,026.92",NO RECOURSE TO PUBLIC FUNDS,HOMECARE - SPOT,2103658232,1000089083
03.05.2023,COMMUNITIES,PENROSE OPTIONS,"2,053.59",NO RECOURSE TO PUBLIC FUNDS,HOMECARE - SPOT,2103658230,1000089083
03.05.2023,COMMUNITIES,REDACTED PERSONAL DATA,350,UKRAINIAN PROGRAMME,GRANTS,REDACTED,REDACTED
03.05.2023,COMMUNITIES,REDACTED PERSONAL DATA,350,UKRAINIAN PROGRAMME,GRANTS,REDACTED,REDACTED
03.05.2023,COMMUNITIES,REDACTED PERSONAL DATA,350,UKRAINIAN PROGRAMME,GRANTS,REDACTED,REDACTED
03.05.2023,COMMUNITIES,REDACTED PERSONAL DATA,350,UKRAINIAN PROGRAMME,GRANTS,REDACTED,REDACTED
03.05.2023,COMMUNITIES,REDACTED PERSONAL DATA,350,UKRAINIAN PROGRAMME,GRANTS,REDACTED,REDACTED
03.05.2023,COMMUNITIES,REDACTED PERSONAL DATA,350,UKRAINIAN PROGRAMME,GRANTS,REDACTED,REDACTED
03.05.2023,COMMUNITIES,REDACTED PERSONAL DATA,350,UKRAINIAN PROGRAMME,GRANTS,REDACTED,REDACTED
03.05.2023,COMMUNITIES,REDACTED PERSONAL DATA,350,UKRAINIAN PROGRAMME,GRANTS,REDACTED,REDACTED
03.05.2023,COMMUNITIES,REDACTED PERSONAL DATA,350,UKRAINIAN PROGRAMME,GRANTS,REDACTED,REDACTED
03.05.2023,COMMUNITIES,REDACTED PERSONAL DATA,350,UKRAINIAN PROGRAMME,GRANTS,REDACTED,REDACTED
03.05.2023,COMMUNITIES,REDACTED PERSONAL DATA,350,UKRAINIAN PROGRAMME,GRANTS,REDACTED,REDACTED
03.05.2023,COMMUNITIES,REDACTED PERSONAL DATA,350,UKRAINIAN PROGRAMME,GRANTS,REDACTED,REDACTED
03.05.2023,COMMUNITIES,REDACTED PERSONAL DATA,350,UKRAINIAN PROGRAMME,GRANTS,REDACTED,REDACTED
03.05.2023,COMMUNITIES,REDACTED PERSONAL DATA,350,UKRAINIAN PROGRAMME,GRANTS,REDACTED,REDACTED
03.05.2023,COMMUNITIES,REDACTED PERSONAL DATA,350,UKRAINIAN PROGRAMME,GRANTS,REDACTED,REDACTED
03.05.2023,COMMUNITIES,REDACTED PERSONAL DATA,350,UKRAINIAN PROGRAMME,GRANTS,REDACTED,REDACTED
03.05.2023,COMMUNITIES,REDACTED PERSONAL DATA,350,UKRAINIAN PROGRAMME,GRANTS,REDACTED,REDACTED
03.05.2023,COMMUNITIES,REDACTED PERSONAL DATA,350,UKRAINIAN PROGRAMME,GRANTS,REDACTED,REDACTED
03.05.2023,COMMUNITIES,CROMWOOD HOUSING,450,UKRAINIAN REFUGEES,ACCOMMODATION CHARGES,5902577830,1000071450
03.05.2023,CORPORATE FACILITIES MANAGEMENT,RELIANCE HIGH-TECH LTD,"5,388.68",REPAIR AND MAINTENANCE SERVICES,MEDICAL / HEALTH & SAFETY SERVICES,5902577008,1000079374
03.05.2023,CUSTOMER AND EXCHEQUER,ROYAL MAIL GROUP LTD,315,ADMINISTRATIVE SUPPORT,POSTAGES,5902577855,1000061535
03.05.2023,CUSTOMER AND EXCHEQUER,GUYS & ST THOMAS NHS FOUNDATION TRUST,"21,050.00",CORONER'S,OTHER CONTRACTORS,5902577946,1765536
03.05.2023,CUSTOMER AND EXCHEQUER,SG PATH LTD,415.8,CORONER'S,PROFESSIONAL FEES,5902577912,1000077883
03.05.2023,CUSTOMER AND EXCHEQUER,SG PATH LTD,415.8,CORONER'S,PROFESSIONAL FEES,5902577913,1000077883
03.05.2023,CUSTOMER AND EXCHEQUER,SG PATH LTD,415.8,CORONER'S,PROFESSIONAL FEES,5902577916,1000077883
03.05.2023,CUSTOMER AND EXCHEQUER,SG PATH LTD,415.8,CORONER'S,PROFESSIONAL FEES,5902577923,1000077883
03.05.2023,CUSTOMER AND EXCHEQUER,SG PATH LTD,595.9,CORONER'S,PROFESSIONAL FEES,5902577921,1000077883
03.05.2023,CUSTOMER AND EXCHEQUER,HIAM ALI LTD,"7,354.90",CORONER'S,PROFESSIONAL FEES,5902577930,1000084044
03.05.2023,CUSTOMER AND EXCHEQUER,FORENSIC PATHOLOGY SERVICES,276.9,CORONER'S,PROFESSIONAL FEES,5902577966,1000086871
03.05.2023,CUSTOMER AND EXCHEQUER,FORENSIC PATHOLOGY SERVICES,276.9,CORONER'S,PROFESSIONAL FEES,5902577968,1000086871
03.05.2023,CUSTOMER AND EXCHEQUER,FORENSIC PATHOLOGY SERVICES,561.9,CORONER'S,PROFESSIONAL FEES,5902577964,1000086871
03.05.2023,CUSTOMER AND EXCHEQUER,FORENSIC PATHOLOGY SERVICES,561.9,CORONER'S,PROFESSIONAL FEES,5902577965,1000086871
03.05.2023,CUSTOMER AND EXCHEQUER,RELIANCE HIGH-TECH LTD,"-2,580.20",FC&P PROCESSING,OFFICE EXPENSES,2103655347,1000079374
03.05.2023,DIGITAL AND TECHNOLOGY,KEYSTREAM GROUP LIMITED,"3,300.00",IT MANAGEMENT,AGENCY STAFF,5902577711,1000089467
03.05.2023,ENVIRONMENT AND LEISURE,ASKEWS & HOLTS LIBRARY SERVICES LTD,624.46,CAPITAL PS (LEISURE),CAPITAL GRANTS,5902577958,1494168
03.05.2023,ENVIRONMENT AND LEISURE,TEN CONSTRUCTION LIMITED,625,CAPITAL PS (LEISURE),CONST'N MAIN CONTRACT - NON CERTIFICATED,2103658220,3000002276
03.05.2023,ENVIRONMENT AND LEISURE,TEN CONSTRUCTION LIMITED,"1,250.00",CAPITAL PS (LEISURE),CONST'N MAIN CONTRACT - NON CERTIFICATED,2103658220,3000002276
03.05.2023,ENVIRONMENT AND LEISURE,TEN CONSTRUCTION LIMITED,"2,485.00",CAPITAL PS (LEISURE),CONST'N MAIN CONTRACT - NON CERTIFICATED,2103658220,3000002276
03.05.2023,ENVIRONMENT AND LEISURE,TEN CONSTRUCTION LIMITED,"10,908.00",CAPITAL PS (LEISURE),CONST'N MAIN CONTRACT - NON CERTIFICATED,2103658220,3000002276
03.05.2023,ENVIRONMENT AND LEISURE,BRITISH GAS,456,SANDGATE STREET,GAS,5902577925,1000054825
03.05.2023,ENVIRONMENT DIRECTORATE,BRITISH TELECOM PLC,"1,348.00",CCTV,TELEPHONES (LAND LINES),5902577969,1756938
03.05.2023,ENVIRONMENT DIRECTORATE,LANDSCAPE SUPPLY COMPANY,379.7,GROUNDS MAINTENANCE - GENERAL,EQUIPMENT PURCHASE & REPAIR,5902577928,1000051937
03.05.2023,HOUSING,OCO LIMITED,"161,372.83",PAYMENTS CONTROL ACCOUNT - OCO,I-WORLD CONTRACTORS HOLDING ACCOUNT,5902577877,1006066
03.05.2023,HOUSING,SMITH & BYFORD LTD,"140,141.00",SMITH AND BYFORD,I-WORLD CONTRACTORS HOLDING ACCOUNT,5902577878,11212119
03.05.2023,HOUSING GENERAL FUND,AJM ADAPTIONS LTD,"10,153.00",CAPITAL PS (HOUSING GF),CAPITAL GRANTS,5902577869,1000080297
03.05.2023,HOUSING GENERAL FUND,COLT TECHNOLOGY SERVICES,"1,311.00",CAPITAL PS (STRAT SERV),ICT ACQUISITION,5902577917,1000009377
03.05.2023,HOUSING GENERAL FUND,KEYSTREAM GROUP LIMITED,"2,675.00",CAPITAL PS (STRAT SERV),ICT ACQUISITION,5902577712,1000089467
03.05.2023,HOUSING HRA,BAILY  GARNER LLP,"2,410.00",CAPITAL PS (HRA),CONSTRUCTION FEES  - EXTERNAL,5902577963,1000663
03.05.2023,HOUSING HRA,VPS (UK) LTD,467,CAPITAL PS (HRA),CONSTRUCTION FEES  - EXTERNAL,5902577832,1000040614
03.05.2023,HOUSING HRA,VPS (UK) LTD,722.25,CAPITAL PS (HRA),CONSTRUCTION FEES  - EXTERNAL,5902577832,1000040614
03.05.2023,HOUSING HRA,VPS (UK) LTD,858,CAPITAL PS (HRA),CONSTRUCTION FEES  - EXTERNAL,5902577833,1000040614
03.05.2023,HOUSING HRA,VPS (UK) LTD,"1,189.25",CAPITAL PS (HRA),CONSTRUCTION FEES  - EXTERNAL,5902577834,1000040614
03.05.2023,HOUSING HRA,RPS CONSULTING SERVICES LTD,"2,050.00",CAPITAL PS (HRA),CONSTRUCTION FEES  - EXTERNAL,5902577902,1000053170
03.05.2023,HOUSING HRA,SHERGROUP LTD,"3,410.00",CAPITAL PS (HRA),CONSTRUCTION FEES  - EXTERNAL,5902577848,1000087977
03.05.2023,HOUSING HRA,SHERGROUP LTD,"4,370.00",CAPITAL PS (HRA),CONSTRUCTION FEES  - EXTERNAL,5902577847,1000087977
03.05.2023,HOUSING HRA,WESTON WILLIAMSON + PARTNERS LLP,"8,000.00",CAPITAL PS (HRA),CONSTRUCTION FEES - ARCHITECT,5902577868,1000046660
03.05.2023,HOUSING HRA,EDF ENERGY PLC,"1,207.18",CAPITAL PS (HRA),UTILITIES INSTALLATION,5902577907,1008746
03.05.2023,HOUSING HRA,EDF ENERGY PLC,"1,838.02",CAPITAL PS (HRA),UTILITIES INSTALLATION,5902577905,1008746
03.05.2023,HOUSING HRA,EDF ENERGY PLC,"1,876.47",CAPITAL PS (HRA),UTILITIES INSTALLATION,5902577903,1008746
03.05.2023,HOUSING HRA,EDF ENERGY PLC,"2,088.42",CAPITAL PS (HRA),UTILITIES INSTALLATION,5902577892,1008746
03.05.2023,LAW AND GOVERNANCE,STARFISH SEARCH LTD,"4,000.00",LEGAL SVCES MANAGEMENT,RECRUITMENT ADVERTISING,5902577835,1000086886
03.05.2023,LEISURE DIRECTORATE,KENT COUNTY COUNCIL - LASER,"3,531.21",CREMATORIUM,ELECTRICITY,5902577914,1000012926
03.05.2023,LEISURE DIRECTORATE,WESTMINSTER WASTE,746,CREMATORIUM,OTHER CONTRACTORS,5902577800,1000080933
03.05.2023,LEISURE DIRECTORATE,ETHICS LEISURE LIMITED,"5,000.00",LEISURE INSOURCING MOBILISATION COST,PROFESSIONAL FEES,5902577948,1000089630
03.05.2023,LEISURE DIRECTORATE,DAVID CROFTS LTD,450,PLAY SOUTH,PROFESSIONAL FEES,5902577854,1000027194
03.05.2023,LEISURE DIRECTORATE,ASKEWS & HOLTS LIBRARY SERVICES LTD,309.25,STOCK SERVICES,BOOKS & PUBLICATIONS,5902577962,1494168
03.05.2023,LEISURE DIRECTORATE,ASKEWS & HOLTS LIBRARY SERVICES LTD,351.88,STOCK SERVICES,BOOKS & PUBLICATIONS,5902577958,1494168
03.05.2023,LEISURE DIRECTORATE,ASKEWS & HOLTS LIBRARY SERVICES LTD,"6,474.30",STOCK SERVICES,BOOKS & PUBLICATIONS,5902577960,1494168
03.05.2023,PLANNING & GROWTH,DISTRICT SURVEYORS ASSOCIATION LTD,320,CHARGEABLE BUILDING CONTROL,PROFESSIONAL FEES,5902577898,1000022645
03.05.2023,PLANNING & GROWTH,DISTRICT SURVEYORS ASSOCIATION LTD,400,CHARGEABLE BUILDING CONTROL,PROFESSIONAL FEES,5902577896,1000022645
03.05.2023,PLANNING & GROWTH,DISTRICT SURVEYORS ASSOCIATION LTD,"2,804.58",CHARGEABLE BUILDING CONTROL,PROFESSIONAL FEES,5902577895,1000022645
03.05.2023,RESIDENT SERVICES,DMS PROPERTIES SERVICES LTD,"1,116.00",TA PLACEMENTS,EXTERNAL AGENCIES AND BODIES,5902577852,1000081522
03.05.2023,RESIDENT SERVICES,CALLOW LOCKSMITHS LTD,356.47,TRA HALLS (REPAIRS),BUILDING R&M,5902577831,11179552
03.05.2023,RESIDENT SERVICES,TWO TOWERS HOUSING CO-OP LTD,"4,250.00",TWO TOWERS,M&M ALLOWANCE CO-OPS,5902577937,1000006843
03.05.2023,RESIDENT SERVICES HGF,ACORN PROPERTY MANAGEMENT,"2,076.92",HOMELESS PROJECTS,GRANTS,5902577956,1000084989
03.05.2023,RESIDENT SERVICES HGF,KINDLY PROPERTIES LTD,"37,342.25",NIGHTLY TA (NSC),EXTERNAL AGENCIES AND BODIES,5902577942,1000060734
03.05.2023,RESIDENT SERVICES HGF,JENORM LTD,"1,550.00",NIGHTLY TA (NSC),EXTERNAL AGENCIES AND BODIES,5902577955,1000088128
03.05.2023,RESIDENT SERVICES HGF,JENORM LTD,"1,782.50",NIGHTLY TA (NSC),EXTERNAL AGENCIES AND BODIES,5902577953,1000088128
03.05.2023,RESIDENT SERVICES HGF,STEF & PHILIPS LTD,576,NIGHTLY TA (NSC),EXTERNAL AGENCIES AND BODIES,5902577897,1000088522
03.05.2023,RESIDENT SERVICES HGF,STEF & PHILIPS LTD,"1,080.00",NIGHTLY TA (NSC),EXTERNAL AGENCIES AND BODIES,5902577899,1000088522
03.05.2023,RESIDENT SERVICES HGF,STEF & PHILIPS LTD,"1,116.00",NIGHTLY TA (NSC),EXTERNAL AGENCIES AND BODIES,5902577894,1000088522
04.05.2023,ADULT SOCIAL CARE,REDACTED PERSONAL DATA,283.45,APPOINTEESHIPS,OTHER PAYMENTS FOR CLIENTS,REDACTED,REDACTED
04.05.2023,ADULT SOCIAL CARE,THE DRIVE CARE HOMES LTD,"14,393.10",DISABILITIES LAC,EXTERNAL AGENCIES AND BODIES,2103658853,1000003889
04.05.2023,ADULT SOCIAL CARE,AMELIA'S HOUSE LIMITED,"13,500.00",DISABILITIES LAC,EXTERNAL AGENCIES AND BODIES,2103658847,1000083007
04.05.2023,ADULT SOCIAL CARE,THE DRIVE CARE HOMES LTD,"1,320.00",DISABILITIES LAC,OTHER PAYMENTS FOR CLIENTS,2103658848,1000003889
04.05.2023,ADULT SOCIAL CARE,THE DRIVE CARE HOMES LTD,"15,233.61",DISABILITIES LAC,RESIDENTIAL CARE,2103658854,1000003889
04.05.2023,ADULT SOCIAL CARE,CREATING CARE CHOICES LTD,"21,214.30",DISABILITIES LAC,RESIDENTIAL CARE,2103658856,1000076738
04.05.2023,ADULT SOCIAL CARE,HILLS & HEIGHTS SURREY LIMITED,"-12,695.04",DISCHARGE TO ACCESS,NURSING PLACEMENTS FEES,2103336819,1000085188
04.05.2023,ADULT SOCIAL CARE,SUPREME CARE SERVICES LTD,368.6,LD LTS 18-64,HOMECARE - C&V,2103658895,1000059416
04.05.2023,ADULT SOCIAL CARE,THE RATHBONE CENTRE,"-14,601.60",LD LTS 18-64,SUPPORTED LIVING,2103088128,1000050632
04.05.2023,ADULT SOCIAL CARE,FERROLAKE LTD,"-9,428.57",MEM LTS 65+,RESIDENTIAL CARE,2103300649,1000084626
04.05.2023,ADULT SOCIAL CARE,CARE RESOLUTION LTD,776.6,MH LTS 18-64,HOMECARE - SPOT,2103658910,1000087826
04.05.2023,ADULT SOCIAL CARE,HMT CARE LTD,"-12,985.16",MH LTS 18-64,RESIDENTIAL CARE,2102611715,1000075105
04.05.2023,ADULT SOCIAL CARE,SUPREME CARE SERVICES LTD,460.75,PHY LTS 18-64,HOMECARE - C&V,2103658901,1000059416
04.05.2023,ADULT SOCIAL CARE,SUPREME CARE SERVICES LTD,"1,087.37",PHY LTS 18-64,HOMECARE - C&V,2103658898,1000059416
04.05.2023,ADULT SOCIAL CARE,SUPREME CARE SERVICES LTD,"2,008.87",PHY LTS 18-64,HOMECARE - C&V,2103658903,1000059416
04.05.2023,ADULT SOCIAL CARE,CARE RESOLUTION LTD,"2,047.40",PHY LTS 18-64,HOMECARE - SPOT,2103658911,1000087826
04.05.2023,ADULT SOCIAL CARE,SUPREME CARE SERVICES LTD,299.49,PHY LTS 65+,HOMECARE - C&V,2103658902,1000059416
04.05.2023,ADULT SOCIAL CARE,SUPREME CARE SERVICES LTD,645.05,PHY LTS 65+,HOMECARE - C&V,2103658900,1000059416
04.05.2023,ADULT SOCIAL CARE,SUPREME CARE SERVICES LTD,"1,013.65",PHY LTS 65+,HOMECARE - C&V,2103658894,1000059416
04.05.2023,ADULT SOCIAL CARE,CARE RESOLUTION LTD,891.32,PHY LTS 65+,HOMECARE - C&V,2103658908,1000087826
04.05.2023,ADULT SOCIAL CARE,CARE RESOLUTION LTD,432.42,PHY LTS 65+,HOMECARE - SPOT,2103658909,1000087826
04.05.2023,ADULT SOCIAL CARE,CARE RESOLUTION LTD,"1,111.96",PHY LTS 65+,HOMECARE - SPOT,2103658913,1000087826
04.05.2023,ADULT SOCIAL CARE,CARE RESOLUTION LTD,"2,171.21",PHY LTS 65+,HOMECARE - SPOT,2103658912,1000087826
04.05.2023,ADULT SOCIAL CARE,TWINGLOBE CARE LTD,"-12,933.24",PHY LTS 65+,RESIDENTIAL CARE,2102966320,1000072071
04.05.2023,ADULT SOCIAL CARE,SUPREME CARE SERVICES LTD,792.49,PHY STS 65+,HOMECARE - IC,2103658904,1000059416
04.05.2023,ADULT SOCIAL CARE,GLEN CARE GROUP SPECIALIST CARE UNIT,"-33,134.64",PWLD RESIDENTIAL PLACEMENTS CC,RECOVERABLE COSTS INCL. HEALTH,2102559233,1000066487
04.05.2023,ADULT SOCIAL CARE,GLEN CARE GROUP SPECIALIST CARE UNIT,"-39,245.36",PWLD RESIDENTIAL PLACEMENTS CC,RESIDENTIAL CARE,2102559232,1000066487
04.05.2023,ADULT SOCIAL CARE,GUYS & ST THOMAS NHS FOUNDATION TRUST,"3,842.37",REABLEMENT SERVICE,EXTERNAL AGENCIES AND BODIES,5902577976,1765536
04.05.2023,ADULT SOCIAL CARE,MEDACS HOMECARE,259.5,SPECIALIST CARE,SECTION 17 PAYMENTS TO AGENCIES/CARERS,2103658815,11287415
04.05.2023,ADULT SOCIAL CARE,CONTACT PROFESSIONALS,777.8,SPECIALIST CARE,SECTION 17 PAYMENTS TO AGENCIES/CARERS,2103658820,1000057263
04.05.2023,ADULT SOCIAL CARE,SUPREME CARE SERVICES LTD,864,SPECIALIST CARE,SECTION 17 PAYMENTS TO AGENCIES/CARERS,2103658819,1000059416
04.05.2023,ADULT SOCIAL CARE,RESOURCES FOR AUTISM,448,SPECIALIST CARE,SECTION 17 PAYMENTS TO AGENCIES/CARERS,2103658821,1000062540
04.05.2023,ADULT SOCIAL CARE,UNIQUE PERSONNEL (UK) LTD,288.48,SPECIALIST CARE,SECTION 17 PAYMENTS TO AGENCIES/CARERS,2103658817,1000075451
04.05.2023,ADULT SOCIAL CARE,UNIQUE PERSONNEL (UK) LTD,360.6,SPECIALIST CARE,SECTION 17 PAYMENTS TO AGENCIES/CARERS,2103658818,1000075451
04.05.2023,ADULT SOCIAL CARE,WE ARE BEAMS LTD,"2,450.00",SPECIALIST CARE,SECTION 17 PAYMENTS TO AGENCIES/CARERS,2103658816,1000083431
04.05.2023,ADULT SOCIAL CARE,STREETSCENE ADDICTION RECOVERY LTD,"3,180.00",SUB LTS 18-64,RESIDENTIAL CARE,2103658915,11221787
04.05.2023,ADULT SOCIAL CARE,STREETSCENE ADDICTION RECOVERY LTD,"3,180.00",SUB LTS 18-64,RESIDENTIAL CARE,2103658916,11221787
04.05.2023,ASSET MANAGEMENT,DSI BILLING SERVICES LTD,"1,003.25",DESIGN & DELIVERY,PRINTING,5902578110,1000058640
04.05.2023,ASSET MANAGEMENT,PILLAR SOFTWARE LTD,"3,375.00",DESIGN & DELIVERY,PROFESSIONAL FEES,5902577622,1000018351
04.05.2023,ASSET MANAGEMENT,SANDERSONS BUILDING SERVICES LTD,"3,115.81",DISREPAIR,BUILDING R&M,2103658811,3000002065
04.05.2023,ASSET MANAGEMENT,SANDERSONS BUILDING SERVICES LTD,"4,437.95",DISREPAIR,BUILDING R&M,2103658917,3000002065
04.05.2023,ASSET MANAGEMENT,SANDERSONS BUILDING SERVICES LTD,"6,103.81",DISREPAIR,BUILDING R&M,2103658814,3000002065
04.05.2023,ASSET MANAGEMENT,SANDERSONS BUILDING SERVICES LTD,"6,710.55",DISREPAIR,BUILDING R&M,2103658812,3000002065
04.05.2023,ASSET MANAGEMENT,ARMINA LTD,"1,249.36",DISREPAIR,BUILDING R&M,2103658224,3000002121
04.05.2023,ASSET MANAGEMENT,ARMINA LTD,"1,250.07",DISREPAIR,BUILDING R&M,2103658225,3000002121
04.05.2023,ASSET MANAGEMENT,ARMINA LTD,"2,413.39",DISREPAIR,BUILDING R&M,2103655397,3000002121
04.05.2023,ASSET MANAGEMENT,CAMERON CONSULTING (UK) LTD,280,INVESTMENT MANAGER,PROFESSIONAL FEES,5902578094,1000064510
04.05.2023,CENTRAL FUNCTIONS,KENT COUNTY COUNCIL - LASER,"155,437.10",HEATING ACCOUNT,ELECTRICITY,5902577081,1000012926
04.05.2023,CENTRAL FUNCTIONS,KENT COUNTY COUNCIL - LASER,"1,531,259.24",HEATING ACCOUNT,GAS,5902577082,1000012926
04.05.2023,CENTRAL FUNCTIONS,ENVIRONMENT AGENCY,299.15,HEATING ACCOUNT,WATER,5902577995,1000007201
04.05.2023,CHIEF EXECUTIVE,ALLIES AND MORRISON PARTNERSHIP,"5,000.00",CAPITAL PS (REGEN),CONSTRUCTION FEES,5902578150,1000070515
04.05.2023,CHILDREN AND ADULT,BLOOM PROCUREMENT SERVICES LTD,"3,950.00",CAPITAL PS (EDUCATION),CONSTRUCTION FEES  - EXTERNAL,5902577233,1000082531
04.05.2023,CHILDREN AND FAMILIES,REDACTED PERSONAL DATA,280,ADOPTION SUPP FUND 2,EXTERNAL AGENCIES AND BODIES,REDACTED,REDACTED
04.05.2023,CHILDREN AND FAMILIES,REDACTED PERSONAL DATA,375,ADOPTION SUPP FUND 2,EXTERNAL AGENCIES AND BODIES,REDACTED,REDACTED
04.05.2023,CHILDREN AND FAMILIES,STONELAKE LONDON LTD,"4,080.00",CHILDREN�S RESID,RESIDENTIAL CARE,2103658849,1000080075
04.05.2023,CHILDREN AND FAMILIES,STONELAKE LONDON LTD,"18,000.00",CHILDREN�S RESID,RESIDENTIAL CARE,2103658851,1000080075
04.05.2023,CHILDREN AND FAMILIES,247 BLUEBELL CARE LIMITED,"39,220.07",CHILDREN�S RESID,RESIDENTIAL CARE,2103658852,1000087186
04.05.2023,CHILDREN AND FAMILIES,CAMERON & COOPER LIMITED,"17,400.00",CHILDREN�S RESID,RESIDENTIAL CARE,2103658858,1000087598
04.05.2023,CHILDREN AND FAMILIES,MONTAGE SERVICES LTD,"33,974.56",CHILDREN�S RESID,RESIDENTIAL CARE,2103658855,1000089446
04.05.2023,CHILDREN AND FAMILIES,AEGIS 24/7 LTD,"59,940.50",CHILDREN�S RESID,RESIDENTIAL CARE,2103658850,1000089533
04.05.2023,CHILDREN AND FAMILIES,SOLACE CARE CLAYHALL LTD,"25,285.80",CHILDREN�S RESID,RESIDENTIAL CARE,2103658857,1000089575
04.05.2023,CHILDREN AND FAMILIES,CONTACT PROFESSIONALS,728,CONTACT SERVICE,OTHER PAYMENTS FOR CLIENTS,2103658824,1000057263
04.05.2023,CHILDREN AND FAMILIES,CONTACT PROFESSIONALS,910,CONTACT SERVICE,OTHER PAYMENTS FOR CLIENTS,2103658822,1000057263
04.05.2023,CHILDREN AND FAMILIES,CONTACT PROFESSIONALS,910,CONTACT SERVICE,OTHER PAYMENTS FOR CLIENTS,2103658823,1000057263
04.05.2023,CHILDREN AND FAMILIES,TAVISTOCK & PORTMAN NHS FOUNDATION TRUST ,"17,190.00",FDAC,EXTERNAL AGENCIES AND BODIES,5902578006,1991321
04.05.2023,CHILDREN AND FAMILIES,FAMILY FOSTERING LTD,"4,453.20",FRIENDS & FAMILY FOSTERING,EXTERNAL AGENCIES AND BODIES,2103658846,1000075179
04.05.2023,CHILDREN AND FAMILIES,REGIONAL FOSTERING SERVICES LTD,"3,229.67",FRIENDS & FAMILY FOSTERING,EXTERNAL AGENCIES AND BODIES,2103658843,1000080112
04.05.2023,CHILDREN AND FAMILIES,REGIONAL FOSTERING SERVICES LTD,"3,399.64",FRIENDS & FAMILY FOSTERING,EXTERNAL AGENCIES AND BODIES,2103658842,1000080112
04.05.2023,CHILDREN AND FAMILIES,FAMILY FIRST FOSTERING LTD,"3,874.97",FRIENDS & FAMILY FOSTERING,EXTERNAL AGENCIES AND BODIES,2103658844,1000080631
04.05.2023,CHILDREN AND FAMILIES,FAMILY FIRST FOSTERING LTD,"4,217.74",FRIENDS & FAMILY FOSTERING,EXTERNAL AGENCIES AND BODIES,2103658845,1000080631
04.05.2023,CHILDREN AND FAMILIES,DIVERSITY FOSTER CARE LTD,"3,976.16",FRIENDS & FAMILY FOSTERING,EXTERNAL AGENCIES AND BODIES,2103658839,1000081399
04.05.2023,CHILDREN AND FAMILIES,FAMILY WORKS FOSTERING LTD,"3,441.31",FRIENDS & FAMILY FOSTERING,EXTERNAL AGENCIES AND BODIES,2103658838,1000082529
04.05.2023,CHILDREN AND FAMILIES,FAMILY WORKS FOSTERING LTD,"4,457.10",FRIENDS & FAMILY FOSTERING,EXTERNAL AGENCIES AND BODIES,2103658837,1000082529
04.05.2023,CHILDREN AND FAMILIES,FLOURISH FOSTERING LTD,"4,223.91",FRIENDS & FAMILY FOSTERING,EXTERNAL AGENCIES AND BODIES,2103658833,1000084796
04.05.2023,CHILDREN AND FAMILIES,FLOURISH FOSTERING LTD,"4,433.01",FRIENDS & FAMILY FOSTERING,EXTERNAL AGENCIES AND BODIES,2103658834,1000084796
04.05.2023,CHILDREN AND FAMILIES,FLOURISH FOSTERING LTD,"4,523.49",FRIENDS & FAMILY FOSTERING,EXTERNAL AGENCIES AND BODIES,2103658835,1000084796
04.05.2023,CHILDREN AND FAMILIES,FLOURISH FOSTERING LTD,"4,745.36",FRIENDS & FAMILY FOSTERING,EXTERNAL AGENCIES AND BODIES,2103658836,1000084796
04.05.2023,CHILDREN AND FAMILIES,SUBARI FOSTER CARE LIMITED,"3,085.50",FRIENDS & FAMILY FOSTERING,EXTERNAL AGENCIES AND BODIES,2103658841,1000088796
04.05.2023,CHILDREN AND FAMILIES,SUBARI FOSTER CARE LIMITED,"5,571.30",FRIENDS & FAMILY FOSTERING,EXTERNAL AGENCIES AND BODIES,2103658840,1000088796
04.05.2023,CHILDREN AND FAMILIES,HOME START,"25,000.00",MGMT & PARENTING,EXTERNAL AGENCIES AND BODIES,5902577990,1000008423
04.05.2023,CHILDREN AND FAMILIES,ZENITH CARS LTD,380,P & R CARE TEAM,CLIENT TRANSPORT,5902578082,1000070570
04.05.2023,CHILDREN AND FAMILIES,THE SALVATION ARMY,"1,581.31",SEMI-IND CARELEAVERS,EXTERNAL AGENCIES AND BODIES,2103658890,1000016253
04.05.2023,CHILDREN AND FAMILIES,CAMBIAN WHINFELL SCHOOL LTD,"22,126.53",SEMI-IND CARELEAVERS,EXTERNAL AGENCIES AND BODIES,2103658891,1000074734
04.05.2023,CHILDREN AND FAMILIES,SITTARA LTD,"1,410.00",SEMI-IND CARELEAVERS,EXTERNAL AGENCIES AND BODIES,2103658889,1000080857
04.05.2023,CHILDREN AND FAMILIES,MX ESTATES LTD,"1,485.00",SEMI-IND CARELEAVERS,EXTERNAL AGENCIES AND BODIES,2103658882,1000083639
04.05.2023,CHILDREN AND FAMILIES,PLACE OF PROGRESS LTD,-441.52,SEMI-IND CARELEAVERS,EXTERNAL AGENCIES AND BODIES,5902578010,1000086889
04.05.2023,CHILDREN AND FAMILIES,PLACE OF PROGRESS LTD,"1,912.00",SEMI-IND CARELEAVERS,EXTERNAL AGENCIES AND BODIES,5902578008,1000086889
04.05.2023,CHILDREN AND FAMILIES,DREAMFO HOUSING LTD,"3,471.30",SEMI-IND CARELEAVERS,EXTERNAL AGENCIES AND BODIES,2103658880,1000087273
04.05.2023,CHILDREN AND FAMILIES,DREAMFO HOUSING LTD,"3,471.30",SEMI-IND CARELEAVERS,EXTERNAL AGENCIES AND BODIES,2103658884,1000087273
04.05.2023,CHILDREN AND FAMILIES,DREAMFO HOUSING LTD,"5,785.50",SEMI-IND CARELEAVERS,EXTERNAL AGENCIES AND BODIES,2103658885,1000087273
04.05.2023,CHILDREN AND FAMILIES,THE SALVATION ARMY,886.32,SEMI-IND LAC 16-17,EXTERNAL AGENCIES AND BODIES,2103658871,1000016253
04.05.2023,CHILDREN AND FAMILIES,THE SALVATION ARMY,"1,083.28",SEMI-IND LAC 16-17,EXTERNAL AGENCIES AND BODIES,2103658879,1000016253
04.05.2023,CHILDREN AND FAMILIES,GOLDEN CARE ESTATES LTD,"46,174.29",SEMI-IND LAC 16-17,EXTERNAL AGENCIES AND BODIES,2103658864,1000081160
04.05.2023,CHILDREN AND FAMILIES,OPENMINDS SOCIAL CARE,"4,178.78",SEMI-IND LAC 16-17,EXTERNAL AGENCIES AND BODIES,2103658875,1000085800
04.05.2023,CHILDREN AND FAMILIES,COMMITTED CARE HOUSING,"3,805.00",SEMI-IND LAC 16-17,EXTERNAL AGENCIES AND BODIES,2103658870,1000086257
04.05.2023,CHILDREN AND FAMILIES,COMMITTED CARE HOUSING,"19,910.00",SEMI-IND LAC 16-17,EXTERNAL AGENCIES AND BODIES,2103658867,1000086257
04.05.2023,CHILDREN AND FAMILIES,PLACE OF PROGRESS LTD,"3,800.00",SEMI-IND LAC 16-17,EXTERNAL AGENCIES AND BODIES,2103658863,1000086889
04.05.2023,CHILDREN AND FAMILIES,DREAMFO HOUSING LTD,"3,214.16",SEMI-IND LAC 16-17,EXTERNAL AGENCIES AND BODIES,2103658866,1000087273
04.05.2023,CHILDREN AND FAMILIES,DREAMFO HOUSING LTD,"3,214.16",SEMI-IND LAC 16-17,EXTERNAL AGENCIES AND BODIES,2103658869,1000087273
04.05.2023,CHILDREN AND FAMILIES,DREAMFO HOUSING LTD,"3,214.16",SEMI-IND LAC 16-17,EXTERNAL AGENCIES AND BODIES,2103658878,1000087273
04.05.2023,CHILDREN AND FAMILIES,PAVE CARE LTD,"4,697.06",SEMI-IND LAC 16-17,EXTERNAL AGENCIES AND BODIES,2103658860,1000089134
04.05.2023,CHILDREN AND FAMILIES,ELEVEN D'S LTD,"4,500.00",SEMI-IND LAC 16-17,EXTERNAL AGENCIES AND BODIES,2103658862,1000089531
04.05.2023,CHILDREN AND FAMILIES,OPENMINDS SOCIAL CARE,261.43,SEMI-IND LAC 16-17,OTHER PAYMENTS FOR CLIENTS,2103658874,1000085800
04.05.2023,CHILDREN AND FAMILIES,DREAMFO HOUSING LTD,257.14,SEMI-IND LAC 16-17,OTHER PAYMENTS FOR CLIENTS,2103658865,1000087273
04.05.2023,CHILDREN AND FAMILIES,DREAMFO HOUSING LTD,257.14,SEMI-IND LAC 16-17,OTHER PAYMENTS FOR CLIENTS,2103658868,1000087273
04.05.2023,CHILDREN AND FAMILIES,DREAMFO HOUSING LTD,257.14,SEMI-IND LAC 16-17,OTHER PAYMENTS FOR CLIENTS,2103658877,1000087273
04.05.2023,CHILDREN AND FAMILIES,PAVE CARE LTD,257.14,SEMI-IND LAC 16-17,OTHER PAYMENTS FOR CLIENTS,2103658859,1000089134
04.05.2023,CHILDREN AND FAMILIES,ELEVEN D'S LTD,390,SEMI-IND LAC 16-17,OTHER PAYMENTS FOR CLIENTS,2103658876,1000089531
04.05.2023,CHILDREN AND FAMILIES,REDACTED PERSONAL DATA,961.35,SPECIAL GUARDIANSHIP,PAYMENTS TO CARERS,REDACTED,REDACTED
04.05.2023,CHILDREN AND FAMILIES,LINDA COBB,500,SSCP TRAINING,TRAINING,5902578123,1000029191
04.05.2023,CHILDREN AND FAMILIES,FLOURISH FOSTERING LTD,"4,422.60",STAYPUT- FOST CARERS,EXTERNAL AGENCIES AND BODIES,2103658881,1000084796
04.05.2023,CHILDREN AND FAMILIES,ZENITH CARS LTD,390,TEAM A,CLIENT TRANSPORT,5902578083,1000070570
04.05.2023,CHILDREN AND FAMILIES,ZENITH CARS LTD,"1,100.00",TEAM A,CLIENT TRANSPORT,5902578076,1000070570
04.05.2023,CHILDREN AND FAMILIES,ZENITH CARS LTD,"1,605.00",TEAM B,CLIENT TRANSPORT,5902578076,1000070570
04.05.2023,CHILDREN AND FAMILIES,ZENITH CARS LTD,"1,775.00",TEAM C,CLIENT TRANSPORT,5902578076,1000070570
04.05.2023,CHILDREN AND FAMILIES,ZENITH CARS LTD,"1,575.00",TEAM D,CLIENT TRANSPORT,5902578076,1000070570
04.05.2023,CHILDREN AND FAMILIES,OWNLIFE LTD,"1,815.00",UASC CARELEAVERS,EXTERNAL AGENCIES AND BODIES,2103658883,1000056219
04.05.2023,CHILDREN AND FAMILIES,DREAMFO HOUSING LTD,"3,214.16",UASC CARELEAVERS,EXTERNAL AGENCIES AND BODIES,2103658887,1000087273
04.05.2023,CHILDREN AND FAMILIES,DREAMFO HOUSING LTD,257.14,UASC CARELEAVERS,OTHER PAYMENTS FOR CLIENTS,2103658888,1000087273
04.05.2023,CHILDREN AND FAMILIES,ROADWORKS MEDIA,"13,000.00",YJS MGMT & SUPPORT,EXTERNAL AGENCIES AND BODIES,5902578089,1000081375
04.05.2023,COMMUNITIES,SUPREME CARE SERVICES LTD,368.6,NO RECOURSE TO PUBLIC FUNDS,HOMECARE - C&V,2103658907,1000059416
04.05.2023,COMMUNITIES,SUPREME CARE SERVICES LTD,903.07,NO RECOURSE TO PUBLIC FUNDS,HOMECARE - C&V,2103658906,1000059416
04.05.2023,COMMUNITIES,SUPREME CARE SERVICES LTD,"1,290.10",NO RECOURSE TO PUBLIC FUNDS,HOMECARE - C&V,2103658905,1000059416
04.05.2023,COMMUNITIES,SUPREME CARE SERVICES LTD,"1,492.83",NO RECOURSE TO PUBLIC FUNDS,HOMECARE - C&V,2103658897,1000059416
04.05.2023,COMMUNITIES,SUPREME CARE SERVICES LTD,"1,529.69",NO RECOURSE TO PUBLIC FUNDS,HOMECARE - C&V,2103658899,1000059416
04.05.2023,COMMUNITIES,SUPREME CARE SERVICES LTD,"3,340.44",NO RECOURSE TO PUBLIC FUNDS,HOMECARE - C&V,2103658896,1000059416
04.05.2023,COMMUNITIES,LONGFIELD T&RA,"4,350.00",NORTH EAST,GRANTS,5902577177,1000059281
04.05.2023,COMMUNITIES,SHOUTOUTUK LTD.,"4,000.00",PREVENT,PROFESSIONAL FEES,5902577993,1000086694
04.05.2023,COMMUNITIES,REDACTED PERSONAL DATA,350,UKRAINIAN PROGRAMME,GRANTS,REDACTED,REDACTED
04.05.2023,COMMUNITIES,REDACTED PERSONAL DATA,350,UKRAINIAN PROGRAMME,GRANTS,REDACTED,REDACTED
04.05.2023,COMMUNITIES,REDACTED PERSONAL DATA,350,UKRAINIAN PROGRAMME,GRANTS,REDACTED,REDACTED
04.05.2023,COMMUNITIES,REDACTED PERSONAL DATA,"1,400.00",UKRAINIAN REFUGEES,MISCELLANEOUS EXPENSES,REDACTED,REDACTED
04.05.2023,CORPORATE FACILITIES MANAGEMENT,ROYAL MAIL GROUP LTD,"1,552.39",160 TOOLEY ST.,POSTAGES,5902577017,1000061535
04.05.2023,CORPORATE FACILITIES MANAGEMENT,CASTLE WATER LTD,723.24,160 TOOLEY ST.,WATER,5902578095,1000078867
04.05.2023,CUSTOMER AND EXCHEQUER,NEC SOFTWARE SOLUTIONS UK LTD,"15,000.00",ADMINISTRATIVE SUPPORT,SOFTWARE,5902578124,1000087043
04.05.2023,CUSTOMER AND EXCHEQUER,MRO PEOPLE LTD,765,ADMINISTRATIVE SUPPORT,TRAINING,5902578096,1000083017
04.05.2023,CUSTOMER AND EXCHEQUER,VALTECH LTD,361.56,BLUE BADGES,MATERIALS,5902577987,1000082245
04.05.2023,CUSTOMER AND EXCHEQUER,CIVICA UK LTD,"1,650.00",CORONER'S,PROFESSIONAL FEES,5902578107,1730625
04.05.2023,CUSTOMER AND EXCHEQUER,BUDGET CARPETS,262.5,SESS,OTHER PAYMENTS FOR CLIENTS,5902578132,11319076
04.05.2023,CUSTOMER AND EXCHEQUER,BUDGET CARPETS,279.17,SESS,OTHER PAYMENTS FOR CLIENTS,5902578129,11319076
04.05.2023,CUSTOMER AND EXCHEQUER,BUDGET CARPETS,279.17,SESS,OTHER PAYMENTS FOR CLIENTS,5902578141,11319076
04.05.2023,CUSTOMER AND EXCHEQUER,BUDGET CARPETS,287.5,SESS,OTHER PAYMENTS FOR CLIENTS,5902578130,11319076
04.05.2023,CUSTOMER AND EXCHEQUER,BUDGET CARPETS,312.5,SESS,OTHER PAYMENTS FOR CLIENTS,5902578144,11319076
04.05.2023,CUSTOMER AND EXCHEQUER,BUDGET CARPETS,337.5,SESS,OTHER PAYMENTS FOR CLIENTS,5902578135,11319076
04.05.2023,CUSTOMER AND EXCHEQUER,BUDGET CARPETS,370.83,SESS,OTHER PAYMENTS FOR CLIENTS,5902578127,11319076
04.05.2023,CUSTOMER AND EXCHEQUER,BUDGET CARPETS,495.83,SESS,OTHER PAYMENTS FOR CLIENTS,5902578125,11319076
04.05.2023,DSG,THE COMPLETE WORKS INDEPENDENT SCHOOL,"7,905.00",ALTERNATIVE PROVISION,EXTERNAL AGENCIES AND BODIES,5902577978,1000033256
04.05.2023,DSG,FLEET TUTORS,"2,221.00",VIRTUAL SCHOOL PP,EXTERNAL AGENCIES AND BODIES,5902578068,1000044820
04.05.2023,ENVIRONMENT AND LEISURE,LUGARD GARDENING GROUP,"2,500.00",CAPITAL PS (LEISURE),CAPITAL GRANTS,5902577986,1000089540
04.05.2023,ENVIRONMENT AND LEISURE,UNIFIED CONSULTANCY LTD,"2,962.93",CAPITAL PS (LEISURE),CONSTRUCTION,5902578103,1000081827
04.05.2023,ENVIRONMENT AND LEISURE,IB CDM LTD,835,CAPITAL PS (LEISURE),CONSTRUCTION FEES,5902578007,1000081479
04.05.2023,ENVIRONMENT AND LEISURE,TRANSPORT FOR LONDON,"3,205.00",CAPITAL PS (LEISURE),CONSTRUCTION FEES  - EXTERNAL,5902577582,1000023986
04.05.2023,ENVIRONMENT AND LEISURE,TRANSPORT FOR LONDON,"5,052.88",CAPITAL PS (LEISURE),CONSTRUCTION FEES  - EXTERNAL,5902577582,1000023986
04.05.2023,ENVIRONMENT AND LEISURE,UNIFIED CONSULTANCY LTD,750,CAPITAL PS (LEISURE),CONSTRUCTION FEES  - EXTERNAL,5902578099,1000081827
04.05.2023,ENVIRONMENT AND LEISURE,INTO SERVICES LONDON LTD,276,CAPITAL PS (LEISURE),CONSTRUCTION MAIN CONTRACT -CERTIFICATED,5902577182,1000059328
04.05.2023,ENVIRONMENT AND LEISURE,INTO SERVICES LONDON LTD,"2,825.00",CAPITAL PS (LEISURE),CONSTRUCTION MAIN CONTRACT -CERTIFICATED,5902577119,1000059328
04.05.2023,ENVIRONMENT AND LEISURE,SMI INT GROUP LTD,345,MANAGEMENT TEAM,MATERIALS,5902578014,1000076606
04.05.2023,ENVIRONMENT AND LEISURE,LAND REGISTRY,285,SALIX PROJECT NO. 35,PROFESSIONAL FEES,6102085380,DIRECT DEBIT PAYMENT
04.05.2023,ENVIRONMENT DIRECTORATE,ACTIVE MED SUPPLIES LTD,337.95,CCTV,PARKING CHARGES,5902577423,1000086254
04.05.2023,ENVIRONMENT DIRECTORATE,BOC LTD,426.71,GRANGE DOORS,MATERIALS,5902578137,1001589
04.05.2023,ENVIRONMENT DIRECTORATE,CITY OF WESTMINSTER,"10,000.00",PROJECT SUPPORT,SUBSCRIPTIONS,5902578147,1000040464
04.05.2023,ENVIRONMENT DIRECTORATE,SPECIALIST COATINGS INTERNATIONAL LTD,960,STREET CLEANING-GENERAL,MATERIALS,5902577370,1000085816
04.05.2023,FINANCE & GOVERNANCE,LGA,"66,709.67",CORPORATE MANAGEMENT,SUBSCRIPTIONS,6102085828,DIRECT DEBIT PAYMENT
04.05.2023,HOUSING GENERAL FUND,UNIFIED CONSULTANCY LTD,"1,515.00",CAPITAL PS (HOUSING GF),ICT ACQUISITION,5902578119,1000081827
04.05.2023,HOUSING GENERAL FUND,UNIFIED CONSULTANCY LTD,"3,554.27",CAPITAL PS (HOUSING GF),ICT ACQUISITION,5902578104,1000081827
04.05.2023,HOUSING HRA,NIBLOCK (BUILDERS) LTD,"68,809.49",CAPITAL PS (HRA),CONSTRUCTION,2103658810,3000000235
04.05.2023,HOUSING HRA,NATHAN LICHFIELD & PARTNERS,"1,450.00",CAPITAL PS (HRA),CONSTRUCTION FEES,5902578028,1000043324
04.05.2023,HOUSING HRA,CALFORD SEADEN LLP,"1,260.00",CAPITAL PS (HRA),CONSTRUCTION FEES  - EXTERNAL,5902577599,1061592
04.05.2023,HOUSING HRA,CALFORD SEADEN LLP,"3,700.00",CAPITAL PS (HRA),CONSTRUCTION FEES  - EXTERNAL,5902578018,1061592
04.05.2023,HOUSING HRA,LONDON UNDERGROUND LTD,351,CAPITAL PS (HRA),CONSTRUCTION FEES  - EXTERNAL,5902578026,1000059727
04.05.2023,HOUSING HRA,SILVER DCC LTD,"2,445.94",CAPITAL PS (HRA),CONSTRUCTION FEES  - EXTERNAL,5902577498,1000087546
04.05.2023,HOUSING HRA,BAILY  GARNER LLP,"5,378.34",CAPITAL PS (HRA),CONSTRUCTION FEES - EMPLOYERS AGENT,5902577970,1000663
04.05.2023,HOUSING HRA,CALFORD SEADEN LLP,"1,550.00",CAPITAL PS (HRA),CONSTRUCTION FEES - EMPLOYERS AGENT,5902577248,1061592
04.05.2023,HOUSING HRA,FAITHFUL & GOULD,598.81,CAPITAL PS (HRA),CONSTRUCTION FEES - EMPLOYERS AGENT,5902578122,1000061390
04.05.2023,HOUSING HRA,FAITHFUL & GOULD,"26,226.50",CAPITAL PS (HRA),CONSTRUCTION FEES - EMPLOYERS AGENT,5902578122,1000061390
04.05.2023,HOUSING HRA,SHARPE PRITCHARD LLP,768.8,CAPITAL PS (HRA),CONSTRUCTION FEES - LEGAL,5902578038,1790085
04.05.2023,HOUSING HRA,SHARPE PRITCHARD LLP,"1,910.00",CAPITAL PS (HRA),CONSTRUCTION FEES - LEGAL,5902578128,1790085
04.05.2023,HOUSING HRA,BRITISH GAS,273.72,CAPITAL PS (HRA),CONSTRUCTION SITE COSTS,5902578048,1000062503
04.05.2023,HOUSING HRA,BRITISH GAS,345.84,CAPITAL PS (HRA),CONSTRUCTION SITE COSTS,5902578045,1000062503
04.05.2023,HOUSING HRA,CARTER JONAS LLP,700,CAPITAL PS (HRA),LAND & BUILDINGS ACQUISITION FEES,5902578077,1000073124
04.05.2023,HUMAN RESOURCES,PENNA PLC,"8,466.66",HR PAYROLL COSTS,OTHER EMPLOYEE EXPENSES,5902578001,1000050664
04.05.2023,HUMAN RESOURCES,SHERRIDAN HUGHES,"2,149.00",OCCUPATIONAL ASSESSMENT,PROFESSIONAL FEES,5902577991,1000074250
04.05.2023,HUMAN RESOURCES,COMENSURA LTD,"759,426.31",WEEKLY PAYMENTS,AGENCY STAFF,5902578085,1000051261
04.05.2023,LAW AND GOVERNANCE,CORPORATE DOCUMENT SERVICES LTD,"2,954.21",CONSTITUTIONAL TEAM,PRINTING,5902578120,11324274
04.05.2023,LEISURE DIRECTORATE,A.G.A. GROUP CONSULTANCY LIMITED,"13,650.00",BURGESS AREA TEAM,GROUNDS MAINTENANCE,5902577428,1000088660
04.05.2023,LEISURE DIRECTORATE,FINDEL EDUCATION LTD,379.99,DAMILOLA TAYLOR CENTRE,CATERING MATERIALS & SUPPLIES,5902578060,1000011998
04.05.2023,LEISURE DIRECTORATE,WEB LABS LTD,"3,600.00",DAMILOLA TAYLOR CENTRE,CONSULTANTS SERVICES,5902578012,1000039819
04.05.2023,LEISURE DIRECTORATE,THE CHELSEA FOOD AND WINE COMPANY LTD,264.1,JOHN HARVARD LIBRARY,BOOKS & PUBLICATIONS,5902578063,1000088548
04.05.2023,LEISURE DIRECTORATE,SAFESTORE LTD (SLOUGH),585.72,LIBRARIES DEVELOPMENT,EXTERNAL AGENCIES AND BODIES,5902578116,1000088931
04.05.2023,LEISURE DIRECTORATE,SAFESTORE LTD (SLOUGH),585.72,LIBRARIES DEVELOPMENT,EXTERNAL AGENCIES AND BODIES,5902578117,1000088931
04.05.2023,LEISURE DIRECTORATE,FILM LONDON,395,LOCAL HISTORY LIBRARY,INFORMATION MANAGEMENT,5902577975,1000085975
04.05.2023,LEISURE DIRECTORATE,CASTLE WATER LTD,389.71,SDM BUDGET,WATER,5902578133,1000078867
04.05.2023,LEISURE DIRECTORATE,CASTLE WATER LTD,"1,639.29",SDM BUDGET,WATER,5902578134,1000078867
04.05.2023,NEW BUILD,BEACON PARTNERSHIP LLP,697.5,DEVELOPMENT DELIVERY,PROFESSIONAL FEES,5902578031,1000082300
04.05.2023,NEW BUILD,BEACON PARTNERSHIP LLP,"2,552.50",DEVELOPMENT DELIVERY,PROFESSIONAL FEES,5902578031,1000082300
04.05.2023,PLANNING & GROWTH,HERITAGE OF LONDON TRUST  LTD,500,DESIGN & CONSERVATION,PROFESSIONAL FEES,5902578148,1000067093
04.05.2023,RESIDENT SERVICES,BROWNING EST MGMT ASSN,470.92,BROWNING EMB,M&M ALLOWANCE CO-OPS,5902577351,1000059362
04.05.2023,RESIDENT SERVICES,CASTLE WATER LTD,325.07,TA HOSTELS,ELECTRICITY,5902578037,1000078867
04.05.2023,RESIDENT SERVICES,SHERGROUP LTD,"1,040.00",TRA HALLS (REPAIRS),SECURITY SERVICES,5902577997,1000087977
04.05.2023,RESIDENT SERVICES,SHERGROUP LTD,"1,344.00",TRA HALLS (REPAIRS),SECURITY SERVICES,5902577999,1000087977
04.05.2023,RESIDENT SERVICES HGF,HELP2RENT PROPERTY MANAGEMENT LTD,"3,271.15",HOMELESS PROJECTS,GRANTS,5902578009,1000082282
04.05.2023,RESIDENT SERVICES HGF,OMNIA HOUSING LTD,"1,933.12",HOMELESS PROJECTS,GRANTS,5902577972,1000083861
04.05.2023,RESIDENT SERVICES HGF,SMARTLET ESTATES LTD,"2,659.41",HOMELESS PROJECTS,GRANTS,5902577980,1000086913
04.05.2023,RESIDENT SERVICES HGF,BARNABY'S PROPERTY LETTINGS LTD,"2,485.44",HOMELESS PROJECTS,GRANTS,5902577982,1000088439
04.05.2023,RESIDENT SERVICES HGF,ABUNDANT LIFE HOUSING,"4,400.00",HOMELESS PROJECTS,GRANTS,5902577106,1000089440
04.05.2023,RESIDENT SERVICES HGF,QUINARY LTD,"10,912.00",NIGHTLY TA (NSC),EXTERNAL AGENCIES AND BODIES,5902578027,1000029106
04.05.2023,RESIDENT SERVICES HGF,SHUTTLEWORTH (UK) LTD,"25,152.00",NIGHTLY TA (NSC),EXTERNAL AGENCIES AND BODIES,5902578029,1000056468
04.05.2023,RESIDENT SERVICES HGF,TAAKSVALE HOUSING LTD,"36,570.80",NIGHTLY TA (NSC),EXTERNAL AGENCIES AND BODIES,5902578013,1000073665
04.05.2023,RESIDENT SERVICES HGF,TAAKSVALE HOUSING LTD,"43,884.39",NIGHTLY TA (NSC),EXTERNAL AGENCIES AND BODIES,5902577977,1000073665
04.05.2023,RESIDENT SERVICES HGF,STEF & PHILIPS LTD,"54,319.00",NIGHTLY TA (NSC),EXTERNAL AGENCIES AND BODIES,5902578084,1000088522
04.05.2023,RESIDENT SERVICES HGF,IDEAL QUARTERS LTD,"-1,457.96",PSL PLACEMENTS,EXTERNAL AGENCIES AND BODIES,5902578114,1000079241
04.05.2023,RESIDENT SERVICES HGF,IDEAL QUARTERS LTD,"3,488.72",PSL PLACEMENTS,EXTERNAL AGENCIES AND BODIES,5902578131,1000079241
04.05.2023,RESIDENT SERVICES HGF,IDEAL QUARTERS LTD,"87,421.97",PSL PLACEMENTS,EXTERNAL AGENCIES AND BODIES,5902578112,1000079241
04.05.2023,SBS SUPPORT,LOWER MEAD LTD,"3,355.00",REORGANISATION COSTS,PROFESSIONAL FEES,5902578050,1000082508
04.05.2023,SBS SUPPORT,LOWER MEAD LTD,"3,355.00",REORGANISATION COSTS,PROFESSIONAL FEES,5902578051,1000082508
05.05.2023,ADULT SOCIAL CARE,KENT COUNTY COUNCIL - LASER,"1,082.05",BOWLEY CLOSE,ELECTRICITY,5902577203,1000012926
05.05.2023,ADULT SOCIAL CARE,PEOPLE PLUS GROUP LTD (INDEPENDENT LIVING SERVICES),"1,912.00",CHILDREN PHB - SEL ICB,PAYMENTS TO CLIENTS (DIRECT PAYMENTS),2103659321,1000061886
05.05.2023,ADULT SOCIAL CARE,PEOPLE PLUS GROUP LTD (INDEPENDENT LIVING SERVICES),"1,988.48",CHILDREN PHB - SEL ICB,PAYMENTS TO CLIENTS (DIRECT PAYMENTS),2103659490,1000061886
05.05.2023,ADULT SOCIAL CARE,PEOPLE PLUS GROUP LTD (INDEPENDENT LIVING SERVICES),"2,294.40",CHILDREN PHB - SEL ICB,PAYMENTS TO CLIENTS (DIRECT PAYMENTS),2103659267,1000061886
05.05.2023,ADULT SOCIAL CARE,FRESH IDEAS & SOLUTIONS SERVICES CIC,-605.74,CHILDREN PHB - SEL ICB,PAYMENTS TO CLIENTS (DIRECT PAYMENTS),2103659427,1000070832
05.05.2023,ADULT SOCIAL CARE,BARRIE BOOKKEEPING & PAYROLL SOLUTIONS LTD,667.38,CHILDREN PHB - SEL ICB,PAYMENTS TO CLIENTS (DIRECT PAYMENTS),2103659289,1000089211
05.05.2023,ADULT SOCIAL CARE,REDACTED PERSONAL DATA,"12,010.80",CHILDREN PHB - SEL ICB,PAYMENTS TO CLIENTS (DIRECT PAYMENTS),REDACTED,REDACTED
05.05.2023,ADULT SOCIAL CARE,REDACTED PERSONAL DATA,"1,939.96",CHILDREN PHB - SEL ICB,PAYMENTS TO CLIENTS (DIRECT PAYMENTS),REDACTED,REDACTED
05.05.2023,ADULT SOCIAL CARE,REDACTED PERSONAL DATA,"4,020.48",CHILDREN PHB - SEL ICB,PAYMENTS TO CLIENTS (DIRECT PAYMENTS),REDACTED,REDACTED
05.05.2023,ADULT SOCIAL CARE,OXFORD COMPUTER CONSULTANTS,"-3,300.00",DIR OF ASC,COMMS & COMPUTING CONTRACT CHARGES,5902578734,1000089260
05.05.2023,ADULT SOCIAL CARE,OXFORD COMPUTER CONSULTANTS,"3,300.00",DIR OF ASC,COMMS & COMPUTING CONTRACT CHARGES,5902578732,1000089260
05.05.2023,ADULT SOCIAL CARE,PEOPLE PLUS GROUP LTD (INDEPENDENT LIVING SERVICES),567.52,DISCHARGE TO ACCESS,PAYMENTS TO CLIENTS (DIRECT PAYMENTS),2103659279,1000061886
05.05.2023,ADULT SOCIAL CARE,PEOPLE PLUS GROUP LTD (INDEPENDENT LIVING SERVICES),-779.8,LD LTS 18-64,DISCRETIONARY FLEXIBLE FEES & INCOME,2103660289,1000061886
05.05.2023,ADULT SOCIAL CARE,PEOPLE PLUS GROUP LTD (INDEPENDENT LIVING SERVICES),-478.2,LD LTS 18-64,DISCRETIONARY FLEXIBLE FEES & INCOME,2103659866,1000061886
05.05.2023,ADULT SOCIAL CARE,PEOPLE PLUS GROUP LTD (INDEPENDENT LIVING SERVICES),-395.72,LD LTS 18-64,DISCRETIONARY FLEXIBLE FEES & INCOME,2103659690,1000061886
05.05.2023,ADULT SOCIAL CARE,PEOPLE PLUS GROUP LTD (INDEPENDENT LIVING SERVICES),-287,LD LTS 18-64,DISCRETIONARY FLEXIBLE FEES & INCOME,2103659983,1000061886
05.05.2023,ADULT SOCIAL CARE,PEOPLE PLUS GROUP LTD (INDEPENDENT LIVING SERVICES),-286.96,LD LTS 18-64,DISCRETIONARY FLEXIBLE FEES & INCOME,2103659865,1000061886
05.05.2023,ADULT SOCIAL CARE,PEOPLE PLUS GROUP LTD (INDEPENDENT LIVING SERVICES),-276,LD LTS 18-64,DISCRETIONARY FLEXIBLE FEES & INCOME,2103660291,1000061886
05.05.2023,ADULT SOCIAL CARE,REDACTED PERSONAL DATA,-278.08,LD LTS 18-64,DISCRETIONARY FLEXIBLE FEES & INCOME,REDACTED,REDACTED
05.05.2023,ADULT SOCIAL CARE,REDACTED PERSONAL DATA,-287,LD LTS 18-64,DISCRETIONARY FLEXIBLE FEES & INCOME,REDACTED,REDACTED
05.05.2023,ADULT SOCIAL CARE,REDACTED PERSONAL DATA,-286.96,LD LTS 18-64,DISCRETIONARY FLEXIBLE FEES & INCOME,REDACTED,REDACTED
05.05.2023,ADULT SOCIAL CARE,REDACTED PERSONAL DATA,-280.32,LD LTS 18-64,DISCRETIONARY FLEXIBLE FEES & INCOME,REDACTED,REDACTED
05.05.2023,ADULT SOCIAL CARE,REDACTED PERSONAL DATA,-287,LD LTS 18-64,DISCRETIONARY FLEXIBLE FEES & INCOME,REDACTED,REDACTED
05.05.2023,ADULT SOCIAL CARE,REDACTED PERSONAL DATA,-287,LD LTS 18-64,DISCRETIONARY FLEXIBLE FEES & INCOME,REDACTED,REDACTED
05.05.2023,ADULT SOCIAL CARE,REDACTED PERSONAL DATA,-456.56,LD LTS 18-64,DISCRETIONARY FLEXIBLE FEES & INCOME,REDACTED,REDACTED
05.05.2023,ADULT SOCIAL CARE,REDACTED PERSONAL DATA,-381.12,LD LTS 18-64,DISCRETIONARY FLEXIBLE FEES & INCOME,REDACTED,REDACTED
05.05.2023,ADULT SOCIAL CARE,ALWAYS INCLUSIVE LTD,450,LD LTS 18-64,EXTERNAL AGENCIES AND BODIES,2103659223,1000088268
05.05.2023,ADULT SOCIAL CARE,ALWAYS INCLUSIVE LTD,450,LD LTS 18-64,EXTERNAL AGENCIES AND BODIES,2103659225,1000088268
05.05.2023,ADULT SOCIAL CARE,METRO HOMECARE LTD,528,LD LTS 18-64,HOMECARE - SPOT,2103659218,1000070695
05.05.2023,ADULT SOCIAL CARE,PEOPLE PLUS GROUP LTD (INDEPENDENT LIVING SERVICES),"-2,599.47",LD LTS 18-64,PAYMENTS TO CLIENTS (DIRECT PAYMENTS),2103660202,1000061886
05.05.2023,ADULT SOCIAL CARE,PEOPLE PLUS GROUP LTD (INDEPENDENT LIVING SERVICES),"-2,450.67",LD LTS 18-64,PAYMENTS TO CLIENTS (DIRECT PAYMENTS),2103660568,1000061886
05.05.2023,ADULT SOCIAL CARE,PEOPLE PLUS GROUP LTD (INDEPENDENT LIVING SERVICES),"-1,961.21",LD LTS 18-64,PAYMENTS TO CLIENTS (DIRECT PAYMENTS),2103659780,1000061886
05.05.2023,ADULT SOCIAL CARE,PEOPLE PLUS GROUP LTD (INDEPENDENT LIVING SERVICES),"-1,552.63",LD LTS 18-64,PAYMENTS TO CLIENTS (DIRECT PAYMENTS),2103660425,1000061886
05.05.2023,ADULT SOCIAL CARE,PEOPLE PLUS GROUP LTD (INDEPENDENT LIVING SERVICES),-980.61,LD LTS 18-64,PAYMENTS TO CLIENTS (DIRECT PAYMENTS),2103660071,1000061886
05.05.2023,ADULT SOCIAL CARE,PEOPLE PLUS GROUP LTD (INDEPENDENT LIVING SERVICES),-817.17,LD LTS 18-64,PAYMENTS TO CLIENTS (DIRECT PAYMENTS),2103660275,1000061886
05.05.2023,ADULT SOCIAL CARE,PEOPLE PLUS GROUP LTD (INDEPENDENT LIVING SERVICES),-492.97,LD LTS 18-64,PAYMENTS TO CLIENTS (DIRECT PAYMENTS),2103660256,1000061886
05.05.2023,ADULT SOCIAL CARE,PEOPLE PLUS GROUP LTD (INDEPENDENT LIVING SERVICES),-490.3,LD LTS 18-64,PAYMENTS TO CLIENTS (DIRECT PAYMENTS),2103660190,1000061886
05.05.2023,ADULT SOCIAL CARE,PEOPLE PLUS GROUP LTD (INDEPENDENT LIVING SERVICES),-327.5,LD LTS 18-64,PAYMENTS TO CLIENTS (DIRECT PAYMENTS),2103660266,1000061886
05.05.2023,ADULT SOCIAL CARE,PEOPLE PLUS GROUP LTD (INDEPENDENT LIVING SERVICES),295.32,LD LTS 18-64,PAYMENTS TO CLIENTS (DIRECT PAYMENTS),2103659950,1000061886
05.05.2023,ADULT SOCIAL CARE,PEOPLE PLUS GROUP LTD (INDEPENDENT LIVING SERVICES),340,LD LTS 18-64,PAYMENTS TO CLIENTS (DIRECT PAYMENTS),2103659948,1000061886
05.05.2023,ADULT SOCIAL CARE,PEOPLE PLUS GROUP LTD (INDEPENDENT LIVING SERVICES),345.92,LD LTS 18-64,PAYMENTS TO CLIENTS (DIRECT PAYMENTS),2103660068,1000061886
05.05.2023,ADULT SOCIAL CARE,PEOPLE PLUS GROUP LTD (INDEPENDENT LIVING SERVICES),354.7,LD LTS 18-64,PAYMENTS TO CLIENTS (DIRECT PAYMENTS),2103659958,1000061886
05.05.2023,ADULT SOCIAL CARE,PEOPLE PLUS GROUP LTD (INDEPENDENT LIVING SERVICES),354.7,LD LTS 18-64,PAYMENTS TO CLIENTS (DIRECT PAYMENTS),2103660173,1000061886
05.05.2023,ADULT SOCIAL CARE,PEOPLE PLUS GROUP LTD (INDEPENDENT LIVING SERVICES),385.6,LD LTS 18-64,PAYMENTS TO CLIENTS (DIRECT PAYMENTS),2103660361,1000061886
05.05.2023,ADULT SOCIAL CARE,PEOPLE PLUS GROUP LTD (INDEPENDENT LIVING SERVICES),403.6,LD LTS 18-64,PAYMENTS TO CLIENTS (DIRECT PAYMENTS),2103660367,1000061886
05.05.2023,ADULT SOCIAL CARE,PEOPLE PLUS GROUP LTD (INDEPENDENT LIVING SERVICES),424.08,LD LTS 18-64,PAYMENTS TO CLIENTS (DIRECT PAYMENTS),2103659834,1000061886
05.05.2023,ADULT SOCIAL CARE,PEOPLE PLUS GROUP LTD (INDEPENDENT LIVING SERVICES),425.64,LD LTS 18-64,PAYMENTS TO CLIENTS (DIRECT PAYMENTS),2103660156,1000061886
05.05.2023,ADULT SOCIAL CARE,PEOPLE PLUS GROUP LTD (INDEPENDENT LIVING SERVICES),440,LD LTS 18-64,PAYMENTS TO CLIENTS (DIRECT PAYMENTS),2103660152,1000061886
05.05.2023,ADULT SOCIAL CARE,PEOPLE PLUS GROUP LTD (INDEPENDENT LIVING SERVICES),494.72,LD LTS 18-64,PAYMENTS TO CLIENTS (DIRECT PAYMENTS),2103660272,1000061886
05.05.2023,ADULT SOCIAL CARE,PEOPLE PLUS GROUP LTD (INDEPENDENT LIVING SERVICES),496.58,LD LTS 18-64,PAYMENTS TO CLIENTS (DIRECT PAYMENTS),2103659875,1000061886
05.05.2023,ADULT SOCIAL CARE,PEOPLE PLUS GROUP LTD (INDEPENDENT LIVING SERVICES),524.64,LD LTS 18-64,PAYMENTS TO CLIENTS (DIRECT PAYMENTS),2103660551,1000061886
05.05.2023,ADULT SOCIAL CARE,PEOPLE PLUS GROUP LTD (INDEPENDENT LIVING SERVICES),567.52,LD LTS 18-64,PAYMENTS TO CLIENTS (DIRECT PAYMENTS),2103659671,1000061886
05.05.2023,ADULT SOCIAL CARE,PEOPLE PLUS GROUP LTD (INDEPENDENT LIVING SERVICES),567.52,LD LTS 18-64,PAYMENTS TO CLIENTS (DIRECT PAYMENTS),2103660136,1000061886
05.05.2023,ADULT SOCIAL CARE,PEOPLE PLUS GROUP LTD (INDEPENDENT LIVING SERVICES),567.52,LD LTS 18-64,PAYMENTS TO CLIENTS (DIRECT PAYMENTS),2103660546,1000061886
05.05.2023,ADULT SOCIAL CARE,PEOPLE PLUS GROUP LTD (INDEPENDENT LIVING SERVICES),604.56,LD LTS 18-64,PAYMENTS TO CLIENTS (DIRECT PAYMENTS),2103660067,1000061886
05.05.2023,ADULT SOCIAL CARE,PEOPLE PLUS GROUP LTD (INDEPENDENT LIVING SERVICES),610.63,LD LTS 18-64,PAYMENTS TO CLIENTS (DIRECT PAYMENTS),2103660489,1000061886
05.05.2023,ADULT SOCIAL CARE,PEOPLE PLUS GROUP LTD (INDEPENDENT LIVING SERVICES),618.4,LD LTS 18-64,PAYMENTS TO CLIENTS (DIRECT PAYMENTS),2103660148,1000061886
05.05.2023,ADULT SOCIAL CARE,PEOPLE PLUS GROUP LTD (INDEPENDENT LIVING SERVICES),641.72,LD LTS 18-64,PAYMENTS TO CLIENTS (DIRECT PAYMENTS),2103660527,1000061886
05.05.2023,ADULT SOCIAL CARE,PEOPLE PLUS GROUP LTD (INDEPENDENT LIVING SERVICES),680,LD LTS 18-64,PAYMENTS TO CLIENTS (DIRECT PAYMENTS),2103659638,1000061886
05.05.2023,ADULT SOCIAL CARE,PEOPLE PLUS GROUP LTD (INDEPENDENT LIVING SERVICES),691.63,LD LTS 18-64,PAYMENTS TO CLIENTS (DIRECT PAYMENTS),2103659969,1000061886
05.05.2023,ADULT SOCIAL CARE,PEOPLE PLUS GROUP LTD (INDEPENDENT LIVING SERVICES),704,LD LTS 18-64,PAYMENTS TO CLIENTS (DIRECT PAYMENTS),2103660359,1000061886
05.05.2023,ADULT SOCIAL CARE,PEOPLE PLUS GROUP LTD (INDEPENDENT LIVING SERVICES),776.58,LD LTS 18-64,PAYMENTS TO CLIENTS (DIRECT PAYMENTS),2103660482,1000061886
05.05.2023,ADULT SOCIAL CARE,PEOPLE PLUS GROUP LTD (INDEPENDENT LIVING SERVICES),780,LD LTS 18-64,PAYMENTS TO CLIENTS (DIRECT PAYMENTS),2103660443,1000061886
05.05.2023,ADULT SOCIAL CARE,PEOPLE PLUS GROUP LTD (INDEPENDENT LIVING SERVICES),784.96,LD LTS 18-64,PAYMENTS TO CLIENTS (DIRECT PAYMENTS),2103659842,1000061886
05.05.2023,ADULT SOCIAL CARE,PEOPLE PLUS GROUP LTD (INDEPENDENT LIVING SERVICES),800,LD LTS 18-64,PAYMENTS TO CLIENTS (DIRECT PAYMENTS),2103659636,1000061886
05.05.2023,ADULT SOCIAL CARE,PEOPLE PLUS GROUP LTD (INDEPENDENT LIVING SERVICES),860.4,LD LTS 18-64,PAYMENTS TO CLIENTS (DIRECT PAYMENTS),2103660300,1000061886
05.05.2023,ADULT SOCIAL CARE,PEOPLE PLUS GROUP LTD (INDEPENDENT LIVING SERVICES),915.94,LD LTS 18-64,PAYMENTS TO CLIENTS (DIRECT PAYMENTS),2103659798,1000061886
05.05.2023,ADULT SOCIAL CARE,PEOPLE PLUS GROUP LTD (INDEPENDENT LIVING SERVICES),917.76,LD LTS 18-64,PAYMENTS TO CLIENTS (DIRECT PAYMENTS),2103659855,1000061886
05.05.2023,ADULT SOCIAL CARE,PEOPLE PLUS GROUP LTD (INDEPENDENT LIVING SERVICES),927.6,LD LTS 18-64,PAYMENTS TO CLIENTS (DIRECT PAYMENTS),2103659739,1000061886
05.05.2023,ADULT SOCIAL CARE,PEOPLE PLUS GROUP LTD (INDEPENDENT LIVING SERVICES),975,LD LTS 18-64,PAYMENTS TO CLIENTS (DIRECT PAYMENTS),2103659837,1000061886
05.05.2023,ADULT SOCIAL CARE,PEOPLE PLUS GROUP LTD (INDEPENDENT LIVING SERVICES),975.6,LD LTS 18-64,PAYMENTS TO CLIENTS (DIRECT PAYMENTS),2103660255,1000061886
05.05.2023,ADULT SOCIAL CARE,PEOPLE PLUS GROUP LTD (INDEPENDENT LIVING SERVICES),978,LD LTS 18-64,PAYMENTS TO CLIENTS (DIRECT PAYMENTS),2103660050,1000061886
05.05.2023,ADULT SOCIAL CARE,PEOPLE PLUS GROUP LTD (INDEPENDENT LIVING SERVICES),978.32,LD LTS 18-64,PAYMENTS TO CLIENTS (DIRECT PAYMENTS),2103660140,1000061886
05.05.2023,ADULT SOCIAL CARE,PEOPLE PLUS GROUP LTD (INDEPENDENT LIVING SERVICES),"1,099.57",LD LTS 18-64,PAYMENTS TO CLIENTS (DIRECT PAYMENTS),2103660076,1000061886
05.05.2023,ADULT SOCIAL CARE,PEOPLE PLUS GROUP LTD (INDEPENDENT LIVING SERVICES),"1,135.04",LD LTS 18-64,PAYMENTS TO CLIENTS (DIRECT PAYMENTS),2103660222,1000061886
05.05.2023,ADULT SOCIAL CARE,PEOPLE PLUS GROUP LTD (INDEPENDENT LIVING SERVICES),"1,152.75",LD LTS 18-64,PAYMENTS TO CLIENTS (DIRECT PAYMENTS),2103660168,1000061886
05.05.2023,ADULT SOCIAL CARE,PEOPLE PLUS GROUP LTD (INDEPENDENT LIVING SERVICES),"1,166.32",LD LTS 18-64,PAYMENTS TO CLIENTS (DIRECT PAYMENTS),2103659874,1000061886
05.05.2023,ADULT SOCIAL CARE,PEOPLE PLUS GROUP LTD (INDEPENDENT LIVING SERVICES),"1,170.00",LD LTS 18-64,PAYMENTS TO CLIENTS (DIRECT PAYMENTS),2103660369,1000061886
05.05.2023,ADULT SOCIAL CARE,PEOPLE PLUS GROUP LTD (INDEPENDENT LIVING SERVICES),"1,179.00",LD LTS 18-64,PAYMENTS TO CLIENTS (DIRECT PAYMENTS),2103659843,1000061886
05.05.2023,ADULT SOCIAL CARE,PEOPLE PLUS GROUP LTD (INDEPENDENT LIVING SERVICES),"1,241.28",LD LTS 18-64,PAYMENTS TO CLIENTS (DIRECT PAYMENTS),2103660179,1000061886
05.05.2023,ADULT SOCIAL CARE,PEOPLE PLUS GROUP LTD (INDEPENDENT LIVING SERVICES),"1,276.92",LD LTS 18-64,PAYMENTS TO CLIENTS (DIRECT PAYMENTS),2103659699,1000061886
05.05.2023,ADULT SOCIAL CARE,PEOPLE PLUS GROUP LTD (INDEPENDENT LIVING SERVICES),"1,276.92",LD LTS 18-64,PAYMENTS TO CLIENTS (DIRECT PAYMENTS),2103660085,1000061886
05.05.2023,ADULT SOCIAL CARE,PEOPLE PLUS GROUP LTD (INDEPENDENT LIVING SERVICES),"1,353.64",LD LTS 18-64,PAYMENTS TO CLIENTS (DIRECT PAYMENTS),2103659848,1000061886
05.05.2023,ADULT SOCIAL CARE,PEOPLE PLUS GROUP LTD (INDEPENDENT LIVING SERVICES),"1,355.06",LD LTS 18-64,PAYMENTS TO CLIENTS (DIRECT PAYMENTS),2103659711,1000061886
05.05.2023,ADULT SOCIAL CARE,PEOPLE PLUS GROUP LTD (INDEPENDENT LIVING SERVICES),"1,418.80",LD LTS 18-64,PAYMENTS TO CLIENTS (DIRECT PAYMENTS),2103660178,1000061886
05.05.2023,ADULT SOCIAL CARE,PEOPLE PLUS GROUP LTD (INDEPENDENT LIVING SERVICES),"1,526.57",LD LTS 18-64,PAYMENTS TO CLIENTS (DIRECT PAYMENTS),2103660334,1000061886
05.05.2023,ADULT SOCIAL CARE,PEOPLE PLUS GROUP LTD (INDEPENDENT LIVING SERVICES),"1,591.68",LD LTS 18-64,PAYMENTS TO CLIENTS (DIRECT PAYMENTS),2103660567,1000061886
05.05.2023,ADULT SOCIAL CARE,PEOPLE PLUS GROUP LTD (INDEPENDENT LIVING SERVICES),"1,605.74",LD LTS 18-64,PAYMENTS TO CLIENTS (DIRECT PAYMENTS),2103660376,1000061886
05.05.2023,ADULT SOCIAL CARE,PEOPLE PLUS GROUP LTD (INDEPENDENT LIVING SERVICES),"1,643.94",LD LTS 18-64,PAYMENTS TO CLIENTS (DIRECT PAYMENTS),2103659792,1000061886
05.05.2023,ADULT SOCIAL CARE,PEOPLE PLUS GROUP LTD (INDEPENDENT LIVING SERVICES),"1,739.96",LD LTS 18-64,PAYMENTS TO CLIENTS (DIRECT PAYMENTS),2103659942,1000061886
05.05.2023,ADULT SOCIAL CARE,PEOPLE PLUS GROUP LTD (INDEPENDENT LIVING SERVICES),"1,745.64",LD LTS 18-64,PAYMENTS TO CLIENTS (DIRECT PAYMENTS),2103659953,1000061886
05.05.2023,ADULT SOCIAL CARE,PEOPLE PLUS GROUP LTD (INDEPENDENT LIVING SERVICES),"1,795.60",LD LTS 18-64,PAYMENTS TO CLIENTS (DIRECT PAYMENTS),2103660452,1000061886
05.05.2023,ADULT SOCIAL CARE,PEOPLE PLUS GROUP LTD (INDEPENDENT LIVING SERVICES),"1,831.89",LD LTS 18-64,PAYMENTS TO CLIENTS (DIRECT PAYMENTS),2103660337,1000061886
05.05.2023,ADULT SOCIAL CARE,PEOPLE PLUS GROUP LTD (INDEPENDENT LIVING SERVICES),"1,895.20",LD LTS 18-64,PAYMENTS TO CLIENTS (DIRECT PAYMENTS),2103660072,1000061886
05.05.2023,ADULT SOCIAL CARE,PEOPLE PLUS GROUP LTD (INDEPENDENT LIVING SERVICES),"1,906.12",LD LTS 18-64,PAYMENTS TO CLIENTS (DIRECT PAYMENTS),2103660550,1000061886
05.05.2023,ADULT SOCIAL CARE,PEOPLE PLUS GROUP LTD (INDEPENDENT LIVING SERVICES),"1,988.48",LD LTS 18-64,PAYMENTS TO CLIENTS (DIRECT PAYMENTS),2103659674,1000061886
05.05.2023,ADULT SOCIAL CARE,PEOPLE PLUS GROUP LTD (INDEPENDENT LIVING SERVICES),"2,105.98",LD LTS 18-64,PAYMENTS TO CLIENTS (DIRECT PAYMENTS),2103659736,1000061886
05.05.2023,ADULT SOCIAL CARE,PEOPLE PLUS GROUP LTD (INDEPENDENT LIVING SERVICES),"2,128.20",LD LTS 18-64,PAYMENTS TO CLIENTS (DIRECT PAYMENTS),2103659961,1000061886
05.05.2023,ADULT SOCIAL CARE,PEOPLE PLUS GROUP LTD (INDEPENDENT LIVING SERVICES),"2,128.20",LD LTS 18-64,PAYMENTS TO CLIENTS (DIRECT PAYMENTS),2103660084,1000061886
05.05.2023,ADULT SOCIAL CARE,PEOPLE PLUS GROUP LTD (INDEPENDENT LIVING SERVICES),"2,164.40",LD LTS 18-64,PAYMENTS TO CLIENTS (DIRECT PAYMENTS),2103659743,1000061886
05.05.2023,ADULT SOCIAL CARE,PEOPLE PLUS GROUP LTD (INDEPENDENT LIVING SERVICES),"2,191.20",LD LTS 18-64,PAYMENTS TO CLIENTS (DIRECT PAYMENTS),2103660109,1000061886
05.05.2023,ADULT SOCIAL CARE,PEOPLE PLUS GROUP LTD (INDEPENDENT LIVING SERVICES),"2,198.80",LD LTS 18-64,PAYMENTS TO CLIENTS (DIRECT PAYMENTS),2103660578,1000061886
05.05.2023,ADULT SOCIAL CARE,PEOPLE PLUS GROUP LTD (INDEPENDENT LIVING SERVICES),"2,294.40",LD LTS 18-64,PAYMENTS TO CLIENTS (DIRECT PAYMENTS),2103659761,1000061886
05.05.2023,ADULT SOCIAL CARE,PEOPLE PLUS GROUP LTD (INDEPENDENT LIVING SERVICES),"2,482.90",LD LTS 18-64,PAYMENTS TO CLIENTS (DIRECT PAYMENTS),2103659746,1000061886
05.05.2023,ADULT SOCIAL CARE,PEOPLE PLUS GROUP LTD (INDEPENDENT LIVING SERVICES),"2,553.84",LD LTS 18-64,PAYMENTS TO CLIENTS (DIRECT PAYMENTS),2103660302,1000061886
05.05.2023,ADULT SOCIAL CARE,PEOPLE PLUS GROUP LTD (INDEPENDENT LIVING SERVICES),"2,583.92",LD LTS 18-64,PAYMENTS TO CLIENTS (DIRECT PAYMENTS),2103660480,1000061886
05.05.2023,ADULT SOCIAL CARE,PEOPLE PLUS GROUP LTD (INDEPENDENT LIVING SERVICES),"2,863.28",LD LTS 18-64,PAYMENTS TO CLIENTS (DIRECT PAYMENTS),2103660467,1000061886
05.05.2023,ADULT SOCIAL CARE,PEOPLE PLUS GROUP LTD (INDEPENDENT LIVING SERVICES),"2,900.49",LD LTS 18-64,PAYMENTS TO CLIENTS (DIRECT PAYMENTS),2103660020,1000061886
05.05.2023,ADULT SOCIAL CARE,PEOPLE PLUS GROUP LTD (INDEPENDENT LIVING SERVICES),"2,979.48",LD LTS 18-64,PAYMENTS TO CLIENTS (DIRECT PAYMENTS),2103660277,1000061886
05.05.2023,ADULT SOCIAL CARE,PEOPLE PLUS GROUP LTD (INDEPENDENT LIVING SERVICES),"3,020.96",LD LTS 18-64,PAYMENTS TO CLIENTS (DIRECT PAYMENTS),2103660579,1000061886
05.05.2023,ADULT SOCIAL CARE,PEOPLE PLUS GROUP LTD (INDEPENDENT LIVING SERVICES),"3,023.49",LD LTS 18-64,PAYMENTS TO CLIENTS (DIRECT PAYMENTS),2103659652,1000061886
05.05.2023,ADULT SOCIAL CARE,PEOPLE PLUS GROUP LTD (INDEPENDENT LIVING SERVICES),"3,369.65",LD LTS 18-64,PAYMENTS TO CLIENTS (DIRECT PAYMENTS),2103660543,1000061886
05.05.2023,ADULT SOCIAL CARE,PEOPLE PLUS GROUP LTD (INDEPENDENT LIVING SERVICES),"3,550.86",LD LTS 18-64,PAYMENTS TO CLIENTS (DIRECT PAYMENTS),2103660323,1000061886
05.05.2023,ADULT SOCIAL CARE,PEOPLE PLUS GROUP LTD (INDEPENDENT LIVING SERVICES),"3,969.09",LD LTS 18-64,PAYMENTS TO CLIENTS (DIRECT PAYMENTS),2103660017,1000061886
05.05.2023,ADULT SOCIAL CARE,PEOPLE PLUS GROUP LTD (INDEPENDENT LIVING SERVICES),"4,995.20",LD LTS 18-64,PAYMENTS TO CLIENTS (DIRECT PAYMENTS),2103659839,1000061886
05.05.2023,ADULT SOCIAL CARE,PEOPLE PLUS GROUP LTD (INDEPENDENT LIVING SERVICES),"5,320.50",LD LTS 18-64,PAYMENTS TO CLIENTS (DIRECT PAYMENTS),2103659742,1000061886
05.05.2023,ADULT SOCIAL CARE,PEOPLE PLUS GROUP LTD (INDEPENDENT LIVING SERVICES),"5,353.60",LD LTS 18-64,PAYMENTS TO CLIENTS (DIRECT PAYMENTS),2103659854,1000061886
05.05.2023,ADULT SOCIAL CARE,PEOPLE PLUS GROUP LTD (INDEPENDENT LIVING SERVICES),"11,551.51",LD LTS 18-64,PAYMENTS TO CLIENTS (DIRECT PAYMENTS),2103660440,1000061886
05.05.2023,ADULT SOCIAL CARE,PEOPLE PLUS GROUP LTD (INDEPENDENT LIVING SERVICES),"12,542.72",LD LTS 18-64,PAYMENTS TO CLIENTS (DIRECT PAYMENTS),2103660209,1000061886
05.05.2023,ADULT SOCIAL CARE,PEOPLE PLUS GROUP LTD (INDEPENDENT LIVING SERVICES),"12,619.20",LD LTS 18-64,PAYMENTS TO CLIENTS (DIRECT PAYMENTS),2103660351,1000061886
05.05.2023,ADULT SOCIAL CARE,PEOPLE PLUS GROUP LTD (INDEPENDENT LIVING SERVICES),"12,619.20",LD LTS 18-64,PAYMENTS TO CLIENTS (DIRECT PAYMENTS),2103660352,1000061886
05.05.2023,ADULT SOCIAL CARE,FRESH IDEAS & SOLUTIONS SERVICES CIC,"-13,162.41",LD LTS 18-64,PAYMENTS TO CLIENTS (DIRECT PAYMENTS),2103660355,1000070832
05.05.2023,ADULT SOCIAL CARE,FRESH IDEAS & SOLUTIONS SERVICES CIC,"-1,296.50",LD LTS 18-64,PAYMENTS TO CLIENTS (DIRECT PAYMENTS),2103660442,1000070832
05.05.2023,ADULT SOCIAL CARE,FRESH IDEAS & SOLUTIONS SERVICES CIC,993.16,LD LTS 18-64,PAYMENTS TO CLIENTS (DIRECT PAYMENTS),2103659708,1000070832
05.05.2023,ADULT SOCIAL CARE,FRESH IDEAS & SOLUTIONS SERVICES CIC,"1,869.52",LD LTS 18-64,PAYMENTS TO CLIENTS (DIRECT PAYMENTS),2103660458,1000070832
05.05.2023,ADULT SOCIAL CARE,FRESH IDEAS & SOLUTIONS SERVICES CIC,"2,358.02",LD LTS 18-64,PAYMENTS TO CLIENTS (DIRECT PAYMENTS),2103659789,1000070832
05.05.2023,ADULT SOCIAL CARE,FRESH IDEAS & SOLUTIONS SERVICES CIC,"14,476.57",LD LTS 18-64,PAYMENTS TO CLIENTS (DIRECT PAYMENTS),2103660505,1000070832
05.05.2023,ADULT SOCIAL CARE,REDACTED PERSONAL DATA,"2,837.60",LD LTS 18-64,PAYMENTS TO CLIENTS (DIRECT PAYMENTS),REDACTED,REDACTED
05.05.2023,ADULT SOCIAL CARE,REDACTED PERSONAL DATA,"4,245.25",LD LTS 18-64,PAYMENTS TO CLIENTS (DIRECT PAYMENTS),REDACTED,REDACTED
05.05.2023,ADULT SOCIAL CARE,REDACTED PERSONAL DATA,871.28,LD LTS 18-64,PAYMENTS TO CLIENTS (DIRECT PAYMENTS),REDACTED,REDACTED
05.05.2023,ADULT SOCIAL CARE,REDACTED PERSONAL DATA,"3,263.24",LD LTS 18-64,PAYMENTS TO CLIENTS (DIRECT PAYMENTS),REDACTED,REDACTED
05.05.2023,ADULT SOCIAL CARE,REDACTED PERSONAL DATA,"2,482.90",LD LTS 18-64,PAYMENTS TO CLIENTS (DIRECT PAYMENTS),REDACTED,REDACTED
05.05.2023,ADULT SOCIAL CARE,REDACTED PERSONAL DATA,"14,400.82",LD LTS 18-64,PAYMENTS TO CLIENTS (DIRECT PAYMENTS),REDACTED,REDACTED
05.05.2023,ADULT SOCIAL CARE,REDACTED PERSONAL DATA,"1,053.16",LD LTS 18-64,PAYMENTS TO CLIENTS (DIRECT PAYMENTS),REDACTED,REDACTED
05.05.2023,ADULT SOCIAL CARE,REDACTED PERSONAL DATA,"1,070.72",LD LTS 18-64,PAYMENTS TO CLIENTS (DIRECT PAYMENTS),REDACTED,REDACTED
05.05.2023,ADULT SOCIAL CARE,REDACTED PERSONAL DATA,"1,938.60",LD LTS 18-64,PAYMENTS TO CLIENTS (DIRECT PAYMENTS),REDACTED,REDACTED
05.05.2023,ADULT SOCIAL CARE,REDACTED PERSONAL DATA,"1,660.84",LD LTS 18-64,PAYMENTS TO CLIENTS (DIRECT PAYMENTS),REDACTED,REDACTED
05.05.2023,ADULT SOCIAL CARE,REDACTED PERSONAL DATA,-302.65,LD LTS 18-64,PAYMENTS TO CLIENTS (DIRECT PAYMENTS),REDACTED,REDACTED
05.05.2023,ADULT SOCIAL CARE,REDACTED PERSONAL DATA,"3,550.86",LD LTS 18-64,PAYMENTS TO CLIENTS (DIRECT PAYMENTS),REDACTED,REDACTED
05.05.2023,ADULT SOCIAL CARE,REDACTED PERSONAL DATA,"3,079.20",LD LTS 18-64,PAYMENTS TO CLIENTS (DIRECT PAYMENTS),REDACTED,REDACTED
05.05.2023,ADULT SOCIAL CARE,REDACTED PERSONAL DATA,440.64,LD LTS 18-64,PAYMENTS TO CLIENTS (DIRECT PAYMENTS),REDACTED,REDACTED
05.05.2023,ADULT SOCIAL CARE,REDACTED PERSONAL DATA,555.36,LD LTS 18-64,PAYMENTS TO CLIENTS (DIRECT PAYMENTS),REDACTED,REDACTED
05.05.2023,ADULT SOCIAL CARE,REDACTED PERSONAL DATA,309.2,LD LTS 18-64,PAYMENTS TO CLIENTS (DIRECT PAYMENTS),REDACTED,REDACTED
05.05.2023,ADULT SOCIAL CARE,REDACTED PERSONAL DATA,973.6,LD LTS 18-64,PAYMENTS TO CLIENTS (DIRECT PAYMENTS),REDACTED,REDACTED
05.05.2023,ADULT SOCIAL CARE,REDACTED PERSONAL DATA,"1,247.68",LD LTS 18-64,PAYMENTS TO CLIENTS (DIRECT PAYMENTS),REDACTED,REDACTED
05.05.2023,ADULT SOCIAL CARE,REDACTED PERSONAL DATA,"1,378.40",LD LTS 18-64,PAYMENTS TO CLIENTS (DIRECT PAYMENTS),REDACTED,REDACTED
05.05.2023,ADULT SOCIAL CARE,REDACTED PERSONAL DATA,"2,317.60",LD LTS 18-64,PAYMENTS TO CLIENTS (DIRECT PAYMENTS),REDACTED,REDACTED
05.05.2023,ADULT SOCIAL CARE,REDACTED PERSONAL DATA,"2,361.02",LD LTS 18-64,PAYMENTS TO CLIENTS (DIRECT PAYMENTS),REDACTED,REDACTED
05.05.2023,ADULT SOCIAL CARE,REDACTED PERSONAL DATA,559.36,LD LTS 18-64,PAYMENTS TO CLIENTS (DIRECT PAYMENTS),REDACTED,REDACTED
05.05.2023,ADULT SOCIAL CARE,REDACTED PERSONAL DATA,"6,644.40",LD LTS 18-64,PAYMENTS TO CLIENTS (DIRECT PAYMENTS),REDACTED,REDACTED
05.05.2023,ADULT SOCIAL CARE,REDACTED PERSONAL DATA,"1,549.60",LD LTS 18-64,PAYMENTS TO CLIENTS (DIRECT PAYMENTS),REDACTED,REDACTED
05.05.2023,ADULT SOCIAL CARE,REDACTED PERSONAL DATA,345.92,LD LTS 18-64,PAYMENTS TO CLIENTS (DIRECT PAYMENTS),REDACTED,REDACTED
05.05.2023,ADULT SOCIAL CARE,REDACTED PERSONAL DATA,305.92,LD LTS 18-64,PAYMENTS TO CLIENTS (DIRECT PAYMENTS),REDACTED,REDACTED
05.05.2023,ADULT SOCIAL CARE,REDACTED PERSONAL DATA,300,LD LTS 18-64,PAYMENTS TO CLIENTS (DIRECT PAYMENTS),REDACTED,REDACTED
05.05.2023,ADULT SOCIAL CARE,REDACTED PERSONAL DATA,"2,286.56",LD LTS 18-64,PAYMENTS TO CLIENTS (DIRECT PAYMENTS),REDACTED,REDACTED
05.05.2023,ADULT SOCIAL CARE,REDACTED PERSONAL DATA,"2,419.15",LD LTS 18-64,PAYMENTS TO CLIENTS (DIRECT PAYMENTS),REDACTED,REDACTED
05.05.2023,ADULT SOCIAL CARE,REDACTED PERSONAL DATA,320,LD LTS 18-64,PAYMENTS TO CLIENTS (DIRECT PAYMENTS),REDACTED,REDACTED
05.05.2023,ADULT SOCIAL CARE,REDACTED PERSONAL DATA,922.22,LD LTS 18-64,PAYMENTS TO CLIENTS (DIRECT PAYMENTS),REDACTED,REDACTED
05.05.2023,ADULT SOCIAL CARE,REDACTED PERSONAL DATA,"2,116.00",LD LTS 18-64,PAYMENTS TO CLIENTS (DIRECT PAYMENTS),REDACTED,REDACTED
05.05.2023,ADULT SOCIAL CARE,REDACTED PERSONAL DATA,-980.61,LD LTS 18-64,PAYMENTS TO CLIENTS (DIRECT PAYMENTS),REDACTED,REDACTED
05.05.2023,ADULT SOCIAL CARE,REDACTED PERSONAL DATA,"1,831.89",LD LTS 18-64,PAYMENTS TO CLIENTS (DIRECT PAYMENTS),REDACTED,REDACTED
05.05.2023,ADULT SOCIAL CARE,REDACTED PERSONAL DATA,"-1,184.90",LD LTS 18-64,PAYMENTS TO CLIENTS (DIRECT PAYMENTS),REDACTED,REDACTED
05.05.2023,ADULT SOCIAL CARE,REDACTED PERSONAL DATA,"2,213.53",LD LTS 18-64,PAYMENTS TO CLIENTS (DIRECT PAYMENTS),REDACTED,REDACTED
05.05.2023,ADULT SOCIAL CARE,REDACTED PERSONAL DATA,620,LD LTS 18-64,PAYMENTS TO CLIENTS (DIRECT PAYMENTS),REDACTED,REDACTED
05.05.2023,ADULT SOCIAL CARE,REDACTED PERSONAL DATA,481.52,LD LTS 18-64,PAYMENTS TO CLIENTS (DIRECT PAYMENTS),REDACTED,REDACTED
05.05.2023,ADULT SOCIAL CARE,REDACTED PERSONAL DATA,"2,676.80",LD LTS 18-64,PAYMENTS TO CLIENTS (DIRECT PAYMENTS),REDACTED,REDACTED
05.05.2023,ADULT SOCIAL CARE,REDACTED PERSONAL DATA,"5,506.56",LD LTS 18-64,PAYMENTS TO CLIENTS (DIRECT PAYMENTS),REDACTED,REDACTED
05.05.2023,ADULT SOCIAL CARE,REDACTED PERSONAL DATA,"6,437.76",LD LTS 18-64,PAYMENTS TO CLIENTS (DIRECT PAYMENTS),REDACTED,REDACTED
05.05.2023,ADULT SOCIAL CARE,REDACTED PERSONAL DATA,"-1,267.93",LD LTS 18-64,PAYMENTS TO CLIENTS (DIRECT PAYMENTS),REDACTED,REDACTED
05.05.2023,ADULT SOCIAL CARE,REDACTED PERSONAL DATA,"2,944.01",LD LTS 18-64,PAYMENTS TO CLIENTS (DIRECT PAYMENTS),REDACTED,REDACTED
05.05.2023,ADULT SOCIAL CARE,REDACTED PERSONAL DATA,"-2,186.41",LD LTS 18-64,PAYMENTS TO CLIENTS (DIRECT PAYMENTS),REDACTED,REDACTED
05.05.2023,ADULT SOCIAL CARE,REDACTED PERSONAL DATA,"1,717.39",LD LTS 18-64,PAYMENTS TO CLIENTS (DIRECT PAYMENTS),REDACTED,REDACTED
05.05.2023,ADULT SOCIAL CARE,REDACTED PERSONAL DATA,"2,404.35",LD LTS 18-64,PAYMENTS TO CLIENTS (DIRECT PAYMENTS),REDACTED,REDACTED
05.05.2023,ADULT SOCIAL CARE,REDACTED PERSONAL DATA,540.6,LD LTS 18-64,PAYMENTS TO CLIENTS (DIRECT PAYMENTS),REDACTED,REDACTED
05.05.2023,ADULT SOCIAL CARE,REDACTED PERSONAL DATA,"-2,212.18",LD LTS 18-64,PAYMENTS TO CLIENTS (DIRECT PAYMENTS),REDACTED,REDACTED
05.05.2023,ADULT SOCIAL CARE,REDACTED PERSONAL DATA,"3,145.09",LD LTS 18-64,PAYMENTS TO CLIENTS (DIRECT PAYMENTS),REDACTED,REDACTED
05.05.2023,ADULT SOCIAL CARE,REDACTED PERSONAL DATA,"2,048.58",LD LTS 18-64,PAYMENTS TO CLIENTS (DIRECT PAYMENTS),REDACTED,REDACTED
05.05.2023,ADULT SOCIAL CARE,REDACTED PERSONAL DATA,-558.31,LD LTS 18-64,PAYMENTS TO CLIENTS (DIRECT PAYMENTS),REDACTED,REDACTED
05.05.2023,ADULT SOCIAL CARE,REDACTED PERSONAL DATA,"1,080.30",LD LTS 18-64,PAYMENTS TO CLIENTS (DIRECT PAYMENTS),REDACTED,REDACTED
05.05.2023,ADULT SOCIAL CARE,REDACTED PERSONAL DATA,"11,747.50",LD LTS 18-64,PAYMENTS TO CLIENTS (DIRECT PAYMENTS),REDACTED,REDACTED
05.05.2023,ADULT SOCIAL CARE,REDACTED PERSONAL DATA,535.36,LD LTS 18-64,PAYMENTS TO CLIENTS (DIRECT PAYMENTS),REDACTED,REDACTED
05.05.2023,ADULT SOCIAL CARE,REDACTED PERSONAL DATA,-736.4,LD LTS 18-64,PAYMENTS TO CLIENTS (DIRECT PAYMENTS),REDACTED,REDACTED
05.05.2023,ADULT SOCIAL CARE,REDACTED PERSONAL DATA,"1,984.54",LD LTS 18-64,PAYMENTS TO CLIENTS (DIRECT PAYMENTS),REDACTED,REDACTED
05.05.2023,ADULT SOCIAL CARE,REDACTED PERSONAL DATA,"1,400.00",LD LTS 18-64,PAYMENTS TO CLIENTS (DIRECT PAYMENTS),REDACTED,REDACTED
05.05.2023,ADULT SOCIAL CARE,REDACTED PERSONAL DATA,"2,736.00",LD LTS 18-64,PAYMENTS TO CLIENTS (DIRECT PAYMENTS),REDACTED,REDACTED
05.05.2023,ADULT SOCIAL CARE,REDACTED PERSONAL DATA,605.23,LD LTS 18-64,PAYMENTS TO CLIENTS (DIRECT PAYMENTS),REDACTED,REDACTED
05.05.2023,ADULT SOCIAL CARE,REDACTED PERSONAL DATA,381.6,LD LTS 18-64,PAYMENTS TO CLIENTS (DIRECT PAYMENTS),REDACTED,REDACTED
05.05.2023,ADULT SOCIAL CARE,REDACTED PERSONAL DATA,-470.3,LD LTS 18-64,PAYMENTS TO CLIENTS (DIRECT PAYMENTS),REDACTED,REDACTED
05.05.2023,ADULT SOCIAL CARE,REDACTED PERSONAL DATA,-733.29,LD LTS 18-64,PAYMENTS TO CLIENTS (DIRECT PAYMENTS),REDACTED,REDACTED
05.05.2023,ADULT SOCIAL CARE,REDACTED PERSONAL DATA,"1,679.23",LD LTS 18-64,PAYMENTS TO CLIENTS (DIRECT PAYMENTS),REDACTED,REDACTED
05.05.2023,ADULT SOCIAL CARE,REDACTED PERSONAL DATA,"-12,178.84",LD LTS 18-64,PAYMENTS TO CLIENTS (DIRECT PAYMENTS),REDACTED,REDACTED
05.05.2023,ADULT SOCIAL CARE,REDACTED PERSONAL DATA,"3,646.40",LD LTS 18-64,PAYMENTS TO CLIENTS (DIRECT PAYMENTS),REDACTED,REDACTED
05.05.2023,ADULT SOCIAL CARE,REDACTED PERSONAL DATA,"3,646.40",LD LTS 18-64,PAYMENTS TO CLIENTS (DIRECT PAYMENTS),REDACTED,REDACTED
05.05.2023,ADULT SOCIAL CARE,REDACTED PERSONAL DATA,"4,167.31",LD LTS 18-64,PAYMENTS TO CLIENTS (DIRECT PAYMENTS),REDACTED,REDACTED
05.05.2023,ADULT SOCIAL CARE,REDACTED PERSONAL DATA,"4,179.39",LD LTS 18-64,PAYMENTS TO CLIENTS (DIRECT PAYMENTS),REDACTED,REDACTED
05.05.2023,ADULT SOCIAL CARE,REDACTED PERSONAL DATA,460.04,LD LTS 18-64,PAYMENTS TO CLIENTS (DIRECT PAYMENTS),REDACTED,REDACTED
05.05.2023,ADULT SOCIAL CARE,REDACTED PERSONAL DATA,"1,129.56",LD LTS 18-64,PAYMENTS TO CLIENTS (DIRECT PAYMENTS),REDACTED,REDACTED
05.05.2023,ADULT SOCIAL CARE,REDACTED PERSONAL DATA,611.84,LD LTS 18-64,PAYMENTS TO CLIENTS (DIRECT PAYMENTS),REDACTED,REDACTED
05.05.2023,ADULT SOCIAL CARE,REDACTED PERSONAL DATA,"1,773.50",LD LTS 18-64,PAYMENTS TO CLIENTS (DIRECT PAYMENTS),REDACTED,REDACTED
05.05.2023,ADULT SOCIAL CARE,REDACTED PERSONAL DATA,"1,400.00",LD LTS 18-64,PAYMENTS TO CLIENTS (DIRECT PAYMENTS),REDACTED,REDACTED
05.05.2023,ADULT SOCIAL CARE,REDACTED PERSONAL DATA,600,LD LTS 18-64,PAYMENTS TO CLIENTS (DIRECT PAYMENTS),REDACTED,REDACTED
05.05.2023,ADULT SOCIAL CARE,REDACTED PERSONAL DATA,764.8,LD LTS 18-64,PAYMENTS TO CLIENTS (DIRECT PAYMENTS),REDACTED,REDACTED
05.05.2023,ADULT SOCIAL CARE,REDACTED PERSONAL DATA,"1,912.00",LD LTS 18-64,PAYMENTS TO CLIENTS (DIRECT PAYMENTS),REDACTED,REDACTED
05.05.2023,ADULT SOCIAL CARE,REDACTED PERSONAL DATA,"4,327.34",LD LTS 18-64,PAYMENTS TO CLIENTS (DIRECT PAYMENTS),REDACTED,REDACTED
05.05.2023,ADULT SOCIAL CARE,REDACTED PERSONAL DATA,682.16,LD LTS 18-64,PAYMENTS TO CLIENTS (DIRECT PAYMENTS),REDACTED,REDACTED
05.05.2023,ADULT SOCIAL CARE,CHOICE SUPPORT,293.92,LD LTS 18-64,SUPPORTED LIVING,2103659227,1104183
05.05.2023,ADULT SOCIAL CARE,CHOICE SUPPORT,367.4,LD LTS 18-64,SUPPORTED LIVING,2103659229,1104183
05.05.2023,ADULT SOCIAL CARE,CHOICE SUPPORT,440.88,LD LTS 18-64,SUPPORTED LIVING,2103659234,1104183
05.05.2023,ADULT SOCIAL CARE,CHOICE SUPPORT,587.84,LD LTS 18-64,SUPPORTED LIVING,2103659231,1104183
05.05.2023,ADULT SOCIAL CARE,CHOICE SUPPORT,661.32,LD LTS 18-64,SUPPORTED LIVING,2103659233,1104183
05.05.2023,ADULT SOCIAL CARE,CHOICE SUPPORT,881.76,LD LTS 18-64,SUPPORTED LIVING,2103659239,1104183
05.05.2023,ADULT SOCIAL CARE,GRANGE FARM COMPLEX,"1,778.36",LD LTS 18-64,SUPPORTED LIVING,2103659821,11086081
05.05.2023,ADULT SOCIAL CARE,CONTACT PROFESSIONALS,"1,482.00",LD LTS 18-64,SUPPORTED LIVING,2103659222,1000057263
05.05.2023,ADULT SOCIAL CARE,DARETHEALTHCARE UK LTD,791.37,LD LTS 18-64,SUPPORTED LIVING,2103659204,1000059149
05.05.2023,ADULT SOCIAL CARE,ALWAYS INCLUSIVE LTD,444,LD LTS 18-64,SUPPORTED LIVING,2103659220,1000088268
05.05.2023,ADULT SOCIAL CARE,REDACTED PERSONAL DATA,"1,032.16",LD LTS 18-64,SUPPORTED LIVING,REDACTED,REDACTED
05.05.2023,ADULT SOCIAL CARE,PEOPLE PLUS GROUP LTD (INDEPENDENT LIVING SERVICES),610.63,LD LTS 18-64 AAD,PAYMENTS TO CLIENTS (DIRECT PAYMENTS),2103659901,1000061886
05.05.2023,ADULT SOCIAL CARE,PEOPLE PLUS GROUP LTD (INDEPENDENT LIVING SERVICES),610.63,LD LTS 18-64 AAD,PAYMENTS TO CLIENTS (DIRECT PAYMENTS),2103660267,1000061886
05.05.2023,ADULT SOCIAL CARE,PEOPLE PLUS GROUP LTD (INDEPENDENT LIVING SERVICES),"1,742.65",LD LTS 18-64 AAD,PAYMENTS TO CLIENTS (DIRECT PAYMENTS),2103660235,1000061886
05.05.2023,ADULT SOCIAL CARE,PEOPLE PLUS GROUP LTD (INDEPENDENT LIVING SERVICES),"1,759.04",LD LTS 18-64 AAD,PAYMENTS TO CLIENTS (DIRECT PAYMENTS),2103659784,1000061886
05.05.2023,ADULT SOCIAL CARE,PEOPLE PLUS GROUP LTD (INDEPENDENT LIVING SERVICES),"3,663.77",LD LTS 18-64 AAD,PAYMENTS TO CLIENTS (DIRECT PAYMENTS),2103659781,1000061886
05.05.2023,ADULT SOCIAL CARE,REDACTED PERSONAL DATA,"5,226.75",LD LTS 18-64 AAD,PAYMENTS TO CLIENTS (DIRECT PAYMENTS),REDACTED,REDACTED
05.05.2023,ADULT SOCIAL CARE,REDACTED PERSONAL DATA,"2,289.86",LD LTS 18-64 AAD,PAYMENTS TO CLIENTS (DIRECT PAYMENTS),REDACTED,REDACTED
05.05.2023,ADULT SOCIAL CARE,REDACTED PERSONAL DATA,915.94,LD LTS 18-64 AAD,PAYMENTS TO CLIENTS (DIRECT PAYMENTS),REDACTED,REDACTED
05.05.2023,ADULT SOCIAL CARE,REDACTED PERSONAL DATA,"1,373.91",LD LTS 18-64 AAD,PAYMENTS TO CLIENTS (DIRECT PAYMENTS),REDACTED,REDACTED
05.05.2023,ADULT SOCIAL CARE,REDACTED PERSONAL DATA,809.72,LD LTS 18-64 AAD,PAYMENTS TO CLIENTS (DIRECT PAYMENTS),REDACTED,REDACTED
05.05.2023,ADULT SOCIAL CARE,REDACTED PERSONAL DATA,"1,526.57",LD LTS 18-64 AAD,PAYMENTS TO CLIENTS (DIRECT PAYMENTS),REDACTED,REDACTED
05.05.2023,ADULT SOCIAL CARE,PEOPLE PLUS GROUP LTD (INDEPENDENT LIVING SERVICES),800.82,LD LTS 65+,PAYMENTS TO CLIENTS (DIRECT PAYMENTS),2103660469,1000061886
05.05.2023,ADULT SOCIAL CARE,REDACTED PERSONAL DATA,-817.17,LD/MH/SM MANAGEMENT,PAYMENTS TO CLIENTS (DIRECT PAYMENTS),REDACTED,REDACTED
05.05.2023,ADULT SOCIAL CARE,PEOPLE PLUS GROUP LTD (INDEPENDENT LIVING SERVICES),602.99,MEM LTS 18-64,PAYMENTS TO CLIENTS (DIRECT PAYMENTS),2103660079,1000061886
05.05.2023,ADULT SOCIAL CARE,PEOPLE PLUS GROUP LTD (INDEPENDENT LIVING SERVICES),"1,773.50",MEM LTS 18-64,PAYMENTS TO CLIENTS (DIRECT PAYMENTS),2103660268,1000061886
05.05.2023,ADULT SOCIAL CARE,PEOPLE PLUS GROUP LTD (INDEPENDENT LIVING SERVICES),-296.36,MEM LTS 65+,DISCRETIONARY FLEXIBLE FEES & INCOME,2103660195,1000061886
05.05.2023,ADULT SOCIAL CARE,REDACTED PERSONAL DATA,-337.68,MEM LTS 65+,DISCRETIONARY FLEXIBLE FEES & INCOME,REDACTED,REDACTED
05.05.2023,ADULT SOCIAL CARE,PEOPLE PLUS GROUP LTD (INDEPENDENT LIVING SERVICES),"-3,146.11",MEM LTS 65+,PAYMENTS TO CLIENTS (DIRECT PAYMENTS),2103660265,1000061886
05.05.2023,ADULT SOCIAL CARE,PEOPLE PLUS GROUP LTD (INDEPENDENT LIVING SERVICES),"-1,430.05",MEM LTS 65+,PAYMENTS TO CLIENTS (DIRECT PAYMENTS),2103660194,1000061886
05.05.2023,ADULT SOCIAL CARE,PEOPLE PLUS GROUP LTD (INDEPENDENT LIVING SERVICES),307.67,MEM LTS 65+,PAYMENTS TO CLIENTS (DIRECT PAYMENTS),2103660258,1000061886
05.05.2023,ADULT SOCIAL CARE,PEOPLE PLUS GROUP LTD (INDEPENDENT LIVING SERVICES),"1,965.04",MEM LTS 65+,PAYMENTS TO CLIENTS (DIRECT PAYMENTS),2103659844,1000061886
05.05.2023,ADULT SOCIAL CARE,PEOPLE PLUS GROUP LTD (INDEPENDENT LIVING SERVICES),"5,877.30",MEM LTS 65+,PAYMENTS TO CLIENTS (DIRECT PAYMENTS),2103660420,1000061886
05.05.2023,ADULT SOCIAL CARE,PEOPLEPLUS GROUP LTD,"2,722.62",MEM LTS 65+,PAYMENTS TO CLIENTS (DIRECT PAYMENTS),2103660507,1000076642
05.05.2023,ADULT SOCIAL CARE,REDACTED PERSONAL DATA,"1,953.09",MEM LTS 65+,PAYMENTS TO CLIENTS (DIRECT PAYMENTS),REDACTED,REDACTED
05.05.2023,ADULT SOCIAL CARE,PEOPLE PLUS GROUP LTD (INDEPENDENT LIVING SERVICES),-259.56,MH LTS 18-64,DISCRETIONARY FLEXIBLE FEES & INCOME,2103659676,1000061886
05.05.2023,ADULT SOCIAL CARE,PEOPLE PLUS GROUP LTD (INDEPENDENT LIVING SERVICES),273.63,MH LTS 18-64,DISCRETIONARY FLEXIBLE FEES & INCOME,2103659702,1000061886
05.05.2023,ADULT SOCIAL CARE,PEOPLE PLUS GROUP LTD (INDEPENDENT LIVING SERVICES),"5,680.09",MH LTS 18-64,DISCRETIONARY FLEXIBLE FEES & INCOME,2103659863,1000061886
05.05.2023,ADULT SOCIAL CARE,PEOPLE PLUS GROUP LTD (INDEPENDENT LIVING SERVICES),"-5,601.64",MH LTS 18-64,PAYMENTS TO CLIENTS (DIRECT PAYMENTS),2103660167,1000061886
05.05.2023,ADULT SOCIAL CARE,PEOPLE PLUS GROUP LTD (INDEPENDENT LIVING SERVICES),"-1,307.47",MH LTS 18-64,PAYMENTS TO CLIENTS (DIRECT PAYMENTS),2103660105,1000061886
05.05.2023,ADULT SOCIAL CARE,PEOPLE PLUS GROUP LTD (INDEPENDENT LIVING SERVICES),-817.17,MH LTS 18-64,PAYMENTS TO CLIENTS (DIRECT PAYMENTS),2103660185,1000061886
05.05.2023,ADULT SOCIAL CARE,PEOPLE PLUS GROUP LTD (INDEPENDENT LIVING SERVICES),-554.74,MH LTS 18-64,PAYMENTS TO CLIENTS (DIRECT PAYMENTS),2103660354,1000061886
05.05.2023,ADULT SOCIAL CARE,PEOPLE PLUS GROUP LTD (INDEPENDENT LIVING SERVICES),283.76,MH LTS 18-64,PAYMENTS TO CLIENTS (DIRECT PAYMENTS),2103660212,1000061886
05.05.2023,ADULT SOCIAL CARE,PEOPLE PLUS GROUP LTD (INDEPENDENT LIVING SERVICES),292.31,MH LTS 18-64,PAYMENTS TO CLIENTS (DIRECT PAYMENTS),2103660062,1000061886
05.05.2023,ADULT SOCIAL CARE,PEOPLE PLUS GROUP LTD (INDEPENDENT LIVING SERVICES),294,MH LTS 18-64,PAYMENTS TO CLIENTS (DIRECT PAYMENTS),2103660366,1000061886
05.05.2023,ADULT SOCIAL CARE,PEOPLE PLUS GROUP LTD (INDEPENDENT LIVING SERVICES),305.92,MH LTS 18-64,PAYMENTS TO CLIENTS (DIRECT PAYMENTS),2103660280,1000061886
05.05.2023,ADULT SOCIAL CARE,PEOPLE PLUS GROUP LTD (INDEPENDENT LIVING SERVICES),307.04,MH LTS 18-64,PAYMENTS TO CLIENTS (DIRECT PAYMENTS),2103659649,1000061886
05.05.2023,ADULT SOCIAL CARE,PEOPLE PLUS GROUP LTD (INDEPENDENT LIVING SERVICES),307.04,MH LTS 18-64,PAYMENTS TO CLIENTS (DIRECT PAYMENTS),2103659709,1000061886
05.05.2023,ADULT SOCIAL CARE,PEOPLE PLUS GROUP LTD (INDEPENDENT LIVING SERVICES),307.04,MH LTS 18-64,PAYMENTS TO CLIENTS (DIRECT PAYMENTS),2103659733,1000061886
05.05.2023,ADULT SOCIAL CARE,PEOPLE PLUS GROUP LTD (INDEPENDENT LIVING SERVICES),307.04,MH LTS 18-64,PAYMENTS TO CLIENTS (DIRECT PAYMENTS),2103659770,1000061886
05.05.2023,ADULT SOCIAL CARE,PEOPLE PLUS GROUP LTD (INDEPENDENT LIVING SERVICES),320,MH LTS 18-64,PAYMENTS TO CLIENTS (DIRECT PAYMENTS),2103660529,1000061886
05.05.2023,ADULT SOCIAL CARE,PEOPLE PLUS GROUP LTD (INDEPENDENT LIVING SERVICES),371.76,MH LTS 18-64,PAYMENTS TO CLIENTS (DIRECT PAYMENTS),2103660370,1000061886
05.05.2023,ADULT SOCIAL CARE,PEOPLE PLUS GROUP LTD (INDEPENDENT LIVING SERVICES),376.12,MH LTS 18-64,PAYMENTS TO CLIENTS (DIRECT PAYMENTS),2103660163,1000061886
05.05.2023,ADULT SOCIAL CARE,PEOPLE PLUS GROUP LTD (INDEPENDENT LIVING SERVICES),425.64,MH LTS 18-64,PAYMENTS TO CLIENTS (DIRECT PAYMENTS),2103659667,1000061886
05.05.2023,ADULT SOCIAL CARE,PEOPLE PLUS GROUP LTD (INDEPENDENT LIVING SERVICES),457.97,MH LTS 18-64,PAYMENTS TO CLIENTS (DIRECT PAYMENTS),2103659812,1000061886
05.05.2023,ADULT SOCIAL CARE,PEOPLE PLUS GROUP LTD (INDEPENDENT LIVING SERVICES),460.56,MH LTS 18-64,PAYMENTS TO CLIENTS (DIRECT PAYMENTS),2103660055,1000061886
05.05.2023,ADULT SOCIAL CARE,PEOPLE PLUS GROUP LTD (INDEPENDENT LIVING SERVICES),487.4,MH LTS 18-64,PAYMENTS TO CLIENTS (DIRECT PAYMENTS),2103659787,1000061886
05.05.2023,ADULT SOCIAL CARE,PEOPLE PLUS GROUP LTD (INDEPENDENT LIVING SERVICES),505.44,MH LTS 18-64,PAYMENTS TO CLIENTS (DIRECT PAYMENTS),2103660247,1000061886
05.05.2023,ADULT SOCIAL CARE,PEOPLE PLUS GROUP LTD (INDEPENDENT LIVING SERVICES),537.32,MH LTS 18-64,PAYMENTS TO CLIENTS (DIRECT PAYMENTS),2103660478,1000061886
05.05.2023,ADULT SOCIAL CARE,PEOPLE PLUS GROUP LTD (INDEPENDENT LIVING SERVICES),542.24,MH LTS 18-64,PAYMENTS TO CLIENTS (DIRECT PAYMENTS),2103660048,1000061886
05.05.2023,ADULT SOCIAL CARE,PEOPLE PLUS GROUP LTD (INDEPENDENT LIVING SERVICES),587.84,MH LTS 18-64,PAYMENTS TO CLIENTS (DIRECT PAYMENTS),2103660052,1000061886
05.05.2023,ADULT SOCIAL CARE,PEOPLE PLUS GROUP LTD (INDEPENDENT LIVING SERVICES),690.84,MH LTS 18-64,PAYMENTS TO CLIENTS (DIRECT PAYMENTS),2103660056,1000061886
05.05.2023,ADULT SOCIAL CARE,PEOPLE PLUS GROUP LTD (INDEPENDENT LIVING SERVICES),709.4,MH LTS 18-64,PAYMENTS TO CLIENTS (DIRECT PAYMENTS),2103659724,1000061886
05.05.2023,ADULT SOCIAL CARE,PEOPLE PLUS GROUP LTD (INDEPENDENT LIVING SERVICES),"1,221.26",MH LTS 18-64,PAYMENTS TO CLIENTS (DIRECT PAYMENTS),2103659808,1000061886
05.05.2023,ADULT SOCIAL CARE,PEOPLE PLUS GROUP LTD (INDEPENDENT LIVING SERVICES),"2,016.00",MH LTS 18-64,PAYMENTS TO CLIENTS (DIRECT PAYMENTS),2103660373,1000061886
05.05.2023,ADULT SOCIAL CARE,PEOPLE PLUS GROUP LTD (INDEPENDENT LIVING SERVICES),"2,442.51",MH LTS 18-64,PAYMENTS TO CLIENTS (DIRECT PAYMENTS),2103660495,1000061886
05.05.2023,ADULT SOCIAL CARE,PEOPLE PLUS GROUP LTD (INDEPENDENT LIVING SERVICES),"2,447.36",MH LTS 18-64,PAYMENTS TO CLIENTS (DIRECT PAYMENTS),2103659668,1000061886
05.05.2023,ADULT SOCIAL CARE,FRESH IDEAS & SOLUTIONS SERVICES CIC,712.8,MH LTS 18-64,PAYMENTS TO CLIENTS (DIRECT PAYMENTS),2103659680,1000070832
05.05.2023,ADULT SOCIAL CARE,FRESH IDEAS & SOLUTIONS SERVICES CIC,"1,041.16",MH LTS 18-64,PAYMENTS TO CLIENTS (DIRECT PAYMENTS),2103659881,1000070832
05.05.2023,ADULT SOCIAL CARE,BARRIE BOOKKEEPING & PAYROLL SOLUTIONS LTD,444,MH LTS 18-64,PAYMENTS TO CLIENTS (DIRECT PAYMENTS),2103660003,1000089211
05.05.2023,ADULT SOCIAL CARE,REDACTED PERSONAL DATA,328,MH LTS 18-64,PAYMENTS TO CLIENTS (DIRECT PAYMENTS),REDACTED,REDACTED
05.05.2023,ADULT SOCIAL CARE,REDACTED PERSONAL DATA,"2,675.84",MH LTS 18-64,PAYMENTS TO CLIENTS (DIRECT PAYMENTS),REDACTED,REDACTED
05.05.2023,ADULT SOCIAL CARE,REDACTED PERSONAL DATA,-306.87,MH LTS 18-64,PAYMENTS TO CLIENTS (DIRECT PAYMENTS),REDACTED,REDACTED
05.05.2023,ADULT SOCIAL CARE,REDACTED PERSONAL DATA,610.63,MH LTS 18-64,PAYMENTS TO CLIENTS (DIRECT PAYMENTS),REDACTED,REDACTED
05.05.2023,ADULT SOCIAL CARE,PEOPLE PLUS GROUP LTD (INDEPENDENT LIVING SERVICES),283.76,MH LTS 65+,PAYMENTS TO CLIENTS (DIRECT PAYMENTS),2103660294,1000061886
05.05.2023,ADULT SOCIAL CARE,PEOPLE PLUS GROUP LTD (INDEPENDENT LIVING SERVICES),307.04,MH LTS 65+,PAYMENTS TO CLIENTS (DIRECT PAYMENTS),2103660486,1000061886
05.05.2023,ADULT SOCIAL CARE,PEOPLE PLUS GROUP LTD (INDEPENDENT LIVING SERVICES),348.36,MH LTS 65+,PAYMENTS TO CLIENTS (DIRECT PAYMENTS),2103660213,1000061886
05.05.2023,ADULT SOCIAL CARE,PEOPLE PLUS GROUP LTD (INDEPENDENT LIVING SERVICES),351.04,MH LTS 65+,PAYMENTS TO CLIENTS (DIRECT PAYMENTS),2103660380,1000061886
05.05.2023,ADULT SOCIAL CARE,PEOPLE PLUS GROUP LTD (INDEPENDENT LIVING SERVICES),390.17,MH LTS 65+,PAYMENTS TO CLIENTS (DIRECT PAYMENTS),2103660540,1000061886
05.05.2023,ADULT SOCIAL CARE,PEOPLE PLUS GROUP LTD (INDEPENDENT LIVING SERVICES),"1,188.60",MH LTS 65+,PAYMENTS TO CLIENTS (DIRECT PAYMENTS),2103659836,1000061886
05.05.2023,ADULT SOCIAL CARE,CHOICE SUPPORT,440.88,MH LTS 65+,SUPPORTED LIVING,2103659232,1104183
05.05.2023,ADULT SOCIAL CARE,ARJO UK LTD,"1,016.30",ORIENT ST � RESPITE,OFFICE EXPENSES,5902577425,1000047440
05.05.2023,ADULT SOCIAL CARE,PEOPLE PLUS GROUP LTD (INDEPENDENT LIVING SERVICES),"1,577.60",PHB - SEL ICB,RECOVERABLE COSTS INCL. HEALTH,2103660164,1000061886
05.05.2023,ADULT SOCIAL CARE,PEOPLE PLUS GROUP LTD (INDEPENDENT LIVING SERVICES),"1,654.08",PHB - SEL ICB,RECOVERABLE COSTS INCL. HEALTH,2103659841,1000061886
05.05.2023,ADULT SOCIAL CARE,PEOPLE PLUS GROUP LTD (INDEPENDENT LIVING SERVICES),"3,254.92",PHB - SEL ICB,RECOVERABLE COSTS INCL. HEALTH,2103660119,1000061886
05.05.2023,ADULT SOCIAL CARE,PEOPLE PLUS GROUP LTD (INDEPENDENT LIVING SERVICES),"4,137.92",PHB - SEL ICB,RECOVERABLE COSTS INCL. HEALTH,2103660522,1000061886
05.05.2023,ADULT SOCIAL CARE,PEOPLE PLUS GROUP LTD (INDEPENDENT LIVING SERVICES),"7,086.72",PHB - SEL ICB,RECOVERABLE COSTS INCL. HEALTH,2103660372,1000061886
05.05.2023,ADULT SOCIAL CARE,PENDERELS TRUST LTD,"12,959.08",PHB - SEL ICB,RECOVERABLE COSTS INCL. HEALTH,2103660404,1000075856
05.05.2023,ADULT SOCIAL CARE,REDACTED PERSONAL DATA,"9,079.20",PHB - SEL ICB,RECOVERABLE COSTS INCL. HEALTH,REDACTED,REDACTED
05.05.2023,ADULT SOCIAL CARE,REDACTED PERSONAL DATA,"3,342.90",PHB - SEL ICB,RECOVERABLE COSTS INCL. HEALTH,REDACTED,REDACTED
05.05.2023,ADULT SOCIAL CARE,REDACTED PERSONAL DATA,"4,666.16",PHB - SEL ICB,RECOVERABLE COSTS INCL. HEALTH,REDACTED,REDACTED
05.05.2023,ADULT SOCIAL CARE,REDACTED PERSONAL DATA,"1,524.24",PHB - SEL ICB,RECOVERABLE COSTS INCL. HEALTH,REDACTED,REDACTED
05.05.2023,ADULT SOCIAL CARE,REDACTED PERSONAL DATA,"4,205.12",PHB - SEL ICB,RECOVERABLE COSTS INCL. HEALTH,REDACTED,REDACTED
05.05.2023,ADULT SOCIAL CARE,REDACTED PERSONAL DATA,"2,549.52",PHB - SEL ICB,RECOVERABLE COSTS INCL. HEALTH,REDACTED,REDACTED
05.05.2023,ADULT SOCIAL CARE,REDACTED PERSONAL DATA,"7,250.76",PHB - SEL ICB,RECOVERABLE COSTS INCL. HEALTH,REDACTED,REDACTED
05.05.2023,ADULT SOCIAL CARE,PEOPLE PLUS GROUP LTD (INDEPENDENT LIVING SERVICES),-448.2,PHY LTS 18-64,DISCRETIONARY FLEXIBLE FEES & INCOME,2103660200,1000061886
05.05.2023,ADULT SOCIAL CARE,PEOPLE PLUS GROUP LTD (INDEPENDENT LIVING SERVICES),-442.24,PHY LTS 18-64,DISCRETIONARY FLEXIBLE FEES & INCOME,2103659868,1000061886
05.05.2023,ADULT SOCIAL CARE,PEOPLE PLUS GROUP LTD (INDEPENDENT LIVING SERVICES),-344.08,PHY LTS 18-64,DISCRETIONARY FLEXIBLE FEES & INCOME,2103660206,1000061886
05.05.2023,ADULT SOCIAL CARE,PEOPLE PLUS GROUP LTD (INDEPENDENT LIVING SERVICES),-273.48,PHY LTS 18-64,DISCRETIONARY FLEXIBLE FEES & INCOME,2103659981,1000061886
05.05.2023,ADULT SOCIAL CARE,PEOPLE PLUS GROUP LTD (INDEPENDENT LIVING SERVICES),"1,148.00",PHY LTS 18-64,DISCRETIONARY FLEXIBLE FEES & INCOME,2103660207,1000061886
05.05.2023,ADULT SOCIAL CARE,FRESH IDEAS & SOLUTIONS SERVICES CIC,"-1,435.00",PHY LTS 18-64,DISCRETIONARY FLEXIBLE FEES & INCOME,2103660220,1000070832
05.05.2023,ADULT SOCIAL CARE,REDACTED PERSONAL DATA,-270.64,PHY LTS 18-64,DISCRETIONARY FLEXIBLE FEES & INCOME,REDACTED,REDACTED
05.05.2023,ADULT SOCIAL CARE,REDACTED PERSONAL DATA,-331.64,PHY LTS 18-64,DISCRETIONARY FLEXIBLE FEES & INCOME,REDACTED,REDACTED
05.05.2023,ADULT SOCIAL CARE,REALITY FAMILY SUPPORT SERVICES LTD,892.5,PHY LTS 18-64,OTHER PAYMENTS FOR CLIENTS,5902577817,1000087878
05.05.2023,ADULT SOCIAL CARE,PEOPLE PLUS GROUP LTD (INDEPENDENT LIVING SERVICES),"-1,535.34",PHY LTS 18-64,PAYMENTS TO CLIENTS (DIRECT PAYMENTS),2103660536,1000061886
05.05.2023,ADULT SOCIAL CARE,PEOPLE PLUS GROUP LTD (INDEPENDENT LIVING SERVICES),"-1,389.19",PHY LTS 18-64,PAYMENTS TO CLIENTS (DIRECT PAYMENTS),2103659670,1000061886
05.05.2023,ADULT SOCIAL CARE,PEOPLE PLUS GROUP LTD (INDEPENDENT LIVING SERVICES),"-1,164.50",PHY LTS 18-64,PAYMENTS TO CLIENTS (DIRECT PAYMENTS),2103660264,1000061886
05.05.2023,ADULT SOCIAL CARE,PEOPLE PLUS GROUP LTD (INDEPENDENT LIVING SERVICES),-796.77,PHY LTS 18-64,PAYMENTS TO CLIENTS (DIRECT PAYMENTS),2103659752,1000061886
05.05.2023,ADULT SOCIAL CARE,PEOPLE PLUS GROUP LTD (INDEPENDENT LIVING SERVICES),261.04,PHY LTS 18-64,PAYMENTS TO CLIENTS (DIRECT PAYMENTS),2103660444,1000061886
05.05.2023,ADULT SOCIAL CARE,PEOPLE PLUS GROUP LTD (INDEPENDENT LIVING SERVICES),283.76,PHY LTS 18-64,PAYMENTS TO CLIENTS (DIRECT PAYMENTS),2103660269,1000061886
05.05.2023,ADULT SOCIAL CARE,PEOPLE PLUS GROUP LTD (INDEPENDENT LIVING SERVICES),321.18,PHY LTS 18-64,PAYMENTS TO CLIENTS (DIRECT PAYMENTS),2103660554,1000061886
05.05.2023,ADULT SOCIAL CARE,PEOPLE PLUS GROUP LTD (INDEPENDENT LIVING SERVICES),372.41,PHY LTS 18-64,PAYMENTS TO CLIENTS (DIRECT PAYMENTS),2103660083,1000061886
05.05.2023,ADULT SOCIAL CARE,PEOPLE PLUS GROUP LTD (INDEPENDENT LIVING SERVICES),386.52,PHY LTS 18-64,PAYMENTS TO CLIENTS (DIRECT PAYMENTS),2103659768,1000061886
05.05.2023,ADULT SOCIAL CARE,PEOPLE PLUS GROUP LTD (INDEPENDENT LIVING SERVICES),524.64,PHY LTS 18-64,PAYMENTS TO CLIENTS (DIRECT PAYMENTS),2103659838,1000061886
05.05.2023,ADULT SOCIAL CARE,PEOPLE PLUS GROUP LTD (INDEPENDENT LIVING SERVICES),532.05,PHY LTS 18-64,PAYMENTS TO CLIENTS (DIRECT PAYMENTS),2103660552,1000061886
05.05.2023,ADULT SOCIAL CARE,PEOPLE PLUS GROUP LTD (INDEPENDENT LIVING SERVICES),620.7,PHY LTS 18-64,PAYMENTS TO CLIENTS (DIRECT PAYMENTS),2103660180,1000061886
05.05.2023,ADULT SOCIAL CARE,PEOPLE PLUS GROUP LTD (INDEPENDENT LIVING SERVICES),636,PHY LTS 18-64,PAYMENTS TO CLIENTS (DIRECT PAYMENTS),2103659643,1000061886
05.05.2023,ADULT SOCIAL CARE,PEOPLE PLUS GROUP LTD (INDEPENDENT LIVING SERVICES),681.88,PHY LTS 18-64,PAYMENTS TO CLIENTS (DIRECT PAYMENTS),2103659653,1000061886
05.05.2023,ADULT SOCIAL CARE,PEOPLE PLUS GROUP LTD (INDEPENDENT LIVING SERVICES),699.6,PHY LTS 18-64,PAYMENTS TO CLIENTS (DIRECT PAYMENTS),2103660143,1000061886
05.05.2023,ADULT SOCIAL CARE,PEOPLE PLUS GROUP LTD (INDEPENDENT LIVING SERVICES),709.4,PHY LTS 18-64,PAYMENTS TO CLIENTS (DIRECT PAYMENTS),2103660088,1000061886
05.05.2023,ADULT SOCIAL CARE,PEOPLE PLUS GROUP LTD (INDEPENDENT LIVING SERVICES),744.87,PHY LTS 18-64,PAYMENTS TO CLIENTS (DIRECT PAYMENTS),2103659738,1000061886
05.05.2023,ADULT SOCIAL CARE,PEOPLE PLUS GROUP LTD (INDEPENDENT LIVING SERVICES),744.87,PHY LTS 18-64,PAYMENTS TO CLIENTS (DIRECT PAYMENTS),2103660177,1000061886
05.05.2023,ADULT SOCIAL CARE,PEOPLE PLUS GROUP LTD (INDEPENDENT LIVING SERVICES),744.87,PHY LTS 18-64,PAYMENTS TO CLIENTS (DIRECT PAYMENTS),2103660281,1000061886
05.05.2023,ADULT SOCIAL CARE,PEOPLE PLUS GROUP LTD (INDEPENDENT LIVING SERVICES),762.57,PHY LTS 18-64,PAYMENTS TO CLIENTS (DIRECT PAYMENTS),2103659740,1000061886
05.05.2023,ADULT SOCIAL CARE,PEOPLE PLUS GROUP LTD (INDEPENDENT LIVING SERVICES),781.56,PHY LTS 18-64,PAYMENTS TO CLIENTS (DIRECT PAYMENTS),2103660381,1000061886
05.05.2023,ADULT SOCIAL CARE,PEOPLE PLUS GROUP LTD (INDEPENDENT LIVING SERVICES),805.56,PHY LTS 18-64,PAYMENTS TO CLIENTS (DIRECT PAYMENTS),2103660066,1000061886
05.05.2023,ADULT SOCIAL CARE,PEOPLE PLUS GROUP LTD (INDEPENDENT LIVING SERVICES),815.81,PHY LTS 18-64,PAYMENTS TO CLIENTS (DIRECT PAYMENTS),2103659669,1000061886
05.05.2023,ADULT SOCIAL CARE,PEOPLE PLUS GROUP LTD (INDEPENDENT LIVING SERVICES),851.28,PHY LTS 18-64,PAYMENTS TO CLIENTS (DIRECT PAYMENTS),2103659741,1000061886
05.05.2023,ADULT SOCIAL CARE,PEOPLE PLUS GROUP LTD (INDEPENDENT LIVING SERVICES),868.99,PHY LTS 18-64,PAYMENTS TO CLIENTS (DIRECT PAYMENTS),2103659745,1000061886
05.05.2023,ADULT SOCIAL CARE,PEOPLE PLUS GROUP LTD (INDEPENDENT LIVING SERVICES),886.75,PHY LTS 18-64,PAYMENTS TO CLIENTS (DIRECT PAYMENTS),2103659859,1000061886
05.05.2023,ADULT SOCIAL CARE,PEOPLE PLUS GROUP LTD (INDEPENDENT LIVING SERVICES),886.75,PHY LTS 18-64,PAYMENTS TO CLIENTS (DIRECT PAYMENTS),2103659957,1000061886
05.05.2023,ADULT SOCIAL CARE,PEOPLE PLUS GROUP LTD (INDEPENDENT LIVING SERVICES),886.75,PHY LTS 18-64,PAYMENTS TO CLIENTS (DIRECT PAYMENTS),2103660564,1000061886
05.05.2023,ADULT SOCIAL CARE,PEOPLE PLUS GROUP LTD (INDEPENDENT LIVING SERVICES),922.22,PHY LTS 18-64,PAYMENTS TO CLIENTS (DIRECT PAYMENTS),2103659665,1000061886
05.05.2023,ADULT SOCIAL CARE,PEOPLE PLUS GROUP LTD (INDEPENDENT LIVING SERVICES),959.55,PHY LTS 18-64,PAYMENTS TO CLIENTS (DIRECT PAYMENTS),2103659967,1000061886
05.05.2023,ADULT SOCIAL CARE,PEOPLE PLUS GROUP LTD (INDEPENDENT LIVING SERVICES),975.4,PHY LTS 18-64,PAYMENTS TO CLIENTS (DIRECT PAYMENTS),2103660184,1000061886
05.05.2023,ADULT SOCIAL CARE,PEOPLE PLUS GROUP LTD (INDEPENDENT LIVING SERVICES),975.51,PHY LTS 18-64,PAYMENTS TO CLIENTS (DIRECT PAYMENTS),2103660077,1000061886
05.05.2023,ADULT SOCIAL CARE,PEOPLE PLUS GROUP LTD (INDEPENDENT LIVING SERVICES),978.32,PHY LTS 18-64,PAYMENTS TO CLIENTS (DIRECT PAYMENTS),2103660065,1000061886
05.05.2023,ADULT SOCIAL CARE,PEOPLE PLUS GROUP LTD (INDEPENDENT LIVING SERVICES),"1,016.00",PHY LTS 18-64,PAYMENTS TO CLIENTS (DIRECT PAYMENTS),2103660378,1000061886
05.05.2023,ADULT SOCIAL CARE,PEOPLE PLUS GROUP LTD (INDEPENDENT LIVING SERVICES),"1,037.44",PHY LTS 18-64,PAYMENTS TO CLIENTS (DIRECT PAYMENTS),2103660252,1000061886
05.05.2023,ADULT SOCIAL CARE,PEOPLE PLUS GROUP LTD (INDEPENDENT LIVING SERVICES),"1,068.36",PHY LTS 18-64,PAYMENTS TO CLIENTS (DIRECT PAYMENTS),2103659654,1000061886
05.05.2023,ADULT SOCIAL CARE,PEOPLE PLUS GROUP LTD (INDEPENDENT LIVING SERVICES),"1,099.57",PHY LTS 18-64,PAYMENTS TO CLIENTS (DIRECT PAYMENTS),2103660186,1000061886
05.05.2023,ADULT SOCIAL CARE,PEOPLE PLUS GROUP LTD (INDEPENDENT LIVING SERVICES),"1,170.51",PHY LTS 18-64,PAYMENTS TO CLIENTS (DIRECT PAYMENTS),2103660565,1000061886
05.05.2023,ADULT SOCIAL CARE,PEOPLE PLUS GROUP LTD (INDEPENDENT LIVING SERVICES),"1,183.04",PHY LTS 18-64,PAYMENTS TO CLIENTS (DIRECT PAYMENTS),2103660487,1000061886
05.05.2023,ADULT SOCIAL CARE,PEOPLE PLUS GROUP LTD (INDEPENDENT LIVING SERVICES),"1,223.80",PHY LTS 18-64,PAYMENTS TO CLIENTS (DIRECT PAYMENTS),2103659763,1000061886
05.05.2023,ADULT SOCIAL CARE,PEOPLE PLUS GROUP LTD (INDEPENDENT LIVING SERVICES),"1,241.45",PHY LTS 18-64,PAYMENTS TO CLIENTS (DIRECT PAYMENTS),2103659700,1000061886
05.05.2023,ADULT SOCIAL CARE,PEOPLE PLUS GROUP LTD (INDEPENDENT LIVING SERVICES),"1,312.39",PHY LTS 18-64,PAYMENTS TO CLIENTS (DIRECT PAYMENTS),2103659972,1000061886
05.05.2023,ADULT SOCIAL CARE,PEOPLE PLUS GROUP LTD (INDEPENDENT LIVING SERVICES),"1,365.57",PHY LTS 18-64,PAYMENTS TO CLIENTS (DIRECT PAYMENTS),2103659673,1000061886
05.05.2023,ADULT SOCIAL CARE,PEOPLE PLUS GROUP LTD (INDEPENDENT LIVING SERVICES),"1,383.33",PHY LTS 18-64,PAYMENTS TO CLIENTS (DIRECT PAYMENTS),2103660187,1000061886
05.05.2023,ADULT SOCIAL CARE,PEOPLE PLUS GROUP LTD (INDEPENDENT LIVING SERVICES),"1,488.41",PHY LTS 18-64,PAYMENTS TO CLIENTS (DIRECT PAYMENTS),2103659800,1000061886
05.05.2023,ADULT SOCIAL CARE,PEOPLE PLUS GROUP LTD (INDEPENDENT LIVING SERVICES),"1,489.74",PHY LTS 18-64,PAYMENTS TO CLIENTS (DIRECT PAYMENTS),2103659968,1000061886
05.05.2023,ADULT SOCIAL CARE,PEOPLE PLUS GROUP LTD (INDEPENDENT LIVING SERVICES),"1,560.68",PHY LTS 18-64,PAYMENTS TO CLIENTS (DIRECT PAYMENTS),2103659976,1000061886
05.05.2023,ADULT SOCIAL CARE,PEOPLE PLUS GROUP LTD (INDEPENDENT LIVING SERVICES),"1,589.99",PHY LTS 18-64,PAYMENTS TO CLIENTS (DIRECT PAYMENTS),2103659919,1000061886
05.05.2023,ADULT SOCIAL CARE,PEOPLE PLUS GROUP LTD (INDEPENDENT LIVING SERVICES),"1,631.62",PHY LTS 18-64,PAYMENTS TO CLIENTS (DIRECT PAYMENTS),2103659978,1000061886
05.05.2023,ADULT SOCIAL CARE,PEOPLE PLUS GROUP LTD (INDEPENDENT LIVING SERVICES),"1,702.56",PHY LTS 18-64,PAYMENTS TO CLIENTS (DIRECT PAYMENTS),2103660562,1000061886
05.05.2023,ADULT SOCIAL CARE,PEOPLE PLUS GROUP LTD (INDEPENDENT LIVING SERVICES),"1,816.45",PHY LTS 18-64,PAYMENTS TO CLIENTS (DIRECT PAYMENTS),2103660528,1000061886
05.05.2023,ADULT SOCIAL CARE,PEOPLE PLUS GROUP LTD (INDEPENDENT LIVING SERVICES),"1,899.60",PHY LTS 18-64,PAYMENTS TO CLIENTS (DIRECT PAYMENTS),2103660434,1000061886
05.05.2023,ADULT SOCIAL CARE,PEOPLE PLUS GROUP LTD (INDEPENDENT LIVING SERVICES),"1,908.00",PHY LTS 18-64,PAYMENTS TO CLIENTS (DIRECT PAYMENTS),2103659840,1000061886
05.05.2023,ADULT SOCIAL CARE,PEOPLE PLUS GROUP LTD (INDEPENDENT LIVING SERVICES),"2,181.38",PHY LTS 18-64,PAYMENTS TO CLIENTS (DIRECT PAYMENTS),2103659758,1000061886
05.05.2023,ADULT SOCIAL CARE,PEOPLE PLUS GROUP LTD (INDEPENDENT LIVING SERVICES),"2,482.90",PHY LTS 18-64,PAYMENTS TO CLIENTS (DIRECT PAYMENTS),2103660188,1000061886
05.05.2023,ADULT SOCIAL CARE,PEOPLE PLUS GROUP LTD (INDEPENDENT LIVING SERVICES),"2,595.17",PHY LTS 18-64,PAYMENTS TO CLIENTS (DIRECT PAYMENTS),2103660424,1000061886
05.05.2023,ADULT SOCIAL CARE,PEOPLE PLUS GROUP LTD (INDEPENDENT LIVING SERVICES),"2,731.19",PHY LTS 18-64,PAYMENTS TO CLIENTS (DIRECT PAYMENTS),2103660309,1000061886
05.05.2023,ADULT SOCIAL CARE,PEOPLE PLUS GROUP LTD (INDEPENDENT LIVING SERVICES),"2,939.40",PHY LTS 18-64,PAYMENTS TO CLIENTS (DIRECT PAYMENTS),2103660488,1000061886
05.05.2023,ADULT SOCIAL CARE,PEOPLE PLUS GROUP LTD (INDEPENDENT LIVING SERVICES),"3,542.24",PHY LTS 18-64,PAYMENTS TO CLIENTS (DIRECT PAYMENTS),2103660170,1000061886
05.05.2023,ADULT SOCIAL CARE,PEOPLE PLUS GROUP LTD (INDEPENDENT LIVING SERVICES),"3,641.40",PHY LTS 18-64,PAYMENTS TO CLIENTS (DIRECT PAYMENTS),2103660445,1000061886
05.05.2023,ADULT SOCIAL CARE,PEOPLE PLUS GROUP LTD (INDEPENDENT LIVING SERVICES),"4,220.93",PHY LTS 18-64,PAYMENTS TO CLIENTS (DIRECT PAYMENTS),2103659749,1000061886
05.05.2023,ADULT SOCIAL CARE,FRESH IDEAS & SOLUTIONS SERVICES CIC,"-17,722.91",PHY LTS 18-64,PAYMENTS TO CLIENTS (DIRECT PAYMENTS),2103660357,1000070832
05.05.2023,ADULT SOCIAL CARE,FRESH IDEAS & SOLUTIONS SERVICES CIC,-980.61,PHY LTS 18-64,PAYMENTS TO CLIENTS (DIRECT PAYMENTS),2103659959,1000070832
05.05.2023,ADULT SOCIAL CARE,FRESH IDEAS & SOLUTIONS SERVICES CIC,402.7,PHY LTS 18-64,PAYMENTS TO CLIENTS (DIRECT PAYMENTS),2103659698,1000070832
05.05.2023,ADULT SOCIAL CARE,FRESH IDEAS & SOLUTIONS SERVICES CIC,715.64,PHY LTS 18-64,PAYMENTS TO CLIENTS (DIRECT PAYMENTS),2103659703,1000070832
05.05.2023,ADULT SOCIAL CARE,FRESH IDEAS & SOLUTIONS SERVICES CIC,721.93,PHY LTS 18-64,PAYMENTS TO CLIENTS (DIRECT PAYMENTS),2103659777,1000070832
05.05.2023,ADULT SOCIAL CARE,FRESH IDEAS & SOLUTIONS SERVICES CIC,774.06,PHY LTS 18-64,PAYMENTS TO CLIENTS (DIRECT PAYMENTS),2103659701,1000070832
05.05.2023,ADULT SOCIAL CARE,FRESH IDEAS & SOLUTIONS SERVICES CIC,792.87,PHY LTS 18-64,PAYMENTS TO CLIENTS (DIRECT PAYMENTS),2103659873,1000070832
05.05.2023,ADULT SOCIAL CARE,FRESH IDEAS & SOLUTIONS SERVICES CIC,849.81,PHY LTS 18-64,PAYMENTS TO CLIENTS (DIRECT PAYMENTS),2103660081,1000070832
05.05.2023,ADULT SOCIAL CARE,FRESH IDEAS & SOLUTIONS SERVICES CIC,917.04,PHY LTS 18-64,PAYMENTS TO CLIENTS (DIRECT PAYMENTS),2103660586,1000070832
05.05.2023,ADULT SOCIAL CARE,FRESH IDEAS & SOLUTIONS SERVICES CIC,"1,041.16",PHY LTS 18-64,PAYMENTS TO CLIENTS (DIRECT PAYMENTS),2103659697,1000070832
05.05.2023,ADULT SOCIAL CARE,FRESH IDEAS & SOLUTIONS SERVICES CIC,"1,225.98",PHY LTS 18-64,PAYMENTS TO CLIENTS (DIRECT PAYMENTS),2103660155,1000070832
05.05.2023,ADULT SOCIAL CARE,FRESH IDEAS & SOLUTIONS SERVICES CIC,"1,284.80",PHY LTS 18-64,PAYMENTS TO CLIENTS (DIRECT PAYMENTS),2103659695,1000070832
05.05.2023,ADULT SOCIAL CARE,FRESH IDEAS & SOLUTIONS SERVICES CIC,"1,331.98",PHY LTS 18-64,PAYMENTS TO CLIENTS (DIRECT PAYMENTS),2103660311,1000070832
05.05.2023,ADULT SOCIAL CARE,FRESH IDEAS & SOLUTIONS SERVICES CIC,"1,347.86",PHY LTS 18-64,PAYMENTS TO CLIENTS (DIRECT PAYMENTS),2103660408,1000070832
05.05.2023,ADULT SOCIAL CARE,FRESH IDEAS & SOLUTIONS SERVICES CIC,"1,418.80",PHY LTS 18-64,PAYMENTS TO CLIENTS (DIRECT PAYMENTS),2103660223,1000070832
05.05.2023,ADULT SOCIAL CARE,FRESH IDEAS & SOLUTIONS SERVICES CIC,"1,608.68",PHY LTS 18-64,PAYMENTS TO CLIENTS (DIRECT PAYMENTS),2103660388,1000070832
05.05.2023,ADULT SOCIAL CARE,FRESH IDEAS & SOLUTIONS SERVICES CIC,"1,702.56",PHY LTS 18-64,PAYMENTS TO CLIENTS (DIRECT PAYMENTS),2103660278,1000070832
05.05.2023,ADULT SOCIAL CARE,FRESH IDEAS & SOLUTIONS SERVICES CIC,"1,865.89",PHY LTS 18-64,PAYMENTS TO CLIENTS (DIRECT PAYMENTS),2103659941,1000070832
05.05.2023,ADULT SOCIAL CARE,FRESH IDEAS & SOLUTIONS SERVICES CIC,"2,055.88",PHY LTS 18-64,PAYMENTS TO CLIENTS (DIRECT PAYMENTS),2103659785,1000070832
05.05.2023,ADULT SOCIAL CARE,FRESH IDEAS & SOLUTIONS SERVICES CIC,"3,116.13",PHY LTS 18-64,PAYMENTS TO CLIENTS (DIRECT PAYMENTS),2103659755,1000070832
05.05.2023,ADULT SOCIAL CARE,FRESH IDEAS & SOLUTIONS SERVICES CIC,"3,321.52",PHY LTS 18-64,PAYMENTS TO CLIENTS (DIRECT PAYMENTS),2103660102,1000070832
05.05.2023,ADULT SOCIAL CARE,PEOPLEPLUS GROUP LTD,"2,226.48",PHY LTS 18-64,PAYMENTS TO CLIENTS (DIRECT PAYMENTS),2103659717,1000076642
05.05.2023,ADULT SOCIAL CARE,PEOPLEPLUS GROUP LTD,"3,104.26",PHY LTS 18-64,PAYMENTS TO CLIENTS (DIRECT PAYMENTS),2103660006,1000076642
05.05.2023,ADULT SOCIAL CARE,BARRIE BOOKKEEPING & PAYROLL SOLUTIONS LTD,745.16,PHY LTS 18-64,PAYMENTS TO CLIENTS (DIRECT PAYMENTS),2103660403,1000089211
05.05.2023,ADULT SOCIAL CARE,REDACTED PERSONAL DATA,"1,986.32",PHY LTS 18-64,PAYMENTS TO CLIENTS (DIRECT PAYMENTS),REDACTED,REDACTED
05.05.2023,ADULT SOCIAL CARE,REDACTED PERSONAL DATA,676.17,PHY LTS 18-64,PAYMENTS TO CLIENTS (DIRECT PAYMENTS),REDACTED,REDACTED
05.05.2023,ADULT SOCIAL CARE,REDACTED PERSONAL DATA,"1,135.04",PHY LTS 18-64,PAYMENTS TO CLIENTS (DIRECT PAYMENTS),REDACTED,REDACTED
05.05.2023,ADULT SOCIAL CARE,REDACTED PERSONAL DATA,"1,137.33",PHY LTS 18-64,PAYMENTS TO CLIENTS (DIRECT PAYMENTS),REDACTED,REDACTED
05.05.2023,ADULT SOCIAL CARE,REDACTED PERSONAL DATA,319.23,PHY LTS 18-64,PAYMENTS TO CLIENTS (DIRECT PAYMENTS),REDACTED,REDACTED
05.05.2023,ADULT SOCIAL CARE,REDACTED PERSONAL DATA,784.8,PHY LTS 18-64,PAYMENTS TO CLIENTS (DIRECT PAYMENTS),REDACTED,REDACTED
05.05.2023,ADULT SOCIAL CARE,REDACTED PERSONAL DATA,516.58,PHY LTS 18-64,PAYMENTS TO CLIENTS (DIRECT PAYMENTS),REDACTED,REDACTED
05.05.2023,ADULT SOCIAL CARE,REDACTED PERSONAL DATA,"3,405.12",PHY LTS 18-64,PAYMENTS TO CLIENTS (DIRECT PAYMENTS),REDACTED,REDACTED
05.05.2023,ADULT SOCIAL CARE,REDACTED PERSONAL DATA,"-1,159.50",PHY LTS 18-64,PAYMENTS TO CLIENTS (DIRECT PAYMENTS),REDACTED,REDACTED
05.05.2023,ADULT SOCIAL CARE,REDACTED PERSONAL DATA,"1,927.56",PHY LTS 18-64,PAYMENTS TO CLIENTS (DIRECT PAYMENTS),REDACTED,REDACTED
05.05.2023,ADULT SOCIAL CARE,REDACTED PERSONAL DATA,691.64,PHY LTS 18-64,PAYMENTS TO CLIENTS (DIRECT PAYMENTS),REDACTED,REDACTED
05.05.2023,ADULT SOCIAL CARE,REDACTED PERSONAL DATA,"1,204.16",PHY LTS 18-64,PAYMENTS TO CLIENTS (DIRECT PAYMENTS),REDACTED,REDACTED
05.05.2023,ADULT SOCIAL CARE,REDACTED PERSONAL DATA,"2,999.48",PHY LTS 18-64,PAYMENTS TO CLIENTS (DIRECT PAYMENTS),REDACTED,REDACTED
05.05.2023,ADULT SOCIAL CARE,REDACTED PERSONAL DATA,602.99,PHY LTS 18-64,PAYMENTS TO CLIENTS (DIRECT PAYMENTS),REDACTED,REDACTED
05.05.2023,ADULT SOCIAL CARE,REDACTED PERSONAL DATA,283.76,PHY LTS 18-64,PAYMENTS TO CLIENTS (DIRECT PAYMENTS),REDACTED,REDACTED
05.05.2023,ADULT SOCIAL CARE,REDACTED PERSONAL DATA,"-1,450.51",PHY LTS 18-64,PAYMENTS TO CLIENTS (DIRECT PAYMENTS),REDACTED,REDACTED
05.05.2023,ADULT SOCIAL CARE,REDACTED PERSONAL DATA,"2,709.66",PHY LTS 18-64,PAYMENTS TO CLIENTS (DIRECT PAYMENTS),REDACTED,REDACTED
05.05.2023,ADULT SOCIAL CARE,REDACTED PERSONAL DATA,993.16,PHY LTS 18-64,PAYMENTS TO CLIENTS (DIRECT PAYMENTS),REDACTED,REDACTED
05.05.2023,ADULT SOCIAL CARE,REDACTED PERSONAL DATA,"3,142.44",PHY LTS 18-64,PAYMENTS TO CLIENTS (DIRECT PAYMENTS),REDACTED,REDACTED
05.05.2023,ADULT SOCIAL CARE,REDACTED PERSONAL DATA,"1,064.10",PHY LTS 18-64,PAYMENTS TO CLIENTS (DIRECT PAYMENTS),REDACTED,REDACTED
05.05.2023,ADULT SOCIAL CARE,REDACTED PERSONAL DATA,"-1,123.64",PHY LTS 18-64,PAYMENTS TO CLIENTS (DIRECT PAYMENTS),REDACTED,REDACTED
05.05.2023,ADULT SOCIAL CARE,REDACTED PERSONAL DATA,"2,119.04",PHY LTS 18-64,PAYMENTS TO CLIENTS (DIRECT PAYMENTS),REDACTED,REDACTED
05.05.2023,ADULT SOCIAL CARE,REDACTED PERSONAL DATA,"1,190.51",PHY LTS 18-64,PAYMENTS TO CLIENTS (DIRECT PAYMENTS),REDACTED,REDACTED
05.05.2023,ADULT SOCIAL CARE,REDACTED PERSONAL DATA,"1,986.32",PHY LTS 18-64,PAYMENTS TO CLIENTS (DIRECT PAYMENTS),REDACTED,REDACTED
05.05.2023,ADULT SOCIAL CARE,REDACTED PERSONAL DATA,751.96,PHY LTS 18-64,PAYMENTS TO CLIENTS (DIRECT PAYMENTS),REDACTED,REDACTED
05.05.2023,ADULT SOCIAL CARE,REDACTED PERSONAL DATA,"1,241.45",PHY LTS 18-64,PAYMENTS TO CLIENTS (DIRECT PAYMENTS),REDACTED,REDACTED
05.05.2023,ADULT SOCIAL CARE,REDACTED PERSONAL DATA,"1,243.68",PHY LTS 18-64,PAYMENTS TO CLIENTS (DIRECT PAYMENTS),REDACTED,REDACTED
05.05.2023,ADULT SOCIAL CARE,REDACTED PERSONAL DATA,"1,986.32",PHY LTS 18-64,PAYMENTS TO CLIENTS (DIRECT PAYMENTS),REDACTED,REDACTED
05.05.2023,ADULT SOCIAL CARE,REDACTED PERSONAL DATA,"1,501.74",PHY LTS 18-64,PAYMENTS TO CLIENTS (DIRECT PAYMENTS),REDACTED,REDACTED
05.05.2023,ADULT SOCIAL CARE,REDACTED PERSONAL DATA,808.48,PHY LTS 18-64,PAYMENTS TO CLIENTS (DIRECT PAYMENTS),REDACTED,REDACTED
05.05.2023,ADULT SOCIAL CARE,REDACTED PERSONAL DATA,851.28,PHY LTS 18-64,PAYMENTS TO CLIENTS (DIRECT PAYMENTS),REDACTED,REDACTED
05.05.2023,ADULT SOCIAL CARE,REDACTED PERSONAL DATA,-560.58,PHY LTS 18-64,PAYMENTS TO CLIENTS (DIRECT PAYMENTS),REDACTED,REDACTED
05.05.2023,ADULT SOCIAL CARE,REDACTED PERSONAL DATA,"1,106.76",PHY LTS 18-64,PAYMENTS TO CLIENTS (DIRECT PAYMENTS),REDACTED,REDACTED
05.05.2023,ADULT SOCIAL CARE,REDACTED PERSONAL DATA,"1,011.71",PHY LTS 18-64,PAYMENTS TO CLIENTS (DIRECT PAYMENTS),REDACTED,REDACTED
05.05.2023,ADULT SOCIAL CARE,REDACTED PERSONAL DATA,835.81,PHY LTS 18-64,PAYMENTS TO CLIENTS (DIRECT PAYMENTS),REDACTED,REDACTED
05.05.2023,ADULT SOCIAL CARE,REDACTED PERSONAL DATA,"1,279.15",PHY LTS 18-64,PAYMENTS TO CLIENTS (DIRECT PAYMENTS),REDACTED,REDACTED
05.05.2023,ADULT SOCIAL CARE,REDACTED PERSONAL DATA,587.52,PHY LTS 18-64,PAYMENTS TO CLIENTS (DIRECT PAYMENTS),REDACTED,REDACTED
05.05.2023,ADULT SOCIAL CARE,REDACTED PERSONAL DATA,"1,207.20",PHY LTS 18-64,PAYMENTS TO CLIENTS (DIRECT PAYMENTS),REDACTED,REDACTED
05.05.2023,ADULT SOCIAL CARE,REDACTED PERSONAL DATA,"1,527.44",PHY LTS 18-64,PAYMENTS TO CLIENTS (DIRECT PAYMENTS),REDACTED,REDACTED
05.05.2023,ADULT SOCIAL CARE,REDACTED PERSONAL DATA,711.64,PHY LTS 18-64,PAYMENTS TO CLIENTS (DIRECT PAYMENTS),REDACTED,REDACTED
05.05.2023,ADULT SOCIAL CARE,REDACTED PERSONAL DATA,727.11,PHY LTS 18-64,PAYMENTS TO CLIENTS (DIRECT PAYMENTS),REDACTED,REDACTED
05.05.2023,ADULT SOCIAL CARE,REDACTED PERSONAL DATA,"3,972.64",PHY LTS 18-64,PAYMENTS TO CLIENTS (DIRECT PAYMENTS),REDACTED,REDACTED
05.05.2023,ADULT SOCIAL CARE,REDACTED PERSONAL DATA,-715.05,PHY LTS 18-64,PAYMENTS TO CLIENTS (DIRECT PAYMENTS),REDACTED,REDACTED
05.05.2023,ADULT SOCIAL CARE,REDACTED PERSONAL DATA,"1,335.75",PHY LTS 18-64,PAYMENTS TO CLIENTS (DIRECT PAYMENTS),REDACTED,REDACTED
05.05.2023,ADULT SOCIAL CARE,REDACTED PERSONAL DATA,541.12,PHY LTS 18-64,PAYMENTS TO CLIENTS (DIRECT PAYMENTS),REDACTED,REDACTED
05.05.2023,ADULT SOCIAL CARE,REDACTED PERSONAL DATA,"1,501.00",PHY LTS 18-64,PAYMENTS TO CLIENTS (DIRECT PAYMENTS),REDACTED,REDACTED
05.05.2023,ADULT SOCIAL CARE,PEOPLE PLUS GROUP LTD (INDEPENDENT LIVING SERVICES),-644.56,PHY LTS 65+,DISCRETIONARY FLEXIBLE FEES & INCOME,2103660582,1000061886
05.05.2023,ADULT SOCIAL CARE,PEOPLE PLUS GROUP LTD (INDEPENDENT LIVING SERVICES),-476.56,PHY LTS 65+,DISCRETIONARY FLEXIBLE FEES & INCOME,2103659862,1000061886
05.05.2023,ADULT SOCIAL CARE,PEOPLE PLUS GROUP LTD (INDEPENDENT LIVING SERVICES),-447.84,PHY LTS 65+,DISCRETIONARY FLEXIBLE FEES & INCOME,2103660198,1000061886
05.05.2023,ADULT SOCIAL CARE,PEOPLE PLUS GROUP LTD (INDEPENDENT LIVING SERVICES),-438.52,PHY LTS 65+,DISCRETIONARY FLEXIBLE FEES & INCOME,2103659642,1000061886
05.05.2023,ADULT SOCIAL CARE,PEOPLE PLUS GROUP LTD (INDEPENDENT LIVING SERVICES),-367.96,PHY LTS 65+,DISCRETIONARY FLEXIBLE FEES & INCOME,2103659753,1000061886
05.05.2023,ADULT SOCIAL CARE,BARRIE BOOKKEEPING & PAYROLL SOLUTIONS LTD,"-1,835.02",PHY LTS 65+,DISCRETIONARY FLEXIBLE FEES & INCOME,2103660339,1000089211
05.05.2023,ADULT SOCIAL CARE,REDACTED PERSONAL DATA,-375,PHY LTS 65+,DISCRETIONARY FLEXIBLE FEES & INCOME,REDACTED,REDACTED
05.05.2023,ADULT SOCIAL CARE,REDACTED PERSONAL DATA,-445.6,PHY LTS 65+,DISCRETIONARY FLEXIBLE FEES & INCOME,REDACTED,REDACTED
05.05.2023,ADULT SOCIAL CARE,REDACTED PERSONAL DATA,-398.28,PHY LTS 65+,DISCRETIONARY FLEXIBLE FEES & INCOME,REDACTED,REDACTED
05.05.2023,ADULT SOCIAL CARE,METRO HOMECARE LTD,462,PHY LTS 65+,HOMECARE - SPOT,2103659224,1000070695
05.05.2023,ADULT SOCIAL CARE,METRO HOMECARE LTD,"1,237.50",PHY LTS 65+,HOMECARE - SPOT,2103659221,1000070695
05.05.2023,ADULT SOCIAL CARE,PEOPLE PLUS GROUP LTD (INDEPENDENT LIVING SERVICES),"-9,327.90",PHY LTS 65+,PAYMENTS TO CLIENTS (DIRECT PAYMENTS),2103660558,1000061886
05.05.2023,ADULT SOCIAL CARE,PEOPLE PLUS GROUP LTD (INDEPENDENT LIVING SERVICES),"-3,493.43",PHY LTS 65+,PAYMENTS TO CLIENTS (DIRECT PAYMENTS),2103659849,1000061886
05.05.2023,ADULT SOCIAL CARE,PEOPLE PLUS GROUP LTD (INDEPENDENT LIVING SERVICES),"-2,739.68",PHY LTS 65+,PAYMENTS TO CLIENTS (DIRECT PAYMENTS),2103659845,1000061886
05.05.2023,ADULT SOCIAL CARE,PEOPLE PLUS GROUP LTD (INDEPENDENT LIVING SERVICES),"-2,574.09",PHY LTS 65+,PAYMENTS TO CLIENTS (DIRECT PAYMENTS),2103660086,1000061886
05.05.2023,ADULT SOCIAL CARE,PEOPLE PLUS GROUP LTD (INDEPENDENT LIVING SERVICES),"-2,288.08",PHY LTS 65+,PAYMENTS TO CLIENTS (DIRECT PAYMENTS),2103659992,1000061886
05.05.2023,ADULT SOCIAL CARE,PEOPLE PLUS GROUP LTD (INDEPENDENT LIVING SERVICES),"-1,307.47",PHY LTS 65+,PAYMENTS TO CLIENTS (DIRECT PAYMENTS),2103659662,1000061886
05.05.2023,ADULT SOCIAL CARE,PEOPLE PLUS GROUP LTD (INDEPENDENT LIVING SERVICES),"-1,021.46",PHY LTS 65+,PAYMENTS TO CLIENTS (DIRECT PAYMENTS),2103660193,1000061886
05.05.2023,ADULT SOCIAL CARE,PEOPLE PLUS GROUP LTD (INDEPENDENT LIVING SERVICES),"-1,021.46",PHY LTS 65+,PAYMENTS TO CLIENTS (DIRECT PAYMENTS),2103660400,1000061886
05.05.2023,ADULT SOCIAL CARE,PEOPLE PLUS GROUP LTD (INDEPENDENT LIVING SERVICES),-878.49,PHY LTS 65+,PAYMENTS TO CLIENTS (DIRECT PAYMENTS),2103659683,1000061886
05.05.2023,ADULT SOCIAL CARE,PEOPLE PLUS GROUP LTD (INDEPENDENT LIVING SERVICES),-592.48,PHY LTS 65+,PAYMENTS TO CLIENTS (DIRECT PAYMENTS),2103659663,1000061886
05.05.2023,ADULT SOCIAL CARE,PEOPLE PLUS GROUP LTD (INDEPENDENT LIVING SERVICES),365.76,PHY LTS 65+,PAYMENTS TO CLIENTS (DIRECT PAYMENTS),2103660353,1000061886
05.05.2023,ADULT SOCIAL CARE,PEOPLE PLUS GROUP LTD (INDEPENDENT LIVING SERVICES),549.76,PHY LTS 65+,PAYMENTS TO CLIENTS (DIRECT PAYMENTS),2103660273,1000061886
05.05.2023,ADULT SOCIAL CARE,PEOPLE PLUS GROUP LTD (INDEPENDENT LIVING SERVICES),691.64,PHY LTS 65+,PAYMENTS TO CLIENTS (DIRECT PAYMENTS),2103659658,1000061886
05.05.2023,ADULT SOCIAL CARE,PEOPLE PLUS GROUP LTD (INDEPENDENT LIVING SERVICES),735.16,PHY LTS 65+,PAYMENTS TO CLIENTS (DIRECT PAYMENTS),2103660257,1000061886
05.05.2023,ADULT SOCIAL CARE,PEOPLE PLUS GROUP LTD (INDEPENDENT LIVING SERVICES),742.08,PHY LTS 65+,PAYMENTS TO CLIENTS (DIRECT PAYMENTS),2103659984,1000061886
05.05.2023,ADULT SOCIAL CARE,PEOPLE PLUS GROUP LTD (INDEPENDENT LIVING SERVICES),744.87,PHY LTS 65+,PAYMENTS TO CLIENTS (DIRECT PAYMENTS),2103660405,1000061886
05.05.2023,ADULT SOCIAL CARE,PEOPLE PLUS GROUP LTD (INDEPENDENT LIVING SERVICES),744.87,PHY LTS 65+,PAYMENTS TO CLIENTS (DIRECT PAYMENTS),2103660548,1000061886
05.05.2023,ADULT SOCIAL CARE,PEOPLE PLUS GROUP LTD (INDEPENDENT LIVING SERVICES),780.34,PHY LTS 65+,PAYMENTS TO CLIENTS (DIRECT PAYMENTS),2103660308,1000061886
05.05.2023,ADULT SOCIAL CARE,PEOPLE PLUS GROUP LTD (INDEPENDENT LIVING SERVICES),798.05,PHY LTS 65+,PAYMENTS TO CLIENTS (DIRECT PAYMENTS),2103660573,1000061886
05.05.2023,ADULT SOCIAL CARE,PEOPLE PLUS GROUP LTD (INDEPENDENT LIVING SERVICES),815.81,PHY LTS 65+,PAYMENTS TO CLIENTS (DIRECT PAYMENTS),2103660545,1000061886
05.05.2023,ADULT SOCIAL CARE,PEOPLE PLUS GROUP LTD (INDEPENDENT LIVING SERVICES),839.61,PHY LTS 65+,PAYMENTS TO CLIENTS (DIRECT PAYMENTS),2103660344,1000061886
05.05.2023,ADULT SOCIAL CARE,PEOPLE PLUS GROUP LTD (INDEPENDENT LIVING SERVICES),850.32,PHY LTS 65+,PAYMENTS TO CLIENTS (DIRECT PAYMENTS),2103660555,1000061886
05.05.2023,ADULT SOCIAL CARE,PEOPLE PLUS GROUP LTD (INDEPENDENT LIVING SERVICES),865.76,PHY LTS 65+,PAYMENTS TO CLIENTS (DIRECT PAYMENTS),2103660384,1000061886
05.05.2023,ADULT SOCIAL CARE,PEOPLE PLUS GROUP LTD (INDEPENDENT LIVING SERVICES),886.75,PHY LTS 65+,PAYMENTS TO CLIENTS (DIRECT PAYMENTS),2103659771,1000061886
05.05.2023,ADULT SOCIAL CARE,PEOPLE PLUS GROUP LTD (INDEPENDENT LIVING SERVICES),922.22,PHY LTS 65+,PAYMENTS TO CLIENTS (DIRECT PAYMENTS),2103659664,1000061886
05.05.2023,ADULT SOCIAL CARE,PEOPLE PLUS GROUP LTD (INDEPENDENT LIVING SERVICES),939.93,PHY LTS 65+,PAYMENTS TO CLIENTS (DIRECT PAYMENTS),2103659661,1000061886
05.05.2023,ADULT SOCIAL CARE,PEOPLE PLUS GROUP LTD (INDEPENDENT LIVING SERVICES),974,PHY LTS 65+,PAYMENTS TO CLIENTS (DIRECT PAYMENTS),2103660572,1000061886
05.05.2023,ADULT SOCIAL CARE,PEOPLE PLUS GROUP LTD (INDEPENDENT LIVING SERVICES),993.16,PHY LTS 65+,PAYMENTS TO CLIENTS (DIRECT PAYMENTS),2103659660,1000061886
05.05.2023,ADULT SOCIAL CARE,PEOPLE PLUS GROUP LTD (INDEPENDENT LIVING SERVICES),"1,044.36",PHY LTS 65+,PAYMENTS TO CLIENTS (DIRECT PAYMENTS),2103660286,1000061886
05.05.2023,ADULT SOCIAL CARE,PEOPLE PLUS GROUP LTD (INDEPENDENT LIVING SERVICES),"1,046.34",PHY LTS 65+,PAYMENTS TO CLIENTS (DIRECT PAYMENTS),2103659747,1000061886
05.05.2023,ADULT SOCIAL CARE,PEOPLE PLUS GROUP LTD (INDEPENDENT LIVING SERVICES),"1,046.34",PHY LTS 65+,PAYMENTS TO CLIENTS (DIRECT PAYMENTS),2103659852,1000061886
05.05.2023,ADULT SOCIAL CARE,PEOPLE PLUS GROUP LTD (INDEPENDENT LIVING SERVICES),"1,066.76",PHY LTS 65+,PAYMENTS TO CLIENTS (DIRECT PAYMENTS),2103659679,1000061886
05.05.2023,ADULT SOCIAL CARE,PEOPLE PLUS GROUP LTD (INDEPENDENT LIVING SERVICES),"1,099.57",PHY LTS 65+,PAYMENTS TO CLIENTS (DIRECT PAYMENTS),2103660208,1000061886
05.05.2023,ADULT SOCIAL CARE,PEOPLE PLUS GROUP LTD (INDEPENDENT LIVING SERVICES),"1,106.76",PHY LTS 65+,PAYMENTS TO CLIENTS (DIRECT PAYMENTS),2103660490,1000061886
05.05.2023,ADULT SOCIAL CARE,PEOPLE PLUS GROUP LTD (INDEPENDENT LIVING SERVICES),"1,117.28",PHY LTS 65+,PAYMENTS TO CLIENTS (DIRECT PAYMENTS),2103660171,1000061886
05.05.2023,ADULT SOCIAL CARE,PEOPLE PLUS GROUP LTD (INDEPENDENT LIVING SERVICES),"1,188.22",PHY LTS 65+,PAYMENTS TO CLIENTS (DIRECT PAYMENTS),2103660279,1000061886
05.05.2023,ADULT SOCIAL CARE,PEOPLE PLUS GROUP LTD (INDEPENDENT LIVING SERVICES),"1,222.96",PHY LTS 65+,PAYMENTS TO CLIENTS (DIRECT PAYMENTS),2103660539,1000061886
05.05.2023,ADULT SOCIAL CARE,PEOPLE PLUS GROUP LTD (INDEPENDENT LIVING SERVICES),"1,259.15",PHY LTS 65+,PAYMENTS TO CLIENTS (DIRECT PAYMENTS),2103660585,1000061886
05.05.2023,ADULT SOCIAL CARE,PEOPLE PLUS GROUP LTD (INDEPENDENT LIVING SERVICES),"1,401.04",PHY LTS 65+,PAYMENTS TO CLIENTS (DIRECT PAYMENTS),2103660174,1000061886
05.05.2023,ADULT SOCIAL CARE,PEOPLE PLUS GROUP LTD (INDEPENDENT LIVING SERVICES),"1,436.51",PHY LTS 65+,PAYMENTS TO CLIENTS (DIRECT PAYMENTS),2103659750,1000061886
05.05.2023,ADULT SOCIAL CARE,PEOPLE PLUS GROUP LTD (INDEPENDENT LIVING SERVICES),"1,454.27",PHY LTS 65+,PAYMENTS TO CLIENTS (DIRECT PAYMENTS),2103660541,1000061886
05.05.2023,ADULT SOCIAL CARE,PEOPLE PLUS GROUP LTD (INDEPENDENT LIVING SERVICES),"1,596.15",PHY LTS 65+,PAYMENTS TO CLIENTS (DIRECT PAYMENTS),2103659988,1000061886
05.05.2023,ADULT SOCIAL CARE,PEOPLE PLUS GROUP LTD (INDEPENDENT LIVING SERVICES),"1,613.86",PHY LTS 65+,PAYMENTS TO CLIENTS (DIRECT PAYMENTS),2103659790,1000061886
05.05.2023,ADULT SOCIAL CARE,PEOPLE PLUS GROUP LTD (INDEPENDENT LIVING SERVICES),"1,641.06",PHY LTS 65+,PAYMENTS TO CLIENTS (DIRECT PAYMENTS),2103659888,1000061886
05.05.2023,ADULT SOCIAL CARE,PEOPLE PLUS GROUP LTD (INDEPENDENT LIVING SERVICES),"1,685.16",PHY LTS 65+,PAYMENTS TO CLIENTS (DIRECT PAYMENTS),2103659956,1000061886
05.05.2023,ADULT SOCIAL CARE,PEOPLE PLUS GROUP LTD (INDEPENDENT LIVING SERVICES),"1,908.21",PHY LTS 65+,PAYMENTS TO CLIENTS (DIRECT PAYMENTS),2103659719,1000061886
05.05.2023,ADULT SOCIAL CARE,PEOPLE PLUS GROUP LTD (INDEPENDENT LIVING SERVICES),"2,341.02",PHY LTS 65+,PAYMENTS TO CLIENTS (DIRECT PAYMENTS),2103660383,1000061886
05.05.2023,ADULT SOCIAL CARE,PEOPLE PLUS GROUP LTD (INDEPENDENT LIVING SERVICES),"2,426.17",PHY LTS 65+,PAYMENTS TO CLIENTS (DIRECT PAYMENTS),2103660031,1000061886
05.05.2023,ADULT SOCIAL CARE,PEOPLE PLUS GROUP LTD (INDEPENDENT LIVING SERVICES),"2,497.60",PHY LTS 65+,PAYMENTS TO CLIENTS (DIRECT PAYMENTS),2103659655,1000061886
05.05.2023,ADULT SOCIAL CARE,PEOPLE PLUS GROUP LTD (INDEPENDENT LIVING SERVICES),"3,168.21",PHY LTS 65+,PAYMENTS TO CLIENTS (DIRECT PAYMENTS),2103660053,1000061886
05.05.2023,ADULT SOCIAL CARE,PEOPLE PLUS GROUP LTD (INDEPENDENT LIVING SERVICES),"3,359.74",PHY LTS 65+,PAYMENTS TO CLIENTS (DIRECT PAYMENTS),2103660274,1000061886
05.05.2023,ADULT SOCIAL CARE,PEOPLE PLUS GROUP LTD (INDEPENDENT LIVING SERVICES),"3,511.53",PHY LTS 65+,PAYMENTS TO CLIENTS (DIRECT PAYMENTS),2103659962,1000061886
05.05.2023,ADULT SOCIAL CARE,PEOPLE PLUS GROUP LTD (INDEPENDENT LIVING SERVICES),"4,274.40",PHY LTS 65+,PAYMENTS TO CLIENTS (DIRECT PAYMENTS),2103660132,1000061886
05.05.2023,ADULT SOCIAL CARE,PEOPLE PLUS GROUP LTD (INDEPENDENT LIVING SERVICES),"4,517.33",PHY LTS 65+,PAYMENTS TO CLIENTS (DIRECT PAYMENTS),2103659659,1000061886
05.05.2023,ADULT SOCIAL CARE,PEOPLE PLUS GROUP LTD (INDEPENDENT LIVING SERVICES),"4,808.70",PHY LTS 65+,PAYMENTS TO CLIENTS (DIRECT PAYMENTS),2103659810,1000061886
05.05.2023,ADULT SOCIAL CARE,PEOPLE PLUS GROUP LTD (INDEPENDENT LIVING SERVICES),"5,064.66",PHY LTS 65+,PAYMENTS TO CLIENTS (DIRECT PAYMENTS),2103660415,1000061886
05.05.2023,ADULT SOCIAL CARE,PEOPLE PLUS GROUP LTD (INDEPENDENT LIVING SERVICES),"6,526.09",PHY LTS 65+,PAYMENTS TO CLIENTS (DIRECT PAYMENTS),2103660113,1000061886
05.05.2023,ADULT SOCIAL CARE,FRESH IDEAS & SOLUTIONS SERVICES CIC,781.56,PHY LTS 65+,PAYMENTS TO CLIENTS (DIRECT PAYMENTS),2103659705,1000070832
05.05.2023,ADULT SOCIAL CARE,FRESH IDEAS & SOLUTIONS SERVICES CIC,863.81,PHY LTS 65+,PAYMENTS TO CLIENTS (DIRECT PAYMENTS),2103660398,1000070832
05.05.2023,ADULT SOCIAL CARE,FRESH IDEAS & SOLUTIONS SERVICES CIC,"1,375.76",PHY LTS 65+,PAYMENTS TO CLIENTS (DIRECT PAYMENTS),2103659982,1000070832
05.05.2023,ADULT SOCIAL CARE,FRESH IDEAS & SOLUTIONS SERVICES CIC,"1,949.38",PHY LTS 65+,PAYMENTS TO CLIENTS (DIRECT PAYMENTS),2103659971,1000070832
05.05.2023,ADULT SOCIAL CARE,FRESH IDEAS & SOLUTIONS SERVICES CIC,"2,282.61",PHY LTS 65+,PAYMENTS TO CLIENTS (DIRECT PAYMENTS),2103659993,1000070832
05.05.2023,ADULT SOCIAL CARE,BARRIE BOOKKEEPING & PAYROLL SOLUTIONS LTD,"-2,975.05",PHY LTS 65+,PAYMENTS TO CLIENTS (DIRECT PAYMENTS),2103659772,1000089211
05.05.2023,ADULT SOCIAL CARE,BARRIE BOOKKEEPING & PAYROLL SOLUTIONS LTD,"5,648.31",PHY LTS 65+,PAYMENTS TO CLIENTS (DIRECT PAYMENTS),2103659773,1000089211
05.05.2023,ADULT SOCIAL CARE,REDACTED PERSONAL DATA,620.7,PHY LTS 65+,PAYMENTS TO CLIENTS (DIRECT PAYMENTS),REDACTED,REDACTED
05.05.2023,ADULT SOCIAL CARE,REDACTED PERSONAL DATA,"-3,412.12",PHY LTS 65+,PAYMENTS TO CLIENTS (DIRECT PAYMENTS),REDACTED,REDACTED
05.05.2023,ADULT SOCIAL CARE,REDACTED PERSONAL DATA,"6,411.60",PHY LTS 65+,PAYMENTS TO CLIENTS (DIRECT PAYMENTS),REDACTED,REDACTED
05.05.2023,ADULT SOCIAL CARE,REDACTED PERSONAL DATA,"-2,247.22",PHY LTS 65+,PAYMENTS TO CLIENTS (DIRECT PAYMENTS),REDACTED,REDACTED
05.05.2023,ADULT SOCIAL CARE,REDACTED PERSONAL DATA,"4,198.07",PHY LTS 65+,PAYMENTS TO CLIENTS (DIRECT PAYMENTS),REDACTED,REDACTED
05.05.2023,ADULT SOCIAL CARE,REDACTED PERSONAL DATA,"1,010.92",PHY LTS 65+,PAYMENTS TO CLIENTS (DIRECT PAYMENTS),REDACTED,REDACTED
05.05.2023,ADULT SOCIAL CARE,REDACTED PERSONAL DATA,"1,064.10",PHY LTS 65+,PAYMENTS TO CLIENTS (DIRECT PAYMENTS),REDACTED,REDACTED
05.05.2023,ADULT SOCIAL CARE,REDACTED PERSONAL DATA,"1,879.91",PHY LTS 65+,PAYMENTS TO CLIENTS (DIRECT PAYMENTS),REDACTED,REDACTED
05.05.2023,ADULT SOCIAL CARE,REDACTED PERSONAL DATA,-776.72,PHY LTS 65+,PAYMENTS TO CLIENTS (DIRECT PAYMENTS),REDACTED,REDACTED
05.05.2023,ADULT SOCIAL CARE,REDACTED PERSONAL DATA,"1,488.41",PHY LTS 65+,PAYMENTS TO CLIENTS (DIRECT PAYMENTS),REDACTED,REDACTED
05.05.2023,ADULT SOCIAL CARE,REDACTED PERSONAL DATA,800.34,PHY LTS 65+,PAYMENTS TO CLIENTS (DIRECT PAYMENTS),REDACTED,REDACTED
05.05.2023,ADULT SOCIAL CARE,REDACTED PERSONAL DATA,"1,345.04",PHY LTS 65+,PAYMENTS TO CLIENTS (DIRECT PAYMENTS),REDACTED,REDACTED
05.05.2023,ADULT SOCIAL CARE,REDACTED PERSONAL DATA,"2,837.60",PHY LTS 65+,PAYMENTS TO CLIENTS (DIRECT PAYMENTS),REDACTED,REDACTED
05.05.2023,ADULT SOCIAL CARE,REDACTED PERSONAL DATA,618.4,PHY LTS 65+,PAYMENTS TO CLIENTS (DIRECT PAYMENTS),REDACTED,REDACTED
05.05.2023,ADULT SOCIAL CARE,REDACTED PERSONAL DATA,"1,992.52",PHY LTS 65+,PAYMENTS TO CLIENTS (DIRECT PAYMENTS),REDACTED,REDACTED
05.05.2023,ADULT SOCIAL CARE,REDACTED PERSONAL DATA,"-3,125.71",PHY LTS 65+,PAYMENTS TO CLIENTS (DIRECT PAYMENTS),REDACTED,REDACTED
05.05.2023,ADULT SOCIAL CARE,REDACTED PERSONAL DATA,"5,859.14",PHY LTS 65+,PAYMENTS TO CLIENTS (DIRECT PAYMENTS),REDACTED,REDACTED
05.05.2023,ADULT SOCIAL CARE,REDACTED PERSONAL DATA,"-3,677.73",PHY LTS 65+,PAYMENTS TO CLIENTS (DIRECT PAYMENTS),REDACTED,REDACTED
05.05.2023,ADULT SOCIAL CARE,REDACTED PERSONAL DATA,"6,907.74",PHY LTS 65+,PAYMENTS TO CLIENTS (DIRECT PAYMENTS),REDACTED,REDACTED
05.05.2023,ADULT SOCIAL CARE,REDACTED PERSONAL DATA,"-1,103.64",PHY LTS 65+,PAYMENTS TO CLIENTS (DIRECT PAYMENTS),REDACTED,REDACTED
05.05.2023,ADULT SOCIAL CARE,REDACTED PERSONAL DATA,"2,099.04",PHY LTS 65+,PAYMENTS TO CLIENTS (DIRECT PAYMENTS),REDACTED,REDACTED
05.05.2023,ADULT SOCIAL CARE,REDACTED PERSONAL DATA,691.64,PHY LTS 65+,PAYMENTS TO CLIENTS (DIRECT PAYMENTS),REDACTED,REDACTED
05.05.2023,ADULT SOCIAL CARE,REDACTED PERSONAL DATA,-847.01,PHY LTS 65+,PAYMENTS TO CLIENTS (DIRECT PAYMENTS),REDACTED,REDACTED
05.05.2023,ADULT SOCIAL CARE,REDACTED PERSONAL DATA,"2,494.97",PHY LTS 65+,PAYMENTS TO CLIENTS (DIRECT PAYMENTS),REDACTED,REDACTED
05.05.2023,ADULT SOCIAL CARE,REDACTED PERSONAL DATA,"-1,144.04",PHY LTS 65+,PAYMENTS TO CLIENTS (DIRECT PAYMENTS),REDACTED,REDACTED
05.05.2023,ADULT SOCIAL CARE,REDACTED PERSONAL DATA,"2,256.20",PHY LTS 65+,PAYMENTS TO CLIENTS (DIRECT PAYMENTS),REDACTED,REDACTED
05.05.2023,ADULT SOCIAL CARE,REDACTED PERSONAL DATA,"2,404.55",PHY LTS 65+,PAYMENTS TO CLIENTS (DIRECT PAYMENTS),REDACTED,REDACTED
05.05.2023,ADULT SOCIAL CARE,REDACTED PERSONAL DATA,"1,366.82",PHY LTS 65+,PAYMENTS TO CLIENTS (DIRECT PAYMENTS),REDACTED,REDACTED
05.05.2023,ADULT SOCIAL CARE,REDACTED PERSONAL DATA,"1,808.97",PHY LTS 65+,PAYMENTS TO CLIENTS (DIRECT PAYMENTS),REDACTED,REDACTED
05.05.2023,ADULT SOCIAL CARE,REDACTED PERSONAL DATA,"3,405.12",PHY LTS 65+,PAYMENTS TO CLIENTS (DIRECT PAYMENTS),REDACTED,REDACTED
05.05.2023,ADULT SOCIAL CARE,REDACTED PERSONAL DATA,"-3,718.13",PHY LTS 65+,PAYMENTS TO CLIENTS (DIRECT PAYMENTS),REDACTED,REDACTED
05.05.2023,ADULT SOCIAL CARE,REDACTED PERSONAL DATA,"6,945.90",PHY LTS 65+,PAYMENTS TO CLIENTS (DIRECT PAYMENTS),REDACTED,REDACTED
05.05.2023,ADULT SOCIAL CARE,REDACTED PERSONAL DATA,"1,135.04",PHY LTS 65+,PAYMENTS TO CLIENTS (DIRECT PAYMENTS),REDACTED,REDACTED
05.05.2023,ADULT SOCIAL CARE,REDACTED PERSONAL DATA,"1,489.74",PHY LTS 65+,PAYMENTS TO CLIENTS (DIRECT PAYMENTS),REDACTED,REDACTED
05.05.2023,ADULT SOCIAL CARE,REDACTED PERSONAL DATA,"1,738.03",PHY LTS 65+,PAYMENTS TO CLIENTS (DIRECT PAYMENTS),REDACTED,REDACTED
05.05.2023,ADULT SOCIAL CARE,REDACTED PERSONAL DATA,602.99,PHY LTS 65+,PAYMENTS TO CLIENTS (DIRECT PAYMENTS),REDACTED,REDACTED
05.05.2023,ADULT SOCIAL CARE,REDACTED PERSONAL DATA,939.93,PHY LTS 65+,PAYMENTS TO CLIENTS (DIRECT PAYMENTS),REDACTED,REDACTED
05.05.2023,ADULT SOCIAL CARE,REDACTED PERSONAL DATA,"1,613.86",PHY LTS 65+,PAYMENTS TO CLIENTS (DIRECT PAYMENTS),REDACTED,REDACTED
05.05.2023,ADULT SOCIAL CARE,REDACTED PERSONAL DATA,"2,341.02",PHY LTS 65+,PAYMENTS TO CLIENTS (DIRECT PAYMENTS),REDACTED,REDACTED
05.05.2023,ADULT SOCIAL CARE,REDACTED PERSONAL DATA,467.35,PHY LTS 65+,PAYMENTS TO CLIENTS (DIRECT PAYMENTS),REDACTED,REDACTED
05.05.2023,ADULT SOCIAL CARE,REDACTED PERSONAL DATA,425.64,PHY LTS 65+,PAYMENTS TO CLIENTS (DIRECT PAYMENTS),REDACTED,REDACTED
05.05.2023,ADULT SOCIAL CARE,REDACTED PERSONAL DATA,691.64,PHY LTS 65+,PAYMENTS TO CLIENTS (DIRECT PAYMENTS),REDACTED,REDACTED
05.05.2023,ADULT SOCIAL CARE,REDACTED PERSONAL DATA,"1,348.08",PHY LTS 65+,PAYMENTS TO CLIENTS (DIRECT PAYMENTS),REDACTED,REDACTED
05.05.2023,ADULT SOCIAL CARE,STEPHEN DOWN,"1,654.45",SAFEGUARDING & DOLS,EXTERNAL AGENCIES AND BODIES,5902578362,1000075102
05.05.2023,ADULT SOCIAL CARE,LAMNAO SERVICES LTD,508.1,SAFEGUARDING & DOLS,EXTERNAL AGENCIES AND BODIES,5902578352,1000082441
05.05.2023,ADULT SOCIAL CARE,LAMNAO SERVICES LTD,658.1,SAFEGUARDING & DOLS,EXTERNAL AGENCIES AND BODIES,5902578340,1000082441
05.05.2023,ADULT SOCIAL CARE,PEOPLE PLUS GROUP LTD (INDEPENDENT LIVING SERVICES),-312.72,SEN LTS 18-64,DISCRETIONARY FLEXIBLE FEES & INCOME,2103659681,1000061886
05.05.2023,ADULT SOCIAL CARE,BARRIE BOOKKEEPING & PAYROLL SOLUTIONS LTD,"2,910.49",SEN LTS 65+,PAYMENTS TO CLIENTS (DIRECT PAYMENTS),2103659820,1000089211
05.05.2023,ADULT SOCIAL CARE,PEOPLE PLUS GROUP LTD (INDEPENDENT LIVING SERVICES),-326,SOCIAL ISOLATION,DISCRETIONARY FLEXIBLE FEES & INCOME,2103659689,1000061886
05.05.2023,ADULT SOCIAL CARE,FRESH IDEAS & SOLUTIONS SERVICES CIC,-262.8,SOCIAL ISOLATION,DISCRETIONARY FLEXIBLE FEES & INCOME,2103660197,1000070832
05.05.2023,ADULT SOCIAL CARE,PEOPLE PLUS GROUP LTD (INDEPENDENT LIVING SERVICES),-431.07,SOCIAL ISOLATION,PAYMENTS TO CLIENTS (DIRECT PAYMENTS),2103659970,1000061886
05.05.2023,ADULT SOCIAL CARE,PEOPLE PLUS GROUP LTD (INDEPENDENT LIVING SERVICES),780.34,SOCIAL ISOLATION,PAYMENTS TO CLIENTS (DIRECT PAYMENTS),2103659735,1000061886
05.05.2023,ADULT SOCIAL CARE,PEOPLE PLUS GROUP LTD (INDEPENDENT LIVING SERVICES),958.72,SOCIAL ISOLATION,PAYMENTS TO CLIENTS (DIRECT PAYMENTS),2103659637,1000061886
05.05.2023,ADULT SOCIAL CARE,PEOPLE PLUS GROUP LTD (INDEPENDENT LIVING SERVICES),"1,282.26",SOCIAL ISOLATION,PAYMENTS TO CLIENTS (DIRECT PAYMENTS),2103659903,1000061886
05.05.2023,ADULT SOCIAL CARE,FRESH IDEAS & SOLUTIONS SERVICES CIC,"-3,542.55",SOCIAL ISOLATION,PAYMENTS TO CLIENTS (DIRECT PAYMENTS),2103660221,1000070832
05.05.2023,ADULT SOCIAL CARE,FRESH IDEAS & SOLUTIONS SERVICES CIC,-585.93,SOCIAL ISOLATION,PAYMENTS TO CLIENTS (DIRECT PAYMENTS),2103660356,1000070832
05.05.2023,ADULT SOCIAL CARE,REDACTED PERSONAL DATA,611.84,SOCIAL ISOLATION,PAYMENTS TO CLIENTS (DIRECT PAYMENTS),REDACTED,REDACTED
05.05.2023,ADULT SOCIAL CARE,REDACTED PERSONAL DATA,"3,602.47",SOCIAL ISOLATION,PAYMENTS TO CLIENTS (DIRECT PAYMENTS),REDACTED,REDACTED
05.05.2023,ADULT SOCIAL CARE,CHOICE SUPPORT,367.4,SOCIAL ISOLATION,SUPPORTED LIVING,2103659235,1104183
05.05.2023,ADULT SOCIAL CARE,KENT COUNTY COUNCIL - LASER,"2,890.88",SOUTHWARK RESOURCE CENTRE,ELECTRICITY,5902577704,1000012926
05.05.2023,ADULT SOCIAL CARE,PEOPLE PLUS GROUP LTD (INDEPENDENT LIVING SERVICES),"-4,529.15",SPECIALIST CARE,PAYMENTS TO CLIENTS (DIRECT PAYMENTS),2103659363,1000061886
05.05.2023,ADULT SOCIAL CARE,PEOPLE PLUS GROUP LTD (INDEPENDENT LIVING SERVICES),"-1,120.04",SPECIALIST CARE,PAYMENTS TO CLIENTS (DIRECT PAYMENTS),2103659364,1000061886
05.05.2023,ADULT SOCIAL CARE,PEOPLE PLUS GROUP LTD (INDEPENDENT LIVING SERVICES),-962.31,SPECIALIST CARE,PAYMENTS TO CLIENTS (DIRECT PAYMENTS),2103659402,1000061886
05.05.2023,ADULT SOCIAL CARE,PEOPLE PLUS GROUP LTD (INDEPENDENT LIVING SERVICES),-939.75,SPECIALIST CARE,PAYMENTS TO CLIENTS (DIRECT PAYMENTS),2103659519,1000061886
05.05.2023,ADULT SOCIAL CARE,PEOPLE PLUS GROUP LTD (INDEPENDENT LIVING SERVICES),-939.69,SPECIALIST CARE,PAYMENTS TO CLIENTS (DIRECT PAYMENTS),2103659562,1000061886
05.05.2023,ADULT SOCIAL CARE,PEOPLE PLUS GROUP LTD (INDEPENDENT LIVING SERVICES),-735.45,SPECIALIST CARE,PAYMENTS TO CLIENTS (DIRECT PAYMENTS),2103659476,1000061886
05.05.2023,ADULT SOCIAL CARE,PEOPLE PLUS GROUP LTD (INDEPENDENT LIVING SERVICES),-653.74,SPECIALIST CARE,PAYMENTS TO CLIENTS (DIRECT PAYMENTS),2103659312,1000061886
05.05.2023,ADULT SOCIAL CARE,PEOPLE PLUS GROUP LTD (INDEPENDENT LIVING SERVICES),-653.74,SPECIALIST CARE,PAYMENTS TO CLIENTS (DIRECT PAYMENTS),2103659472,1000061886
05.05.2023,ADULT SOCIAL CARE,PEOPLE PLUS GROUP LTD (INDEPENDENT LIVING SERVICES),-490.3,SPECIALIST CARE,PAYMENTS TO CLIENTS (DIRECT PAYMENTS),2103659555,1000061886
05.05.2023,ADULT SOCIAL CARE,PEOPLE PLUS GROUP LTD (INDEPENDENT LIVING SERVICES),-490.3,SPECIALIST CARE,PAYMENTS TO CLIENTS (DIRECT PAYMENTS),2103659599,1000061886
05.05.2023,ADULT SOCIAL CARE,PEOPLE PLUS GROUP LTD (INDEPENDENT LIVING SERVICES),-379.19,SPECIALIST CARE,PAYMENTS TO CLIENTS (DIRECT PAYMENTS),2103659589,1000061886
05.05.2023,ADULT SOCIAL CARE,PEOPLE PLUS GROUP LTD (INDEPENDENT LIVING SERVICES),-367.73,SPECIALIST CARE,PAYMENTS TO CLIENTS (DIRECT PAYMENTS),2103659596,1000061886
05.05.2023,ADULT SOCIAL CARE,PEOPLE PLUS GROUP LTD (INDEPENDENT LIVING SERVICES),-326.87,SPECIALIST CARE,PAYMENTS TO CLIENTS (DIRECT PAYMENTS),2103659263,1000061886
05.05.2023,ADULT SOCIAL CARE,PEOPLE PLUS GROUP LTD (INDEPENDENT LIVING SERVICES),-326.87,SPECIALIST CARE,PAYMENTS TO CLIENTS (DIRECT PAYMENTS),2103659274,1000061886
05.05.2023,ADULT SOCIAL CARE,PEOPLE PLUS GROUP LTD (INDEPENDENT LIVING SERVICES),-326.87,SPECIALIST CARE,PAYMENTS TO CLIENTS (DIRECT PAYMENTS),2103659276,1000061886
05.05.2023,ADULT SOCIAL CARE,PEOPLE PLUS GROUP LTD (INDEPENDENT LIVING SERVICES),-326.87,SPECIALIST CARE,PAYMENTS TO CLIENTS (DIRECT PAYMENTS),2103659471,1000061886
05.05.2023,ADULT SOCIAL CARE,PEOPLE PLUS GROUP LTD (INDEPENDENT LIVING SERVICES),-287.23,SPECIALIST CARE,PAYMENTS TO CLIENTS (DIRECT PAYMENTS),2103659591,1000061886
05.05.2023,ADULT SOCIAL CARE,PEOPLE PLUS GROUP LTD (INDEPENDENT LIVING SERVICES),272.72,SPECIALIST CARE,PAYMENTS TO CLIENTS (DIRECT PAYMENTS),2103659466,1000061886
05.05.2023,ADULT SOCIAL CARE,PEOPLE PLUS GROUP LTD (INDEPENDENT LIVING SERVICES),283.76,SPECIALIST CARE,PAYMENTS TO CLIENTS (DIRECT PAYMENTS),2103659275,1000061886
05.05.2023,ADULT SOCIAL CARE,PEOPLE PLUS GROUP LTD (INDEPENDENT LIVING SERVICES),283.76,SPECIALIST CARE,PAYMENTS TO CLIENTS (DIRECT PAYMENTS),2103659284,1000061886
05.05.2023,ADULT SOCIAL CARE,PEOPLE PLUS GROUP LTD (INDEPENDENT LIVING SERVICES),283.76,SPECIALIST CARE,PAYMENTS TO CLIENTS (DIRECT PAYMENTS),2103659319,1000061886
05.05.2023,ADULT SOCIAL CARE,PEOPLE PLUS GROUP LTD (INDEPENDENT LIVING SERVICES),283.76,SPECIALIST CARE,PAYMENTS TO CLIENTS (DIRECT PAYMENTS),2103659326,1000061886
05.05.2023,ADULT SOCIAL CARE,PEOPLE PLUS GROUP LTD (INDEPENDENT LIVING SERVICES),283.76,SPECIALIST CARE,PAYMENTS TO CLIENTS (DIRECT PAYMENTS),2103659369,1000061886
05.05.2023,ADULT SOCIAL CARE,PEOPLE PLUS GROUP LTD (INDEPENDENT LIVING SERVICES),283.76,SPECIALIST CARE,PAYMENTS TO CLIENTS (DIRECT PAYMENTS),2103659370,1000061886
05.05.2023,ADULT SOCIAL CARE,PEOPLE PLUS GROUP LTD (INDEPENDENT LIVING SERVICES),283.76,SPECIALIST CARE,PAYMENTS TO CLIENTS (DIRECT PAYMENTS),2103659371,1000061886
05.05.2023,ADULT SOCIAL CARE,PEOPLE PLUS GROUP LTD (INDEPENDENT LIVING SERVICES),283.76,SPECIALIST CARE,PAYMENTS TO CLIENTS (DIRECT PAYMENTS),2103659470,1000061886
05.05.2023,ADULT SOCIAL CARE,PEOPLE PLUS GROUP LTD (INDEPENDENT LIVING SERVICES),283.76,SPECIALIST CARE,PAYMENTS TO CLIENTS (DIRECT PAYMENTS),2103659477,1000061886
05.05.2023,ADULT SOCIAL CARE,PEOPLE PLUS GROUP LTD (INDEPENDENT LIVING SERVICES),283.76,SPECIALIST CARE,PAYMENTS TO CLIENTS (DIRECT PAYMENTS),2103659478,1000061886
05.05.2023,ADULT SOCIAL CARE,PEOPLE PLUS GROUP LTD (INDEPENDENT LIVING SERVICES),283.76,SPECIALIST CARE,PAYMENTS TO CLIENTS (DIRECT PAYMENTS),2103659509,1000061886
05.05.2023,ADULT SOCIAL CARE,PEOPLE PLUS GROUP LTD (INDEPENDENT LIVING SERVICES),283.76,SPECIALIST CARE,PAYMENTS TO CLIENTS (DIRECT PAYMENTS),2103659518,1000061886
05.05.2023,ADULT SOCIAL CARE,PEOPLE PLUS GROUP LTD (INDEPENDENT LIVING SERVICES),283.76,SPECIALIST CARE,PAYMENTS TO CLIENTS (DIRECT PAYMENTS),2103659559,1000061886
05.05.2023,ADULT SOCIAL CARE,PEOPLE PLUS GROUP LTD (INDEPENDENT LIVING SERVICES),283.76,SPECIALIST CARE,PAYMENTS TO CLIENTS (DIRECT PAYMENTS),2103659593,1000061886
05.05.2023,ADULT SOCIAL CARE,PEOPLE PLUS GROUP LTD (INDEPENDENT LIVING SERVICES),283.76,SPECIALIST CARE,PAYMENTS TO CLIENTS (DIRECT PAYMENTS),2103659595,1000061886
05.05.2023,ADULT SOCIAL CARE,PEOPLE PLUS GROUP LTD (INDEPENDENT LIVING SERVICES),283.76,SPECIALIST CARE,PAYMENTS TO CLIENTS (DIRECT PAYMENTS),2103659598,1000061886
05.05.2023,ADULT SOCIAL CARE,PEOPLE PLUS GROUP LTD (INDEPENDENT LIVING SERVICES),283.76,SPECIALIST CARE,PAYMENTS TO CLIENTS (DIRECT PAYMENTS),2103659602,1000061886
05.05.2023,ADULT SOCIAL CARE,PEOPLE PLUS GROUP LTD (INDEPENDENT LIVING SERVICES),302.28,SPECIALIST CARE,PAYMENTS TO CLIENTS (DIRECT PAYMENTS),2103659403,1000061886
05.05.2023,ADULT SOCIAL CARE,PEOPLE PLUS GROUP LTD (INDEPENDENT LIVING SERVICES),305.31,SPECIALIST CARE,PAYMENTS TO CLIENTS (DIRECT PAYMENTS),2103659532,1000061886
05.05.2023,ADULT SOCIAL CARE,PEOPLE PLUS GROUP LTD (INDEPENDENT LIVING SERVICES),305.31,SPECIALIST CARE,PAYMENTS TO CLIENTS (DIRECT PAYMENTS),2103659568,1000061886
05.05.2023,ADULT SOCIAL CARE,PEOPLE PLUS GROUP LTD (INDEPENDENT LIVING SERVICES),305.92,SPECIALIST CARE,PAYMENTS TO CLIENTS (DIRECT PAYMENTS),2103659489,1000061886
05.05.2023,ADULT SOCIAL CARE,PEOPLE PLUS GROUP LTD (INDEPENDENT LIVING SERVICES),305.92,SPECIALIST CARE,PAYMENTS TO CLIENTS (DIRECT PAYMENTS),2103659521,1000061886
05.05.2023,ADULT SOCIAL CARE,PEOPLE PLUS GROUP LTD (INDEPENDENT LIVING SERVICES),305.92,SPECIALIST CARE,PAYMENTS TO CLIENTS (DIRECT PAYMENTS),2103659601,1000061886
05.05.2023,ADULT SOCIAL CARE,PEOPLE PLUS GROUP LTD (INDEPENDENT LIVING SERVICES),319.23,SPECIALIST CARE,PAYMENTS TO CLIENTS (DIRECT PAYMENTS),2103659558,1000061886
05.05.2023,ADULT SOCIAL CARE,PEOPLE PLUS GROUP LTD (INDEPENDENT LIVING SERVICES),322,SPECIALIST CARE,PAYMENTS TO CLIENTS (DIRECT PAYMENTS),2103659257,1000061886
05.05.2023,ADULT SOCIAL CARE,PEOPLE PLUS GROUP LTD (INDEPENDENT LIVING SERVICES),324.6,SPECIALIST CARE,PAYMENTS TO CLIENTS (DIRECT PAYMENTS),2103659594,1000061886
05.05.2023,ADULT SOCIAL CARE,PEOPLE PLUS GROUP LTD (INDEPENDENT LIVING SERVICES),349.01,SPECIALIST CARE,PAYMENTS TO CLIENTS (DIRECT PAYMENTS),2103659410,1000061886
05.05.2023,ADULT SOCIAL CARE,PEOPLE PLUS GROUP LTD (INDEPENDENT LIVING SERVICES),350.92,SPECIALIST CARE,PAYMENTS TO CLIENTS (DIRECT PAYMENTS),2103659460,1000061886
05.05.2023,ADULT SOCIAL CARE,PEOPLE PLUS GROUP LTD (INDEPENDENT LIVING SERVICES),354.7,SPECIALIST CARE,PAYMENTS TO CLIENTS (DIRECT PAYMENTS),2103659322,1000061886
05.05.2023,ADULT SOCIAL CARE,PEOPLE PLUS GROUP LTD (INDEPENDENT LIVING SERVICES),354.7,SPECIALIST CARE,PAYMENTS TO CLIENTS (DIRECT PAYMENTS),2103659474,1000061886
05.05.2023,ADULT SOCIAL CARE,PEOPLE PLUS GROUP LTD (INDEPENDENT LIVING SERVICES),354.7,SPECIALIST CARE,PAYMENTS TO CLIENTS (DIRECT PAYMENTS),2103659516,1000061886
05.05.2023,ADULT SOCIAL CARE,PEOPLE PLUS GROUP LTD (INDEPENDENT LIVING SERVICES),372.4,SPECIALIST CARE,PAYMENTS TO CLIENTS (DIRECT PAYMENTS),2103659330,1000061886
05.05.2023,ADULT SOCIAL CARE,PEOPLE PLUS GROUP LTD (INDEPENDENT LIVING SERVICES),372.41,SPECIALIST CARE,PAYMENTS TO CLIENTS (DIRECT PAYMENTS),2103659259,1000061886
05.05.2023,ADULT SOCIAL CARE,PEOPLE PLUS GROUP LTD (INDEPENDENT LIVING SERVICES),382.76,SPECIALIST CARE,PAYMENTS TO CLIENTS (DIRECT PAYMENTS),2103659457,1000061886
05.05.2023,ADULT SOCIAL CARE,PEOPLE PLUS GROUP LTD (INDEPENDENT LIVING SERVICES),382.76,SPECIALIST CARE,PAYMENTS TO CLIENTS (DIRECT PAYMENTS),2103659517,1000061886
05.05.2023,ADULT SOCIAL CARE,PEOPLE PLUS GROUP LTD (INDEPENDENT LIVING SERVICES),382.76,SPECIALIST CARE,PAYMENTS TO CLIENTS (DIRECT PAYMENTS),2103659585,1000061886
05.05.2023,ADULT SOCIAL CARE,PEOPLE PLUS GROUP LTD (INDEPENDENT LIVING SERVICES),401.96,SPECIALIST CARE,PAYMENTS TO CLIENTS (DIRECT PAYMENTS),2103659512,1000061886
05.05.2023,ADULT SOCIAL CARE,PEOPLE PLUS GROUP LTD (INDEPENDENT LIVING SERVICES),425.64,SPECIALIST CARE,PAYMENTS TO CLIENTS (DIRECT PAYMENTS),2103659255,1000061886
05.05.2023,ADULT SOCIAL CARE,PEOPLE PLUS GROUP LTD (INDEPENDENT LIVING SERVICES),425.64,SPECIALIST CARE,PAYMENTS TO CLIENTS (DIRECT PAYMENTS),2103659475,1000061886
05.05.2023,ADULT SOCIAL CARE,PEOPLE PLUS GROUP LTD (INDEPENDENT LIVING SERVICES),425.64,SPECIALIST CARE,PAYMENTS TO CLIENTS (DIRECT PAYMENTS),2103659479,1000061886
05.05.2023,ADULT SOCIAL CARE,PEOPLE PLUS GROUP LTD (INDEPENDENT LIVING SERVICES),425.64,SPECIALIST CARE,PAYMENTS TO CLIENTS (DIRECT PAYMENTS),2103659480,1000061886
05.05.2023,ADULT SOCIAL CARE,PEOPLE PLUS GROUP LTD (INDEPENDENT LIVING SERVICES),425.64,SPECIALIST CARE,PAYMENTS TO CLIENTS (DIRECT PAYMENTS),2103659510,1000061886
05.05.2023,ADULT SOCIAL CARE,PEOPLE PLUS GROUP LTD (INDEPENDENT LIVING SERVICES),425.64,SPECIALIST CARE,PAYMENTS TO CLIENTS (DIRECT PAYMENTS),2103659597,1000061886
05.05.2023,ADULT SOCIAL CARE,PEOPLE PLUS GROUP LTD (INDEPENDENT LIVING SERVICES),461.05,SPECIALIST CARE,PAYMENTS TO CLIENTS (DIRECT PAYMENTS),2103659417,1000061886
05.05.2023,ADULT SOCIAL CARE,PEOPLE PLUS GROUP LTD (INDEPENDENT LIVING SERVICES),479.36,SPECIALIST CARE,PAYMENTS TO CLIENTS (DIRECT PAYMENTS),2103659306,1000061886
05.05.2023,ADULT SOCIAL CARE,PEOPLE PLUS GROUP LTD (INDEPENDENT LIVING SERVICES),484.8,SPECIALIST CARE,PAYMENTS TO CLIENTS (DIRECT PAYMENTS),2103659261,1000061886
05.05.2023,ADULT SOCIAL CARE,PEOPLE PLUS GROUP LTD (INDEPENDENT LIVING SERVICES),496.58,SPECIALIST CARE,PAYMENTS TO CLIENTS (DIRECT PAYMENTS),2103659404,1000061886
05.05.2023,ADULT SOCIAL CARE,PEOPLE PLUS GROUP LTD (INDEPENDENT LIVING SERVICES),496.58,SPECIALIST CARE,PAYMENTS TO CLIENTS (DIRECT PAYMENTS),2103659414,1000061886
05.05.2023,ADULT SOCIAL CARE,PEOPLE PLUS GROUP LTD (INDEPENDENT LIVING SERVICES),497.44,SPECIALIST CARE,PAYMENTS TO CLIENTS (DIRECT PAYMENTS),2103659247,1000061886
05.05.2023,ADULT SOCIAL CARE,PEOPLE PLUS GROUP LTD (INDEPENDENT LIVING SERVICES),520.67,SPECIALIST CARE,PAYMENTS TO CLIENTS (DIRECT PAYMENTS),2103659592,1000061886
05.05.2023,ADULT SOCIAL CARE,PEOPLE PLUS GROUP LTD (INDEPENDENT LIVING SERVICES),524.64,SPECIALIST CARE,PAYMENTS TO CLIENTS (DIRECT PAYMENTS),2103659545,1000061886
05.05.2023,ADULT SOCIAL CARE,PEOPLE PLUS GROUP LTD (INDEPENDENT LIVING SERVICES),524.88,SPECIALIST CARE,PAYMENTS TO CLIENTS (DIRECT PAYMENTS),2103659413,1000061886
05.05.2023,ADULT SOCIAL CARE,PEOPLE PLUS GROUP LTD (INDEPENDENT LIVING SERVICES),539.4,SPECIALIST CARE,PAYMENTS TO CLIENTS (DIRECT PAYMENTS),2103659467,1000061886
05.05.2023,ADULT SOCIAL CARE,PEOPLE PLUS GROUP LTD (INDEPENDENT LIVING SERVICES),549.76,SPECIALIST CARE,PAYMENTS TO CLIENTS (DIRECT PAYMENTS),2103659412,1000061886
05.05.2023,ADULT SOCIAL CARE,PEOPLE PLUS GROUP LTD (INDEPENDENT LIVING SERVICES),567.52,SPECIALIST CARE,PAYMENTS TO CLIENTS (DIRECT PAYMENTS),2103659372,1000061886
05.05.2023,ADULT SOCIAL CARE,PEOPLE PLUS GROUP LTD (INDEPENDENT LIVING SERVICES),567.52,SPECIALIST CARE,PAYMENTS TO CLIENTS (DIRECT PAYMENTS),2103659469,1000061886
05.05.2023,ADULT SOCIAL CARE,PEOPLE PLUS GROUP LTD (INDEPENDENT LIVING SERVICES),567.52,SPECIALIST CARE,PAYMENTS TO CLIENTS (DIRECT PAYMENTS),2103659563,1000061886
05.05.2023,ADULT SOCIAL CARE,PEOPLE PLUS GROUP LTD (INDEPENDENT LIVING SERVICES),581.2,SPECIALIST CARE,PAYMENTS TO CLIENTS (DIRECT PAYMENTS),2103659441,1000061886
05.05.2023,ADULT SOCIAL CARE,PEOPLE PLUS GROUP LTD (INDEPENDENT LIVING SERVICES),610.63,SPECIALIST CARE,PAYMENTS TO CLIENTS (DIRECT PAYMENTS),2103659436,1000061886
05.05.2023,ADULT SOCIAL CARE,PEOPLE PLUS GROUP LTD (INDEPENDENT LIVING SERVICES),610.63,SPECIALIST CARE,PAYMENTS TO CLIENTS (DIRECT PAYMENTS),2103659439,1000061886
05.05.2023,ADULT SOCIAL CARE,PEOPLE PLUS GROUP LTD (INDEPENDENT LIVING SERVICES),610.63,SPECIALIST CARE,PAYMENTS TO CLIENTS (DIRECT PAYMENTS),2103659620,1000061886
05.05.2023,ADULT SOCIAL CARE,PEOPLE PLUS GROUP LTD (INDEPENDENT LIVING SERVICES),611.84,SPECIALIST CARE,PAYMENTS TO CLIENTS (DIRECT PAYMENTS),2103659329,1000061886
05.05.2023,ADULT SOCIAL CARE,PEOPLE PLUS GROUP LTD (INDEPENDENT LIVING SERVICES),620.7,SPECIALIST CARE,PAYMENTS TO CLIENTS (DIRECT PAYMENTS),2103659419,1000061886
05.05.2023,ADULT SOCIAL CARE,PEOPLE PLUS GROUP LTD (INDEPENDENT LIVING SERVICES),673.88,SPECIALIST CARE,PAYMENTS TO CLIENTS (DIRECT PAYMENTS),2103659408,1000061886
05.05.2023,ADULT SOCIAL CARE,PEOPLE PLUS GROUP LTD (INDEPENDENT LIVING SERVICES),686.96,SPECIALIST CARE,PAYMENTS TO CLIENTS (DIRECT PAYMENTS),2103659314,1000061886
05.05.2023,ADULT SOCIAL CARE,PEOPLE PLUS GROUP LTD (INDEPENDENT LIVING SERVICES),688.32,SPECIALIST CARE,PAYMENTS TO CLIENTS (DIRECT PAYMENTS),2103659331,1000061886
05.05.2023,ADULT SOCIAL CARE,PEOPLE PLUS GROUP LTD (INDEPENDENT LIVING SERVICES),688.32,SPECIALIST CARE,PAYMENTS TO CLIENTS (DIRECT PAYMENTS),2103659551,1000061886
05.05.2023,ADULT SOCIAL CARE,PEOPLE PLUS GROUP LTD (INDEPENDENT LIVING SERVICES),691.64,SPECIALIST CARE,PAYMENTS TO CLIENTS (DIRECT PAYMENTS),2103659415,1000061886
05.05.2023,ADULT SOCIAL CARE,PEOPLE PLUS GROUP LTD (INDEPENDENT LIVING SERVICES),695.48,SPECIALIST CARE,PAYMENTS TO CLIENTS (DIRECT PAYMENTS),2103659335,1000061886
05.05.2023,ADULT SOCIAL CARE,PEOPLE PLUS GROUP LTD (INDEPENDENT LIVING SERVICES),700,SPECIALIST CARE,PAYMENTS TO CLIENTS (DIRECT PAYMENTS),2103659581,1000061886
05.05.2023,ADULT SOCIAL CARE,PEOPLE PLUS GROUP LTD (INDEPENDENT LIVING SERVICES),709.4,SPECIALIST CARE,PAYMENTS TO CLIENTS (DIRECT PAYMENTS),2103659323,1000061886
05.05.2023,ADULT SOCIAL CARE,PEOPLE PLUS GROUP LTD (INDEPENDENT LIVING SERVICES),709.4,SPECIALIST CARE,PAYMENTS TO CLIENTS (DIRECT PAYMENTS),2103659334,1000061886
05.05.2023,ADULT SOCIAL CARE,PEOPLE PLUS GROUP LTD (INDEPENDENT LIVING SERVICES),709.4,SPECIALIST CARE,PAYMENTS TO CLIENTS (DIRECT PAYMENTS),2103659505,1000061886
05.05.2023,ADULT SOCIAL CARE,PEOPLE PLUS GROUP LTD (INDEPENDENT LIVING SERVICES),709.4,SPECIALIST CARE,PAYMENTS TO CLIENTS (DIRECT PAYMENTS),2103659513,1000061886
05.05.2023,ADULT SOCIAL CARE,PEOPLE PLUS GROUP LTD (INDEPENDENT LIVING SERVICES),709.4,SPECIALIST CARE,PAYMENTS TO CLIENTS (DIRECT PAYMENTS),2103659554,1000061886
05.05.2023,ADULT SOCIAL CARE,PEOPLE PLUS GROUP LTD (INDEPENDENT LIVING SERVICES),744.81,SPECIALIST CARE,PAYMENTS TO CLIENTS (DIRECT PAYMENTS),2103659511,1000061886
05.05.2023,ADULT SOCIAL CARE,PEOPLE PLUS GROUP LTD (INDEPENDENT LIVING SERVICES),744.87,SPECIALIST CARE,PAYMENTS TO CLIENTS (DIRECT PAYMENTS),2103659561,1000061886
05.05.2023,ADULT SOCIAL CARE,PEOPLE PLUS GROUP LTD (INDEPENDENT LIVING SERVICES),782.48,SPECIALIST CARE,PAYMENTS TO CLIENTS (DIRECT PAYMENTS),2103659304,1000061886
05.05.2023,ADULT SOCIAL CARE,PEOPLE PLUS GROUP LTD (INDEPENDENT LIVING SERVICES),851.28,SPECIALIST CARE,PAYMENTS TO CLIENTS (DIRECT PAYMENTS),2103659324,1000061886
05.05.2023,ADULT SOCIAL CARE,PEOPLE PLUS GROUP LTD (INDEPENDENT LIVING SERVICES),851.28,SPECIALIST CARE,PAYMENTS TO CLIENTS (DIRECT PAYMENTS),2103659368,1000061886
05.05.2023,ADULT SOCIAL CARE,PEOPLE PLUS GROUP LTD (INDEPENDENT LIVING SERVICES),851.28,SPECIALIST CARE,PAYMENTS TO CLIENTS (DIRECT PAYMENTS),2103659424,1000061886
05.05.2023,ADULT SOCIAL CARE,PEOPLE PLUS GROUP LTD (INDEPENDENT LIVING SERVICES),867.76,SPECIALIST CARE,PAYMENTS TO CLIENTS (DIRECT PAYMENTS),2103659281,1000061886
05.05.2023,ADULT SOCIAL CARE,PEOPLE PLUS GROUP LTD (INDEPENDENT LIVING SERVICES),915.94,SPECIALIST CARE,PAYMENTS TO CLIENTS (DIRECT PAYMENTS),2103659337,1000061886
05.05.2023,ADULT SOCIAL CARE,PEOPLE PLUS GROUP LTD (INDEPENDENT LIVING SERVICES),915.94,SPECIALIST CARE,PAYMENTS TO CLIENTS (DIRECT PAYMENTS),2103659624,1000061886
05.05.2023,ADULT SOCIAL CARE,PEOPLE PLUS GROUP LTD (INDEPENDENT LIVING SERVICES),915.94,SPECIALIST CARE,PAYMENTS TO CLIENTS (DIRECT PAYMENTS),2103659625,1000061886
05.05.2023,ADULT SOCIAL CARE,PEOPLE PLUS GROUP LTD (INDEPENDENT LIVING SERVICES),917.76,SPECIALIST CARE,PAYMENTS TO CLIENTS (DIRECT PAYMENTS),2103659333,1000061886
05.05.2023,ADULT SOCIAL CARE,PEOPLE PLUS GROUP LTD (INDEPENDENT LIVING SERVICES),954.8,SPECIALIST CARE,PAYMENTS TO CLIENTS (DIRECT PAYMENTS),2103659455,1000061886
05.05.2023,ADULT SOCIAL CARE,PEOPLE PLUS GROUP LTD (INDEPENDENT LIVING SERVICES),956.43,SPECIALIST CARE,PAYMENTS TO CLIENTS (DIRECT PAYMENTS),2103659320,1000061886
05.05.2023,ADULT SOCIAL CARE,PEOPLE PLUS GROUP LTD (INDEPENDENT LIVING SERVICES),989.44,SPECIALIST CARE,PAYMENTS TO CLIENTS (DIRECT PAYMENTS),2103659297,1000061886
05.05.2023,ADULT SOCIAL CARE,PEOPLE PLUS GROUP LTD (INDEPENDENT LIVING SERVICES),"1,013.36",SPECIALIST CARE,PAYMENTS TO CLIENTS (DIRECT PAYMENTS),2103659282,1000061886
05.05.2023,ADULT SOCIAL CARE,PEOPLE PLUS GROUP LTD (INDEPENDENT LIVING SERVICES),"1,018.68",SPECIALIST CARE,PAYMENTS TO CLIENTS (DIRECT PAYMENTS),2103659245,1000061886
05.05.2023,ADULT SOCIAL CARE,PEOPLE PLUS GROUP LTD (INDEPENDENT LIVING SERVICES),"1,135.04",SPECIALIST CARE,PAYMENTS TO CLIENTS (DIRECT PAYMENTS),2103659416,1000061886
05.05.2023,ADULT SOCIAL CARE,PEOPLE PLUS GROUP LTD (INDEPENDENT LIVING SERVICES),"1,188.45",SPECIALIST CARE,PAYMENTS TO CLIENTS (DIRECT PAYMENTS),2103659502,1000061886
05.05.2023,ADULT SOCIAL CARE,PEOPLE PLUS GROUP LTD (INDEPENDENT LIVING SERVICES),"1,373.91",SPECIALIST CARE,PAYMENTS TO CLIENTS (DIRECT PAYMENTS),2103659627,1000061886
05.05.2023,ADULT SOCIAL CARE,PEOPLE PLUS GROUP LTD (INDEPENDENT LIVING SERVICES),"1,424.64",SPECIALIST CARE,PAYMENTS TO CLIENTS (DIRECT PAYMENTS),2103659250,1000061886
05.05.2023,ADULT SOCIAL CARE,PEOPLE PLUS GROUP LTD (INDEPENDENT LIVING SERVICES),"1,424.64",SPECIALIST CARE,PAYMENTS TO CLIENTS (DIRECT PAYMENTS),2103659252,1000061886
05.05.2023,ADULT SOCIAL CARE,PEOPLE PLUS GROUP LTD (INDEPENDENT LIVING SERVICES),"1,542.92",SPECIALIST CARE,PAYMENTS TO CLIENTS (DIRECT PAYMENTS),2103659520,1000061886
05.05.2023,ADULT SOCIAL CARE,PEOPLE PLUS GROUP LTD (INDEPENDENT LIVING SERVICES),"1,606.08",SPECIALIST CARE,PAYMENTS TO CLIENTS (DIRECT PAYMENTS),2103659488,1000061886
05.05.2023,ADULT SOCIAL CARE,PEOPLE PLUS GROUP LTD (INDEPENDENT LIVING SERVICES),"1,720.80",SPECIALIST CARE,PAYMENTS TO CLIENTS (DIRECT PAYMENTS),2103659423,1000061886
05.05.2023,ADULT SOCIAL CARE,PEOPLE PLUS GROUP LTD (INDEPENDENT LIVING SERVICES),"1,755.56",SPECIALIST CARE,PAYMENTS TO CLIENTS (DIRECT PAYMENTS),2103659376,1000061886
05.05.2023,ADULT SOCIAL CARE,PEOPLE PLUS GROUP LTD (INDEPENDENT LIVING SERVICES),"1,755.56",SPECIALIST CARE,PAYMENTS TO CLIENTS (DIRECT PAYMENTS),2103659494,1000061886
05.05.2023,ADULT SOCIAL CARE,PEOPLE PLUS GROUP LTD (INDEPENDENT LIVING SERVICES),"1,988.48",SPECIALIST CARE,PAYMENTS TO CLIENTS (DIRECT PAYMENTS),2103659264,1000061886
05.05.2023,ADULT SOCIAL CARE,PEOPLE PLUS GROUP LTD (INDEPENDENT LIVING SERVICES),"2,128.20",SPECIALIST CARE,PAYMENTS TO CLIENTS (DIRECT PAYMENTS),2103659406,1000061886
05.05.2023,ADULT SOCIAL CARE,PEOPLE PLUS GROUP LTD (INDEPENDENT LIVING SERVICES),"2,161.20",SPECIALIST CARE,PAYMENTS TO CLIENTS (DIRECT PAYMENTS),2103659400,1000061886
05.05.2023,ADULT SOCIAL CARE,PEOPLE PLUS GROUP LTD (INDEPENDENT LIVING SERVICES),"2,705.04",SPECIALIST CARE,PAYMENTS TO CLIENTS (DIRECT PAYMENTS),2103659244,1000061886
05.05.2023,ADULT SOCIAL CARE,PEOPLE PLUS GROUP LTD (INDEPENDENT LIVING SERVICES),"3,254.28",SPECIALIST CARE,PAYMENTS TO CLIENTS (DIRECT PAYMENTS),2103659251,1000061886
05.05.2023,ADULT SOCIAL CARE,PEOPLE PLUS GROUP LTD (INDEPENDENT LIVING SERVICES),"5,014.90",SPECIALIST CARE,PAYMENTS TO CLIENTS (DIRECT PAYMENTS),2103659484,1000061886
05.05.2023,ADULT SOCIAL CARE,PEOPLE PLUS GROUP LTD (INDEPENDENT LIVING SERVICES),"11,966.72",SPECIALIST CARE,PAYMENTS TO CLIENTS (DIRECT PAYMENTS),2103659356,1000061886
05.05.2023,ADULT SOCIAL CARE,FRESH IDEAS & SOLUTIONS SERVICES CIC,482.88,SPECIALIST CARE,PAYMENTS TO CLIENTS (DIRECT PAYMENTS),2103659266,1000070832
05.05.2023,ADULT SOCIAL CARE,FRESH IDEAS & SOLUTIONS SERVICES CIC,841.28,SPECIALIST CARE,PAYMENTS TO CLIENTS (DIRECT PAYMENTS),2103659524,1000070832
05.05.2023,ADULT SOCIAL CARE,FRESH IDEAS & SOLUTIONS SERVICES CIC,"1,855.38",SPECIALIST CARE,PAYMENTS TO CLIENTS (DIRECT PAYMENTS),2103659428,1000070832
05.05.2023,ADULT SOCIAL CARE,PEOPLEPLUS GROUP LTD,"1,221.26",SPECIALIST CARE,PAYMENTS TO CLIENTS (DIRECT PAYMENTS),2103659288,1000076642
05.05.2023,ADULT SOCIAL CARE,BARRIE BOOKKEEPING & PAYROLL SOLUTIONS LTD,532.11,SPECIALIST CARE,PAYMENTS TO CLIENTS (DIRECT PAYMENTS),2103659604,1000089211
05.05.2023,ADULT SOCIAL CARE,REDACTED PERSONAL DATA,450.11,SPECIALIST CARE,PAYMENTS TO CLIENTS (DIRECT PAYMENTS),REDACTED,REDACTED
05.05.2023,ADULT SOCIAL CARE,REDACTED PERSONAL DATA,843.99,SPECIALIST CARE,PAYMENTS TO CLIENTS (DIRECT PAYMENTS),REDACTED,REDACTED
05.05.2023,ADULT SOCIAL CARE,REDACTED PERSONAL DATA,"1,035.44",SPECIALIST CARE,PAYMENTS TO CLIENTS (DIRECT PAYMENTS),REDACTED,REDACTED
05.05.2023,ADULT SOCIAL CARE,REDACTED PERSONAL DATA,"1,529.60",SPECIALIST CARE,PAYMENTS TO CLIENTS (DIRECT PAYMENTS),REDACTED,REDACTED
05.05.2023,ADULT SOCIAL CARE,REDACTED PERSONAL DATA,"-1,797.78",SPECIALIST CARE,PAYMENTS TO CLIENTS (DIRECT PAYMENTS),REDACTED,REDACTED
05.05.2023,ADULT SOCIAL CARE,REDACTED PERSONAL DATA,"-1,010.63",SPECIALIST CARE,PAYMENTS TO CLIENTS (DIRECT PAYMENTS),REDACTED,REDACTED
05.05.2023,ADULT SOCIAL CARE,REDACTED PERSONAL DATA,678.46,SPECIALIST CARE,PAYMENTS TO CLIENTS (DIRECT PAYMENTS),REDACTED,REDACTED
05.05.2023,ADULT SOCIAL CARE,REDACTED PERSONAL DATA,325.92,SPECIALIST CARE,PAYMENTS TO CLIENTS (DIRECT PAYMENTS),REDACTED,REDACTED
05.05.2023,ADULT SOCIAL CARE,REDACTED PERSONAL DATA,656.43,SPECIALIST CARE,PAYMENTS TO CLIENTS (DIRECT PAYMENTS),REDACTED,REDACTED
05.05.2023,ADULT SOCIAL CARE,REDACTED PERSONAL DATA,"3,518.08",SPECIALIST CARE,PAYMENTS TO CLIENTS (DIRECT PAYMENTS),REDACTED,REDACTED
05.05.2023,ADULT SOCIAL CARE,REDACTED PERSONAL DATA,425.64,SPECIALIST CARE,PAYMENTS TO CLIENTS (DIRECT PAYMENTS),REDACTED,REDACTED
05.05.2023,ADULT SOCIAL CARE,REDACTED PERSONAL DATA,305.92,SPECIALIST CARE,PAYMENTS TO CLIENTS (DIRECT PAYMENTS),REDACTED,REDACTED
05.05.2023,ADULT SOCIAL CARE,REDACTED PERSONAL DATA,"1,415.76",SPECIALIST CARE,PAYMENTS TO CLIENTS (DIRECT PAYMENTS),REDACTED,REDACTED
05.05.2023,ADULT SOCIAL CARE,REDACTED PERSONAL DATA,-328.47,SPECIALIST CARE,PAYMENTS TO CLIENTS (DIRECT PAYMENTS),REDACTED,REDACTED
05.05.2023,ADULT SOCIAL CARE,REDACTED PERSONAL DATA,686.96,SPECIALIST CARE,PAYMENTS TO CLIENTS (DIRECT PAYMENTS),REDACTED,REDACTED
05.05.2023,ADULT SOCIAL CARE,REDACTED PERSONAL DATA,"2,128.20",SPECIALIST CARE,PAYMENTS TO CLIENTS (DIRECT PAYMENTS),REDACTED,REDACTED
05.05.2023,ADULT SOCIAL CARE,REDACTED PERSONAL DATA,-325.28,SPECIALIST CARE,PAYMENTS TO CLIENTS (DIRECT PAYMENTS),REDACTED,REDACTED
05.05.2023,ADULT SOCIAL CARE,REDACTED PERSONAL DATA,"1,373.91",SPECIALIST CARE,PAYMENTS TO CLIENTS (DIRECT PAYMENTS),REDACTED,REDACTED
05.05.2023,ADULT SOCIAL CARE,REDACTED PERSONAL DATA,283.76,SPECIALIST CARE,PAYMENTS TO CLIENTS (DIRECT PAYMENTS),REDACTED,REDACTED
05.05.2023,ADULT SOCIAL CARE,REDACTED PERSONAL DATA,-449.44,SPECIALIST CARE,PAYMENTS TO CLIENTS (DIRECT PAYMENTS),REDACTED,REDACTED
05.05.2023,ADULT SOCIAL CARE,REDACTED PERSONAL DATA,859.61,SPECIALIST CARE,PAYMENTS TO CLIENTS (DIRECT PAYMENTS),REDACTED,REDACTED
05.05.2023,ADULT SOCIAL CARE,REDACTED PERSONAL DATA,"1,167.20",SPECIALIST CARE,PAYMENTS TO CLIENTS (DIRECT PAYMENTS),REDACTED,REDACTED
05.05.2023,ADULT SOCIAL CARE,REDACTED PERSONAL DATA,-490.3,SPECIALIST CARE,PAYMENTS TO CLIENTS (DIRECT PAYMENTS),REDACTED,REDACTED
05.05.2023,ADULT SOCIAL CARE,REDACTED PERSONAL DATA,915.94,SPECIALIST CARE,PAYMENTS TO CLIENTS (DIRECT PAYMENTS),REDACTED,REDACTED
05.05.2023,ADULT SOCIAL CARE,REDACTED PERSONAL DATA,478.82,SPECIALIST CARE,PAYMENTS TO CLIENTS (DIRECT PAYMENTS),REDACTED,REDACTED
05.05.2023,ADULT SOCIAL CARE,REDACTED PERSONAL DATA,602.99,SPECIALIST CARE,PAYMENTS TO CLIENTS (DIRECT PAYMENTS),REDACTED,REDACTED
05.05.2023,ADULT SOCIAL CARE,REDACTED PERSONAL DATA,496.58,SPECIALIST CARE,PAYMENTS TO CLIENTS (DIRECT PAYMENTS),REDACTED,REDACTED
05.05.2023,ADULT SOCIAL CARE,REDACTED PERSONAL DATA,818.84,SPECIALIST CARE,PAYMENTS TO CLIENTS (DIRECT PAYMENTS),REDACTED,REDACTED
05.05.2023,ADULT SOCIAL CARE,REDACTED PERSONAL DATA,-326.87,SPECIALIST CARE,PAYMENTS TO CLIENTS (DIRECT PAYMENTS),REDACTED,REDACTED
05.05.2023,ADULT SOCIAL CARE,REDACTED PERSONAL DATA,610.63,SPECIALIST CARE,PAYMENTS TO CLIENTS (DIRECT PAYMENTS),REDACTED,REDACTED
05.05.2023,ADULT SOCIAL CARE,REDACTED PERSONAL DATA,552.05,SPECIALIST CARE,PAYMENTS TO CLIENTS (DIRECT PAYMENTS),REDACTED,REDACTED
05.05.2023,ADULT SOCIAL CARE,REDACTED PERSONAL DATA,-756.31,SPECIALIST CARE,PAYMENTS TO CLIENTS (DIRECT PAYMENTS),REDACTED,REDACTED
05.05.2023,ADULT SOCIAL CARE,REDACTED PERSONAL DATA,"1,450.24",SPECIALIST CARE,PAYMENTS TO CLIENTS (DIRECT PAYMENTS),REDACTED,REDACTED
05.05.2023,ADULT SOCIAL CARE,REDACTED PERSONAL DATA,"1,090.31",SPECIALIST CARE,PAYMENTS TO CLIENTS (DIRECT PAYMENTS),REDACTED,REDACTED
05.05.2023,ADULT SOCIAL CARE,REDACTED PERSONAL DATA,555.36,SPECIALIST CARE,PAYMENTS TO CLIENTS (DIRECT PAYMENTS),REDACTED,REDACTED
05.05.2023,ADULT SOCIAL CARE,REDACTED PERSONAL DATA,957.69,SPECIALIST CARE,PAYMENTS TO CLIENTS (DIRECT PAYMENTS),REDACTED,REDACTED
05.05.2023,ADULT SOCIAL CARE,REDACTED PERSONAL DATA,"1,013.16",SPECIALIST CARE,PAYMENTS TO CLIENTS (DIRECT PAYMENTS),REDACTED,REDACTED
05.05.2023,ADULT SOCIAL CARE,REDACTED PERSONAL DATA,390.17,SPECIALIST CARE,PAYMENTS TO CLIENTS (DIRECT PAYMENTS),REDACTED,REDACTED
05.05.2023,ADULT SOCIAL CARE,REDACTED PERSONAL DATA,-735.51,SPECIALIST CARE,PAYMENTS TO CLIENTS (DIRECT PAYMENTS),REDACTED,REDACTED
05.05.2023,ADULT SOCIAL CARE,REDACTED PERSONAL DATA,-326.87,SPECIALIST CARE,PAYMENTS TO CLIENTS (DIRECT PAYMENTS),REDACTED,REDACTED
05.05.2023,ADULT SOCIAL CARE,REDACTED PERSONAL DATA,610.63,SPECIALIST CARE,PAYMENTS TO CLIENTS (DIRECT PAYMENTS),REDACTED,REDACTED
05.05.2023,ADULT SOCIAL CARE,REDACTED PERSONAL DATA,"1,076.80",SPECIALIST CARE,PAYMENTS TO CLIENTS (DIRECT PAYMENTS),REDACTED,REDACTED
05.05.2023,ADULT SOCIAL CARE,REDACTED PERSONAL DATA,693.93,SPECIALIST CARE,PAYMENTS TO CLIENTS (DIRECT PAYMENTS),REDACTED,REDACTED
05.05.2023,ADULT SOCIAL CARE,REDACTED PERSONAL DATA,-408.59,SPECIALIST CARE,PAYMENTS TO CLIENTS (DIRECT PAYMENTS),REDACTED,REDACTED
05.05.2023,ADULT SOCIAL CARE,REDACTED PERSONAL DATA,303.76,SPECIALIST CARE,PAYMENTS TO CLIENTS (DIRECT PAYMENTS),REDACTED,REDACTED
05.05.2023,ADULT SOCIAL CARE,REDACTED PERSONAL DATA,"2,217.92",SPECIALIST CARE,PAYMENTS TO CLIENTS (DIRECT PAYMENTS),REDACTED,REDACTED
05.05.2023,ADULT SOCIAL CARE,REDACTED PERSONAL DATA,303.76,SPECIALIST CARE,PAYMENTS TO CLIENTS (DIRECT PAYMENTS),REDACTED,REDACTED
05.05.2023,ADULT SOCIAL CARE,REDACTED PERSONAL DATA,"5,220.64",SPECIALIST CARE,PAYMENTS TO CLIENTS (DIRECT PAYMENTS),REDACTED,REDACTED
05.05.2023,ADULT SOCIAL CARE,REDACTED PERSONAL DATA,-470.3,SPECIALIST CARE,PAYMENTS TO CLIENTS (DIRECT PAYMENTS),REDACTED,REDACTED
05.05.2023,ADULT SOCIAL CARE,REDACTED PERSONAL DATA,915.94,SPECIALIST CARE,PAYMENTS TO CLIENTS (DIRECT PAYMENTS),REDACTED,REDACTED
05.05.2023,ADULT SOCIAL CARE,REDACTED PERSONAL DATA,267.36,SPECIALIST CARE,PAYMENTS TO CLIENTS (DIRECT PAYMENTS),REDACTED,REDACTED
05.05.2023,ADULT SOCIAL CARE,REDACTED PERSONAL DATA,445.64,SPECIALIST CARE,PAYMENTS TO CLIENTS (DIRECT PAYMENTS),REDACTED,REDACTED
05.05.2023,ADULT SOCIAL CARE,REDACTED PERSONAL DATA,587.52,SPECIALIST CARE,PAYMENTS TO CLIENTS (DIRECT PAYMENTS),REDACTED,REDACTED
05.05.2023,ADULT SOCIAL CARE,REDACTED PERSONAL DATA,552.05,SPECIALIST CARE,PAYMENTS TO CLIENTS (DIRECT PAYMENTS),REDACTED,REDACTED
05.05.2023,ADULT SOCIAL CARE,REDACTED PERSONAL DATA,587.52,SPECIALIST CARE,PAYMENTS TO CLIENTS (DIRECT PAYMENTS),REDACTED,REDACTED
05.05.2023,ADULT SOCIAL CARE,REDACTED PERSONAL DATA,283.13,SPECIALIST CARE,PAYMENTS TO CLIENTS (DIRECT PAYMENTS),REDACTED,REDACTED
05.05.2023,ADULT SOCIAL CARE,REDACTED PERSONAL DATA,-326.87,SPECIALIST CARE,PAYMENTS TO CLIENTS (DIRECT PAYMENTS),REDACTED,REDACTED
05.05.2023,ADULT SOCIAL CARE,REDACTED PERSONAL DATA,610.63,SPECIALIST CARE,PAYMENTS TO CLIENTS (DIRECT PAYMENTS),REDACTED,REDACTED
05.05.2023,ADULT SOCIAL CARE,REDACTED PERSONAL DATA,303.76,SPECIALIST CARE,PAYMENTS TO CLIENTS (DIRECT PAYMENTS),REDACTED,REDACTED
05.05.2023,ADULT SOCIAL CARE,REDACTED PERSONAL DATA,764.8,SPECIALIST CARE,PAYMENTS TO CLIENTS (DIRECT PAYMENTS),REDACTED,REDACTED
05.05.2023,ADULT SOCIAL CARE,REDACTED PERSONAL DATA,709.4,SPECIALIST CARE,PAYMENTS TO CLIENTS (DIRECT PAYMENTS),REDACTED,REDACTED
05.05.2023,ADULT SOCIAL CARE,REDACTED PERSONAL DATA,-817.17,SPECIALIST CARE,PAYMENTS TO CLIENTS (DIRECT PAYMENTS),REDACTED,REDACTED
05.05.2023,ADULT SOCIAL CARE,REDACTED PERSONAL DATA,"1,526.57",SPECIALIST CARE,PAYMENTS TO CLIENTS (DIRECT PAYMENTS),REDACTED,REDACTED
05.05.2023,ADULT SOCIAL CARE,REDACTED PERSONAL DATA,305.31,SPECIALIST CARE,PAYMENTS TO CLIENTS (DIRECT PAYMENTS),REDACTED,REDACTED
05.05.2023,ADULT SOCIAL CARE,REDACTED PERSONAL DATA,744.87,SPECIALIST CARE,PAYMENTS TO CLIENTS (DIRECT PAYMENTS),REDACTED,REDACTED
05.05.2023,ADULT SOCIAL CARE,REDACTED PERSONAL DATA,438.76,SPECIALIST CARE,PAYMENTS TO CLIENTS (DIRECT PAYMENTS),REDACTED,REDACTED
05.05.2023,ADULT SOCIAL CARE,REDACTED PERSONAL DATA,709.4,SPECIALIST CARE,PAYMENTS TO CLIENTS (DIRECT PAYMENTS),REDACTED,REDACTED
05.05.2023,ADULT SOCIAL CARE,REDACTED PERSONAL DATA,-735.45,SPECIALIST CARE,PAYMENTS TO CLIENTS (DIRECT PAYMENTS),REDACTED,REDACTED
05.05.2023,ADULT SOCIAL CARE,REDACTED PERSONAL DATA,"1,373.91",SPECIALIST CARE,PAYMENTS TO CLIENTS (DIRECT PAYMENTS),REDACTED,REDACTED
05.05.2023,ADULT SOCIAL CARE,REDACTED PERSONAL DATA,658.46,SPECIALIST CARE,PAYMENTS TO CLIENTS (DIRECT PAYMENTS),REDACTED,REDACTED
05.05.2023,ADULT SOCIAL CARE,REDACTED PERSONAL DATA,"1,318.32",SPECIALIST CARE,PAYMENTS TO CLIENTS (DIRECT PAYMENTS),REDACTED,REDACTED
05.05.2023,ADULT SOCIAL CARE,REDACTED PERSONAL DATA,458.88,SPECIALIST CARE,PAYMENTS TO CLIENTS (DIRECT PAYMENTS),REDACTED,REDACTED
05.05.2023,ADULT SOCIAL CARE,REDACTED PERSONAL DATA,307.76,SPECIALIST CARE,PAYMENTS TO CLIENTS (DIRECT PAYMENTS),REDACTED,REDACTED
05.05.2023,ADULT SOCIAL CARE,REDACTED PERSONAL DATA,303.76,SPECIALIST CARE,PAYMENTS TO CLIENTS (DIRECT PAYMENTS),REDACTED,REDACTED
05.05.2023,ADULT SOCIAL CARE,REDACTED PERSONAL DATA,402.76,SPECIALIST CARE,PAYMENTS TO CLIENTS (DIRECT PAYMENTS),REDACTED,REDACTED
05.05.2023,ADULT SOCIAL CARE,REDACTED PERSONAL DATA,515.06,SPECIALIST CARE,PAYMENTS TO CLIENTS (DIRECT PAYMENTS),REDACTED,REDACTED
05.05.2023,ADULT SOCIAL CARE,REDACTED PERSONAL DATA,287.2,SPECIALIST CARE,PAYMENTS TO CLIENTS (DIRECT PAYMENTS),REDACTED,REDACTED
05.05.2023,ADULT SOCIAL CARE,REDACTED PERSONAL DATA,283.76,SPECIALIST CARE,PAYMENTS TO CLIENTS (DIRECT PAYMENTS),REDACTED,REDACTED
05.05.2023,ASSET MANAGEMENT,ARMINA LTD,"1,244.51",DISREPAIR,BUILDING R&M,2103658226,3000002121
05.05.2023,ASSET MANAGEMENT,ARMINA LTD,"1,250.26",DISREPAIR,BUILDING R&M,2103658663,3000002121
05.05.2023,ASSET MANAGEMENT,ARMINA LTD,"1,279.36",DISREPAIR,BUILDING R&M,2103656750,3000002121
05.05.2023,ASSET MANAGEMENT,ARMINA LTD,"1,843.65",DISREPAIR,BUILDING R&M,2103658227,3000002121
05.05.2023,ASSET MANAGEMENT,ARMINA LTD,"2,426.82",DISREPAIR,BUILDING R&M,2103658543,3000002121
05.05.2023,ASSET MANAGEMENT,CHESHIRE ESTATE AND LEGAL LTD,"2,500.00",DISREPAIR,LEGAL FEES & COURT COSTS,5902578171,1000081488
05.05.2023,CENTRAL FUNCTIONS,PINNACLE POWER LTD,524.71,HEATING ACCOUNT,GAS,5902578436,1000081494
05.05.2023,CENTRAL FUNCTIONS,PINNACLE POWER LTD,524.71,HEATING ACCOUNT,GAS,5902578437,1000081494
05.05.2023,CENTRAL FUNCTIONS,PINNACLE POWER LTD,524.71,HEATING ACCOUNT,GAS,5902578438,1000081494
05.05.2023,CENTRAL FUNCTIONS,PINNACLE POWER LTD,524.71,HEATING ACCOUNT,GAS,5902578440,1000081494
05.05.2023,CENTRAL FUNCTIONS,PINNACLE POWER LTD,525.71,HEATING ACCOUNT,GAS,5902578441,1000081494
05.05.2023,CHIEF EXECUTIVE'S OFFICE,J C CONSULTANT SERVICES LTD,"75,000.00",CHIEF EXECUTIVE'S OFFICE,EXTERNAL AGENCIES AND BODIES,5902577373,1000042476
05.05.2023,CHILDREN AND ADULT,FAITHFUL & GOULD,"4,317.00",CAPITAL PS (SOC SERV),CONSTRUCTION FEES  - EXTERNAL,5902578361,1000061390
05.05.2023,CHILDREN AND FAMILIES,REDACTED PERSONAL DATA,"1,666.67",ADOPTION SUPP FUND 2,EXTERNAL AGENCIES AND BODIES,REDACTED,REDACTED
05.05.2023,CHILDREN AND FAMILIES,REDACTED PERSONAL DATA,"2,100.00",ADOPTION SUPP FUND 2,EXTERNAL AGENCIES AND BODIES,REDACTED,REDACTED
05.05.2023,CHILDREN AND FAMILIES,REDACTED PERSONAL DATA,"5,000.00",ADOPTION SUPP FUND 2,EXTERNAL AGENCIES AND BODIES,REDACTED,REDACTED
05.05.2023,CHILDREN AND FAMILIES,REDACTED PERSONAL DATA,255,ADOPTION SUPP FUND 2,EXTERNAL AGENCIES AND BODIES,REDACTED,REDACTED
05.05.2023,CHILDREN AND FAMILIES,REDACTED PERSONAL DATA,500,CARELEAVER UNIV SUPP,OTHER PAYMENTS FOR CLIENTS,REDACTED,REDACTED
05.05.2023,CHILDREN AND FAMILIES,MCRAE RESIDENTIAL CARE SERVICES LTD,"13,500.00",CHILDREN�S RESID,RESIDENTIAL CARE,2103659205,1000050558
05.05.2023,CHILDREN AND FAMILIES,WESTGATE LIFESTYLE PROJECT LTD,"18,214.20",CHILDREN�S RESID,RESIDENTIAL CARE,2103659206,1000089215
05.05.2023,CHILDREN AND FAMILIES,REALITY FAMILY SUPPORT SERVICES LTD,382.5,EDGE OF CARE DECIS�S,OTHER PAYMENTS FOR CLIENTS,5902577817,1000087878
05.05.2023,CHILDREN AND FAMILIES,REDACTED PERSONAL DATA,400,FE SUPPORT,OTHER PAYMENTS FOR CLIENTS,REDACTED,REDACTED
05.05.2023,CHILDREN AND FAMILIES,FIVE RIVERS CHILD CARE LTD,"3,685.71",FRIENDS & FAMILY FOSTERING,EXTERNAL AGENCIES AND BODIES,2103659208,1000018792
05.05.2023,CHILDREN AND FAMILIES,RAINBOW FOSTERING SERVICES LTD,"3,835.71",FRIENDS & FAMILY FOSTERING,EXTERNAL AGENCIES AND BODIES,2103659210,1000076620
05.05.2023,CHILDREN AND FAMILIES,RAINBOW FOSTERING SERVICES LTD,"6,000.00",FRIENDS & FAMILY FOSTERING,EXTERNAL AGENCIES AND BODIES,2103659207,1000076620
05.05.2023,CHILDREN AND FAMILIES,SILVER LINING FOSTERING LTD,"3,321.43",FRIENDS & FAMILY FOSTERING,EXTERNAL AGENCIES AND BODIES,2103659209,1000087318
05.05.2023,CHILDREN AND FAMILIES,REDACTED PERSONAL DATA,"2,000.00",LEAVING CARE GRANT,OTHER PAYMENTS FOR CLIENTS,REDACTED,REDACTED
05.05.2023,CHILDREN AND FAMILIES,REDACTED PERSONAL DATA,"2,000.00",LEAVING CARE GRANT,OTHER PAYMENTS FOR CLIENTS,REDACTED,REDACTED
05.05.2023,CHILDREN AND FAMILIES,HEARTWOOD OUTREACH SERVICES LTD,"2,455.07",SEMI-IND CARELEAVERS,EXTERNAL AGENCIES AND BODIES,2103659213,1000075021
05.05.2023,CHILDREN AND FAMILIES,NETPEX LTD CORPORATE SERVICES,"3,137.10",SEMI-IND CARELEAVERS,EXTERNAL AGENCIES AND BODIES,2103659212,1000076073
05.05.2023,CHILDREN AND FAMILIES,NETPEX LTD CORPORATE SERVICES,"6,604.20",SEMI-IND CARELEAVERS,EXTERNAL AGENCIES AND BODIES,2103659214,1000076073
05.05.2023,CHILDREN AND FAMILIES,REDACTED PERSONAL DATA,"1,000.00",SEMI-IND CARELEAVERS,OTHER PAYMENTS FOR CLIENTS,REDACTED,REDACTED
05.05.2023,CHILDREN AND FAMILIES,REDACTED PERSONAL DATA,"1,174.00",SEMI-IND CARELEAVERS,OTHER PAYMENTS FOR CLIENTS,REDACTED,REDACTED
05.05.2023,CHILDREN AND FAMILIES,FAVOUR HEALTH LTD,"9,214.20",SEMI-IND LAC 16-17,EXTERNAL AGENCIES AND BODIES,2103659216,1000088976
05.05.2023,CHILDREN AND FAMILIES,REDACTED PERSONAL DATA,"1,387.86",SEMI-IND LAC 16-17,OTHER PAYMENTS FOR CLIENTS,REDACTED,REDACTED
05.05.2023,CHILDREN AND FAMILIES,REDACTED PERSONAL DATA,411.43,UASC CARELEAVERS,OTHER PAYMENTS FOR CLIENTS,REDACTED,REDACTED
05.05.2023,COMMUNITIES,METRO HOMECARE LTD,412.5,NO RECOURSE TO PUBLIC FUNDS,HOMECARE - C&V,2103659219,1000070695
05.05.2023,COMMUNITIES,PRIORY CARE SERVICES LTD,"1,401.00",NO RECOURSE TO PUBLIC FUNDS,HOMECARE - C&V,2103659203,1000088866
05.05.2023,COMMUNITIES,RESTORATIVE JUSTICE FOR ALL,"3,166.00",NORTH EAST,GRANTS,5902577542,1000081455
05.05.2023,COMMUNITIES,TOGETHER FOR MENTAL WELLBEING,"13,905.00",SOUTHWARK ANTI VIOLENCE UNIT,PROFESSIONAL FEES,5902578152,1000084108
05.05.2023,COMMUNITIES,REDACTED PERSONAL DATA,350,UKRAINIAN PROGRAMME,GRANTS,REDACTED,REDACTED
05.05.2023,COMMUNITIES,REDACTED PERSONAL DATA,350,UKRAINIAN PROGRAMME,GRANTS,REDACTED,REDACTED
05.05.2023,COMMUNITIES,REDACTED PERSONAL DATA,350,UKRAINIAN PROGRAMME,GRANTS,REDACTED,REDACTED
05.05.2023,COMMUNITIES,REDACTED PERSONAL DATA,350,UKRAINIAN PROGRAMME,GRANTS,REDACTED,REDACTED
05.05.2023,COMMUNITIES,REDACTED PERSONAL DATA,350,UKRAINIAN PROGRAMME,GRANTS,REDACTED,REDACTED
05.05.2023,CORPORATE FACILITIES MANAGEMENT,INFINITY NETWORKS LTD,994,160 TOOLEY ST.,BUILDING R&M,5902577474,1000035571
05.05.2023,CORPORATE FACILITIES MANAGEMENT,KENT COUNTY COUNCIL - LASER,772.12,7 TALFOURD ROAD,ELECTRICITY,5902577415,1000012926
05.05.2023,CORPORATE FACILITIES MANAGEMENT,KENT COUNTY COUNCIL - LASER,"1,570.12",BOURNEMOUTH GROVE,ELECTRICITY,5902577406,1000012926
05.05.2023,CORPORATE FACILITIES MANAGEMENT,KENT COUNTY COUNCIL - LASER,"2,738.30",BOURNEMOUTH GROVE,ELECTRICITY,5902577436,1000012926
05.05.2023,CORPORATE FACILITIES MANAGEMENT,ATALIAN SERVEST LTD,"1,904.24",FM SERVICES BY INTERSERVE,BUILDING R&M,5902578345,1000088775
05.05.2023,CORPORATE FACILITIES MANAGEMENT,ATALIAN SERVEST LTD,"3,120.39",FM SERVICES BY INTERSERVE,BUILDING R&M,5902578431,1000088775
05.05.2023,CORPORATE FACILITIES MANAGEMENT,ATALIAN SERVEST LTD,"1,654.38",FM SERVICES BY INTERSERVE,SECURITY SERVICES,5902578431,1000088775
05.05.2023,CORPORATE FACILITIES MANAGEMENT,KENT COUNTY COUNCIL - LASER,"4,220.29",QUEENS RD 1 (BLOCK F),ELECTRICITY,5902577447,1000012926
05.05.2023,CUSTOMER AND EXCHEQUER,IRRV,"1,560.00",ADMINISTRATIVE SUPPORT,SUBSCRIPTIONS,5902577748,1153371
05.05.2023,CUSTOMER AND EXCHEQUER,T-THREE CONSULTING LTD,"7,713.00",ADMINISTRATIVE SUPPORT,TRAINING,5902577725,1000089335
05.05.2023,CUSTOMER AND EXCHEQUER,QUEEN MARY UNIVERSITY OF LONDON,"2,530.00",CORONER'S,PROFESSIONAL FEES,5902578367,1000067740
05.05.2023,CUSTOMER AND EXCHEQUER,IMPERIAL COLLEGE PROJECTS LTD,280,CORONER'S,PROFESSIONAL FEES,5902578308,1000080106
05.05.2023,CUSTOMER AND EXCHEQUER,IMPERIAL COLLEGE PROJECTS LTD,336,CORONER'S,PROFESSIONAL FEES,5902578316,1000080106
05.05.2023,CUSTOMER AND EXCHEQUER,IMPERIAL COLLEGE PROJECTS LTD,357,CORONER'S,PROFESSIONAL FEES,5902578317,1000080106
05.05.2023,CUSTOMER AND EXCHEQUER,IMPERIAL COLLEGE PROJECTS LTD,357,CORONER'S,PROFESSIONAL FEES,5902578318,1000080106
05.05.2023,CUSTOMER AND EXCHEQUER,IMPERIAL COLLEGE PROJECTS LTD,357,CORONER'S,PROFESSIONAL FEES,5902578319,1000080106
05.05.2023,CUSTOMER AND EXCHEQUER,IMPERIAL COLLEGE PROJECTS LTD,378,CORONER'S,PROFESSIONAL FEES,5902578320,1000080106
05.05.2023,CUSTOMER AND EXCHEQUER,IMPERIAL COLLEGE PROJECTS LTD,378,CORONER'S,PROFESSIONAL FEES,5902578322,1000080106
05.05.2023,CUSTOMER AND EXCHEQUER,IMPERIAL COLLEGE PROJECTS LTD,399,CORONER'S,PROFESSIONAL FEES,5902578303,1000080106
05.05.2023,CUSTOMER AND EXCHEQUER,IMPERIAL COLLEGE PROJECTS LTD,412,CORONER'S,PROFESSIONAL FEES,5902578307,1000080106
05.05.2023,CUSTOMER AND EXCHEQUER,IMPERIAL COLLEGE PROJECTS LTD,501,CORONER'S,PROFESSIONAL FEES,5902578313,1000080106
05.05.2023,CUSTOMER AND EXCHEQUER,IMPERIAL COLLEGE PROJECTS LTD,548,CORONER'S,PROFESSIONAL FEES,5902578305,1000080106
05.05.2023,CUSTOMER AND EXCHEQUER,IMPERIAL COLLEGE PROJECTS LTD,548,CORONER'S,PROFESSIONAL FEES,5902578311,1000080106
05.05.2023,CUSTOMER AND EXCHEQUER,IMPERIAL COLLEGE PROJECTS LTD,548,CORONER'S,PROFESSIONAL FEES,5902578315,1000080106
05.05.2023,CUSTOMER AND EXCHEQUER,IMPERIAL COLLEGE PROJECTS LTD,"1,124.00",CORONER'S,PROFESSIONAL FEES,5902578314,1000080106
05.05.2023,CUSTOMER AND EXCHEQUER,POST OFFICE LTD,"3,914.52",DISCRETIONARY RATES REBATE,MISCELLANEOUS EXPENSES,5902578088,1000069858
05.05.2023,CUSTOMER EXPERIENCE,KENT COUNTY COUNCIL - LASER,"4,193.91",CUSTOMER SUPPORT,ELECTRICITY,5902577434,1000012926
05.05.2023,DIGITAL AND TECHNOLOGY,VIRGIN MEDIA,331.75,SHARED SERVICES,COMMS & COMPUTING CONTRACT CHARGES,5902578312,1000026457
05.05.2023,DIGITAL AND TECHNOLOGY,VIRGIN MEDIA,570.3,SHARED SERVICES,COMMS & COMPUTING CONTRACT CHARGES,5902578310,1000026457
05.05.2023,DIGITAL AND TECHNOLOGY,VIRGIN MEDIA,"1,724.28",SHARED SERVICES,COMMS & COMPUTING CONTRACT CHARGES,5902578333,1000026457
05.05.2023,DIGITAL AND TECHNOLOGY,VIRGIN MEDIA,"1,754.73",SHARED SERVICES,COMMS & COMPUTING CONTRACT CHARGES,5902578330,1000026457
05.05.2023,DIGITAL AND TECHNOLOGY,VIRGIN MEDIA,"7,714.20",SHARED SERVICES,COMMS & COMPUTING CONTRACT CHARGES,5902578306,1000026457
05.05.2023,DIGITAL AND TECHNOLOGY,VIRGIN MEDIA,"19,166.07",SHARED SERVICES,COMMS & COMPUTING CONTRACT CHARGES,5902578304,1000026457
05.05.2023,DSG,BEORMUND PRIMARY SCHOOL,"59,333.00",BEORMUND PRIMARY SCHOOL,HIGH NEEDS - TOP UP FUNDING,5902578228,5001000008
05.05.2023,DSG,CHERRY GARDEN SCHOOL,"225,777.00",CHERRY GARDEN PRIMARY SCHOOL,HIGH NEEDS - TOP UP FUNDING,5902578239,5001000020
05.05.2023,DSG,EVELINA HOSPITAL SCHOOL,"98,975.00",EVELINA HOSPITAL SCHOOL,HIGH NEEDS - TOP UP FUNDING,5902578248,5001000031
05.05.2023,DSG,HAYMERLE SCHOOL,"165,889.00",HAYMERLE PRIMARY SCHOOL,HIGH NEEDS - TOP UP FUNDING,5902578259,5001000045
05.05.2023,DSG,HIGHSHORE SCHOOL,"234,000.00",HIGHSHORE,HIGH NEEDS - TOP UP FUNDING,5902578260,5001000046
05.05.2023,DSG,ALBION PRIMARY SCHOOL,"11,556.00",LBS MAINSTREAM,HIGH NEEDS - TOP UP FUNDING,5902578225,5001000000
05.05.2023,DSG,ALFRED SALTER PRIMARY SCHOOL,"18,333.00",LBS MAINSTREAM,HIGH NEEDS - TOP UP FUNDING,5902578226,5001000005
05.05.2023,DSG,BELLENDEN PRIMARY SCHOOL,"4,223.00",LBS MAINSTREAM,HIGH NEEDS - TOP UP FUNDING,5902578227,5001000007
